Workbook

Sheet Eingabe
A4: =IF(Variablen!B1=YEAR(TODAY()),"Wieviel Sicherheit kann ich mir leisten?","Tool ist abgelaufen!") -> Wieviel Sicherheit kann ich mir leisten?
A6: Eingaben
B7: =IF(C9>C10,"ACHTUNG: Beginn Ruhestand!","") -> 
A8: Vorname | C8: Max | E8: Nachname | G8: Mustermann
A9: Alter | C9: 10
A10: Beginn Ruhestand | C10: 67 | G10: 36000
G11: =G10/12 -> 3000
A13: Wunscheinkommen im Ruhestand (Brutto) ca. | E13: 0 | G13: =IF(Variablen!B6=1,"(z.B.: 80% = ca. "&FIXED(Hilfe!B18*0.8/12,0)&" EUR mtl.)","(z.B.: 80% = ca. "&FIXED(Hilfe!B22*0.8/12,0)&" EUR mtl.)") -> (z.B.: 80% = ca. 2.400 EUR mtl.) | I13: =IF(OR(E13=0,E14=0),"ACHTUNG: Bitte entweder Wunscheinkommen brutto ODER netto eingeben UND dann Button ''Wunscheinkommen befüllen'' drücken!","") -> ACHTUNG: Bitte entweder Wunscheinkommen brutto ODER netto eingeben UND dann Button ''Wunscheinkommen befüllen'' drücken!
A14: Wunscheinkommen im Ruhestand (Netto) ca. | E14: 0 | G14: =IF(Variablen!B6=1,"(z.B.: 80% = ca. "&FIXED(Hilfe!B19*0.8/12,0)&" EUR mtl.)","(z.B.: 80% = ca. "&FIXED(Hilfe!B24*0.8/12,0)&" EUR mtl.)") -> (z.B.: 80% = ca. 2.166 EUR mtl.)
A15: (Ermittlung auf Basis komplett steuerpflichtiges Einkommen) | E15: ="Spitzensteuersatz: ca. "&FIXED((steuer(Variablen!B3,Eingabe!E13*12)-steuer(Variablen!B3,Eingabe!E13*12-1))*100,2)&"% in der Rentenphase" -> Spitzensteuersatz: ca. 0,00% in der Rentenphase
A16: Gesetzliche Rente / Versorgungswerk (Brutto) | E16: 2000
A17: Basisrente (Brutto) | E17: 0
A18: Riesterrente (Brutto) | E18: 0
A19: betriebliche Altersversorgung (Brutto) | E19: 0
A20: Mieteinkünfte (Brutto) | E20: 0
A21: Sonstige Renten m. Ertragsanteil (Brutto) | E21: 0
A24: ="Sonstiges verfüg. Vermögen ab dem "&C10&". Jahr" -> Sonstiges verfüg. Vermögen ab dem 67. Jahr | E24: 0 | I24: Hilfsrechner (z.B. Inflation)
A25: Verrentungsart: | E25: =E24/Variablen!E13 -> 0 | I25: Kapital / Rente (mtl.) | K25: =E14 -> 0
I26: Zins | K26: 0.02
A27: Gesamte Altersversorgung (Brutto) ca. | E27: =E16+E17+E18+E19+E20+E21+E25 -> 2000 | I27: Laufzeit | K27: =C10-C9 -> 57
A28: Gesamte Altersversorgung (Netto) ca. | E28: =Hilfe!B15 -> 1928.376196 | I28: => mit 67 Jahren ca.: | K28: =ROUND((K25*(1+K26)^K27)/10,0)*10 -> 0
A30: Zusatzbedarf GKV/PKV Beitrag im Alter | E30: 0 | G30: =IF(E30=0,"KV Bedarf berücksichtigen","") -> KV Bedarf berücksichtigen
A31: Rentenlücke (Netto) inkl. KV ca. | E31: =MAX(0,MAX(E14-E28+E30,0)) -> 0 | G31: =IF(E31=0,"Überschuss","") -> Überschuss
A33: ="Kosten eines Vertrages Laufzeit "&Variablen!B15&" Jahre ca." -> Kosten eines Vertrages Laufzeit 57 Jahre ca. | E33: =G33 -> 0.0013 | G33: =Variablen!B18 -> 0.0013
A46: Quelle: Eigene Berechnungen auf Basis Ihrer Angaben und der gesetzlichen Daten. | H46: ="1 / "&Variablen!B1&"" -> 1 / 2022
A47: Für die Richtigkeit der Angaben kann keine Gewähr übernommen werden, denn Programm- und Berechnungsfehler sind trotz sorgfältigstem Vorgehen nicht ausgeschlossen.

Sheet Druck (hidden)

Sheet Variablen (hidden)
A1: Jahr | B1: 2022 | D1: Rentenfaktoren | H1: Private Renten | K1: Basisrente | O1: Daxwerte
D2: Alter | E2: Mit Garantie | F2: Ohne Garantie | H2: =Eingabe!C10 -> 67 | I2: =VLOOKUP(H2,H4:I104,2) -> 0.17 | K2: =B1 -> 2022 | L2: =VLOOKUP(K2,K5:M28,2) -> 0.94 | M2: =VLOOKUP(K2,K5:M28,3) -> 0.82 | O2: Laufzeit | P2: Min | Q2: Mittelwert | R2: Max | S2: Anzahl Perioden
A3: Nicht verheiratet | B3: 2 | D3: 60 | E3: 429 | F3: 215 | H3: Alter | I3: Ertragsanteil (%) | K3: =Variablen!B1+Variablen!B15 -> 2079 | L3: =VLOOKUP(K3,K5:M28,2) -> 1 | M3: =VLOOKUP(K3,K5:M28,3) -> 1 | O3: 10 | P3: 0.01026077326 | Q3: 0.05754632764 | R3: 0.1357152422 | S3: 626
A4: verheiratet | D4: 61 | E4: 415 | F4: 212 | H4: 0 | I4: 0.59 | L4: Absetzbarkeit | M4: zu versteuern | O4: 11 | P4: 0.009004532655 | Q4: 0.05734831322 | R4: 0.1308958472 | S4: 614
D5: 62 | E5: 401 | F5: 210 | H5: 1 | I5: 0.59 | K5: 2022 | L5: 0.94 | M5: 0.82 | O5: 12 | P5: 0.01066156645 | Q5: 0.05743910694 | R5: 0.124648753 | S5: 602
A6: Bruttoeinkommen p.a. | B6: 1 | D6: 63 | E6: 388 | F6: 208 | H6: 2 | I6: 0.58 | K6: =K5+1 -> 2023 | L6: =IF(K6>2025,1,L5+2%) -> 0.96 | M6: =IF(K6>2020,IF(K6>2040,100%,M5+1%),M5+2%) -> 0.83 | O6: 13 | P6: 0.01141734891 | Q6: 0.05761069076 | R6: 0.1230823515 | S6: 590
A7: Nettoeinkommen p.a. | D7: 64 | E7: 374 | F7: 205 | H7: 3 | I7: 0.58 | K7: 2024 | L7: 0.98 | M7: 0.84 | O7: 14 | P7: 0.01012269743 | Q7: 0.0578556611 | R7: 0.1209840128 | S7: 578
D8: 65 | E8: 361 | F8: 203 | H8: 4 | I8: 0.57 | K8: 2025 | L8: 1 | M8: 0.85 | O8: 15 | P8: 0.009028353661 | Q8: 0.05845068166 | R8: 0.1164145885 | S8: 566
A9: Mit Garantie (klassisch) | B9: 1 | D9: 66 | E9: 348 | F9: 201 | H9: 5 | I9: 0.57 | K9: 2026 | L9: 1 | M9: 0.86 | O9: 16 | P9: 0.01030249751 | Q9: 0.05930448281 | R9: 0.1123285792 | S9: 554
A10: 75% Garantie / 25% ohne | B10: =IF(B9=1,A9,IF(B9=2,A10,IF(B9=3,A11,IF(B9=4,A12,A13)))) -> Mit Garantie (klassisch) | D10: 67 | E10: 335 | F10: 198 | H10: 6 | I10: 0.56 | K10: 2027 | L10: 1 | M10: 0.87 | O10: 17 | P10: 0.0118188156 | Q10: 0.06016231868 | R10: 0.1125809867 | S10: 542
A11: 50% Garantie / 50% ohne | D11: Faktor | E11: =VLOOKUP(Eingabe!C10,Variablen!D3:F11,2) -> 335 | F11: =VLOOKUP(Eingabe!C10,Variablen!D3:F11,3) -> 198 | H11: 7 | I11: 0.56 | K11: 2028 | L11: 1 | M11: 0.88 | O11: 18 | P11: 0.01103349886 | Q11: 0.06103098924 | R11: 0.1125549532 | S11: 530
A12: 25% Garantie / 75% ohne | D12: Auswahl | E12: =IF(B9=1,100%,IF(B9=2,75%,IF(B9=3,50%,IF(B9=4,25%,IF(B9=5,0%,100%))))) -> 1 | F12: =1-E12 -> 0 | H12: 8 | I12: 0.56 | K12: 2029 | L12: 1 | M12: 0.89 | O12: 19 | P12: 0.01128200364 | Q12: 0.06190858269 | R12: 0.1146716243 | S12: 518
A13: Ohne Garantie (fondsgeb.) | D13: Mischfaktor: | E13: =E11*E12+F11*F12 -> 335 | H13: 9 | I13: 0.55 | K13: 2030 | L13: 1 | M13: 0.9 | O13: 20 | P13: 0.01171671396 | Q13: 0.06273160527 | R13: 0.1154900348 | S13: 506
H14: 10 | I14: 0.55 | K14: 2031 | L14: 1 | M14: 0.91 | O14: 21 | P14: 0.01196419647 | Q14: 0.06362113876 | R14: 0.1157265055 | S14: 494
A15: Aufschubzeit | B15: =MAX(Eingabe!C10-Eingabe!C9,0) -> 57 | D15: Beitragsgarantie gewünscht? | H15: 11 | I15: 0.54 | K15: 2032 | L15: 1 | M15: 0.92 | O15: 22 | P15: 0.01109280733 | Q15: 0.06467557524 | R15: 0.1148931134 | S15: 482
D16: Nein | F16: 1 | H16: 12 | I16: 0.54 | K16: 2033 | L16: 1 | M16: 0.93 | O16: 23 | P16: 0.01064474798 | Q16: 0.0658703495 | R16: 0.112934786 | S16: 470
A17: Kosten eines Vertrages | D17: Ja | E17: Kosten: | F17: 0.3 | H17: 13 | I17: 0.53 | K17: 2034 | L17: 1 | M17: 0.94 | O17: 24 | P17: 0.01404296289 | Q17: 0.06714434679 | R17: 0.1108562459 | S17: 458
A18: =B15 -> 57 | B18: =IF(A18<10,B19,VLOOKUP(A18,A19:B59,2)) -> 0.0013 | H18: 14 | I18: 0.53 | K18: 2035 | L18: 1 | M18: 0.95 | O18: 25 | P18: 0.01863220402 | Q18: 0.0683795815 | R18: 0.1089021746 | S18: 446
A19: 10 | B19: 0.029 | D19: Riester Zulagen | H19: 15 | I19: 0.52 | K19: 2036 | L19: 1 | M19: 0.96 | O19: 26 | P19: 0.0266911873 | Q19: 0.0695015431 | R19: 0.1067955856 | S19: 434
A20: =A19+1 -> 11 | B20: 0.027 | D20: Kinder vor 2008 | E20: 185 | H20: 16 | I20: 0.52 | K20: 2037 | L20: 1 | M20: 0.97 | O20: 27 | P20: 0.03926315805 | Q20: 0.07032000141 | R20: 0.1050981208 | S20: 422
A21: =A20+1 -> 12 | B21: 0.0235 | D21: Kinder nach 2008 | E21: 300 | H21: 17 | I21: 0.51 | K21: 2038 | L21: 1 | M21: 0.98 | O21: 28 | P21: 0.04709812639 | Q21: 0.07086975979 | R21: 0.1036554417 | S21: 410
A22: 13 | B22: 0.0205 | D22: Grundzulage | E22: 175 | F22: geändert in 2018 | H22: 18 | I22: 0.51 | K22: 2039 | L22: 1 | M22: 0.99 | O22: 29 | P22: 0.04834848027 | Q22: 0.07130239 | R22: 0.1019561101 | S22: 398
A23: 14 | B23: 0.019 | H23: 19 | I23: 0.5 | K23: 2040 | L23: 1 | M23: 1 | O23: 30 | P23: 0.05156658958 | Q23: 0.07166459794 | R23: 0.09958851868 | S23: 386
A24: 15 | B24: 0.017 | D24: Max. Rendite bei Beitragsgarantie | E24: 0.02 | H24: 20 | I24: 0.5 | K24: 2041 | L24: 1 | M24: 1 | O24: 31 | P24: 0.05441426805 | Q24: 0.07191128551 | R24: 0.09756280072 | S24: 374
A25: 16 | B25: 0.015 | H25: 21 | I25: 0.49 | K25: 2042 | L25: 1 | M25: 1 | O25: 32 | P25: 0.05315271503 | Q25: 0.07215698128 | R25: 0.09558940077 | S25: 362
A26: 17 | B26: 0.014 | H26: 22 | I26: 0.49 | K26: 2043 | L26: 1 | M26: 1 | O26: 33 | P26: 0.05233088136 | Q26: 0.07246536006 | R26: 0.09326252846 | S26: 350
A27: 18 | B27: 0.013 | D27: BBG Knappschaft | F27: Beitragssatz | H27: 23 | I27: 0.48 | K27: 2044 | L27: 1 | M27: 1 | O27: 34 | P27: 0.05349495527 | Q27: 0.07279094087 | R27: 0.09109330903 | S27: 338
A28: 19 | B28: 0.0115 | D28: Basisrente | E28: 96000 | F28: 0.247 | H28: 24 | I28: 0.48 | K28: 2045 | L28: 1 | M28: 1 | O28: 35 | P28: 0.05482742869 | Q28: 0.07306670295 | R28: 0.08948433068 | S28: 326
A29: 20 | B29: 0.0115 | D29: 25639 | E29: =D29*B3 -> 51278 | H29: 25 | I29: 0.47 | O29: 36 | P29: 0.05427398977 | Q29: 0.07338133142 | R29: 0.08831392286 | S29: 314
A30: 21 | B30: 0.0105 | H30: 26 | I30: 0.47 | O30: 37 | P30: 0.05594827742 | Q30: 0.07371213842 | R30: 0.08670591444 | S30: 302
A31: 22 | B31: 0.01 | H31: 27 | I31: 0.46 | O31: 38 | P31: 0.06049676429 | Q31: 0.07393571651 | R31: 0.08500098995 | S31: 290
A32: 23 | B32: 0.0095 | D32: Notwendiges Kapital Ruhestandsplanung | H32: 28 | I32: 0.45 | O32: 39 | P32: 0.06676598991 | Q32: 0.07390524753 | R32: 0.08343976304 | S32: 278
A33: 24 | B33: 0.009 | D33: Lücke | E33: Kapital mit Faktor aus Eingabe | H33: 29 | I33: 0.45 | O33: 40 | P33: 0.0674803285 | Q33: 0.07359318657 | R33: 0.08221025786 | S33: 266
A34: 25 | B34: 0.008 | D34: =Ruhestandsplanung!E8-'Ruhestandsplanung Berechnung'!AI5 -> -1928.376196 | E34: =D34*E13*(1+IF('Ruhestandsplanung Berechnung'!AU5=0,0,'Ruhestandsplanung Berechnung'!AY5)) -> -646006.0256 | F34: nur Lücke | H34: 30 | I34: 0.44 | O34: 41 | P34: 0.06680188107 | Q34: 0.07299002831 | R34: 0.08061831882 | S34: 254
A35: 26 | B35: 0.0075 | E35: ='Ruhestandsplanung Berechnung'!AS35 -> -170703.281 | F35: zusätzlich dyn. Lücke | H35: 31 | I35: 0.44 | O35: 42 | P35: 0.06586122816 | Q35: 0.07211261181 | R35: 0.07895309691 | S35: 242
A36: 27 | B36: 0.007 | D36: Steueranteil | H36: 32 | I36: 0.43 | O36: 43 | P36: 0.06492318942 | Q36: 0.07113435083 | R36: 0.07691167118 | S36: 230
A37: 28 | B37: 0.0065 | H37: 33 | I37: 0.42 | O37: 44 | P37: 0.0642564324 | Q37: 0.0702567146 | R37: 0.07523788886 | S37: 218
A38: 29 | B38: 0.0065 | H38: 34 | I38: 0.42 | O38: 45 | P38: 0.06338421514 | Q38: 0.06954872217 | R38: 0.07517566157 | S38: 206
A39: 30 | B39: 0.006 | H39: 35 | I39: 0.41 | O39: 46 | P39: 0.06229670108 | Q39: 0.06905635224 | R39: 0.07461991933 | S39: 194
A40: 31 | B40: 0.006 | H40: 36 | I40: 0.4 | O40: 47 | P40: 0.06161038296 | Q40: 0.06881439523 | R40: 0.07395353915 | S40: 182
A41: 32 | B41: 0.0055 | H41: 37 | I41: 0.4 | O41: 48 | P41: 0.06319017543 | Q41: 0.06859379722 | R41: 0.07332265943 | S41: 170
A42: =A41+1 -> 33 | B42: 0.005 | H42: 38 | I42: 0.39 | O42: 49 | P42: 0.06369050038 | Q42: 0.06818335751 | R42: 0.07254075411 | S42: 158
A43: 34 | B43: 0.005 | H43: 39 | I43: 0.38 | O43: 50 | P43: 0.06301522952 | Q43: 0.06775267587 | R43: 0.07180926822 | S43: 146
A44: 35 | B44: 0.0045 | H44: 40 | I44: 0.38 | O44: 51 | P44: 0.06255564144 | Q44: 0.06735706279 | R44: 0.07122756966 | S44: 134
A45: 36 | B45: 0.0044 | H45: 41 | I45: 0.37 | O45: 52 | P45: 0.06172380953 | Q45: 0.06699477468 | R45: 0.07058201237 | S45: 122
A46: 37 | B46: 0.0044 | H46: 42 | I46: 0.36 | O46: 53 | P46: 0.06091987542 | Q46: 0.06680831233 | R46: 0.07001894983 | S46: 110
A47: =A46+1 -> 38 | B47: 0.0043 | H47: 43 | I47: 0.35 | O47: 54 | P47: 0.06056254867 | Q47: 0.06689082035 | R47: 0.06935720244 | S47: 98
A48: 39 | B48: 0.0043 | H48: 44 | I48: 0.35 | O48: 55 | P48: 0.0624224638 | Q48: 0.06697088209 | R48: 0.06877868033 | S48: 86
A49: =A48+1 -> 40 | B49: 0.0042 | H49: 45 | I49: 0.34 | O49: 56 | P49: 0.06380301591 | Q49: 0.0668743771 | R49: 0.06838120015 | S49: 74
A50: 41 | B50: 0.004 | H50: 46 | I50: 0.33 | O50: 57 | P50: 0.06415946419 | Q50: 0.06669976594 | R50: 0.06776790989 | S50: 62
A51: 42 | B51: 0.0036 | H51: 47 | I51: 0.33 | O51: 58 | P51: 0.06530764056 | Q51: 0.06644608485 | R51: 0.06710008218 | S51: 50
A52: 43 | B52: 0.0032 | H52: 48 | I52: 0.32 | O52: 59 | P52: 0.06571007077 | Q52: 0.06594865491 | R52: 0.06658817785 | S52: 38
A53: 44 | B53: 0.0028 | H53: 49 | I53: 0.31 | O53: 60 | P53: 0.06496028096 | Q53: 0.0653106031 | R53: 0.066028009 | S53: 26
A54: 45 | B54: 0.0026 | H54: 50 | I54: 0.3 | O54: =Variablen!B15 -> 57 | P54: =VLOOKUP(O54,O3:S53,2,FALSE) -> 0.06415946419 | Q54: =VLOOKUP(O54,O3:S53,3,FALSE) -> 0.06669976594 | R54: =VLOOKUP(O54,O3:S53,4,FALSE) -> 0.06776790989 | S54: =VLOOKUP(O54,O3:S53,5,FALSE) -> 62
A55: 46 | B55: 0.0024 | H55: 51 | I55: 0.29
A56: 47 | B56: 0.0021 | H56: 52 | I56: 0.29
A57: 48 | B57: 0.0019 | H57: 53 | I57: 0.28
A58: 49 | B58: 0.0016 | H58: 54 | I58: 0.27
A59: =A58+1 -> 50 | B59: 0.0013 | H59: 55 | I59: 0.26
H60: 56 | I60: 0.26
H61: 57 | I61: 0.25
H62: 58 | I62: 0.24
H63: 59 | I63: 0.23
H64: 60 | I64: 0.22
H65: 61 | I65: 0.22
H66: 62 | I66: 0.21
H67: 63 | I67: 0.2
H68: 64 | I68: 0.19
H69: 65 | I69: 0.18
H70: 66 | I70: 0.18
H71: 67 | I71: 0.17
H72: 68 | I72: 0.16
H73: 69 | I73: 0.15
H74: 70 | I74: 0.15
H75: 71 | I75: 0.14
H76: 72 | I76: 0.13
H77: 73 | I77: 0.13
H78: 74 | I78: 0.12
H79: 75 | I79: 0.11
H80: 76 | I80: 0.1
H81: 77 | I81: 0.1
H82: 78 | I82: 0.09
H83: 79 | I83: 0.09
H84: 80 | I84: 0.08
H85: 81 | I85: 0.07
H86: 82 | I86: 0.07
H87: 83 | I87: 0.06
H88: 84 | I88: 0.06
H89: 85 | I89: 0.05
H90: 86 | I90: 0.05
H91: 87 | I91: 0.05
H92: 88 | I92: 0.04
H93: 89 | I93: 0.04
H94: 90 | I94: 0.04
H95: 91 | I95: 0.04
H96: 92 | I96: 0.03
H97: 93 | I97: 0.03
H98: 94 | I98: 0.02
H99: 95 | I99: 0.02
H100: 96 | I100: 0.02
H101: 97 | I101: 0.01
H102: 98 | I102: 0.01
H103: 99 | I103: 0.01
H104: 100 | I104: 0.01

Sheet Hilfe (hidden)
A1: Berechnung Einkommensteuer | D1: Grafik Einkommen
A2: Renteneintritt im Jahr | B2: =Variablen!B1+Variablen!B15 -> 2079 | D2: =Eingabe!A13 -> Wunscheinkommen im Ruhestand (Brutto) ca. | E2: =Eingabe!E13 -> 0
A3: Spitzensteuersatz im Alter | B3: =steuer(Variablen!B3,Eingabe!G10)-steuer(Variablen!B3,Eingabe!G10-1) -> 0.2533037006 | D3: GRV / Versorgungswerk | E3: =Eingabe!E16 -> 2000
D4: =Eingabe!A17 -> Basisrente (Brutto) | E4: =Eingabe!E17 -> 0
A5: Einkommensart | B5: Steuerpflichtig | D5: =Eingabe!A18 -> Riesterrente (Brutto) | E5: =Eingabe!E18 -> 0
A6: =Eingabe!A16 -> Gesetzliche Rente / Versorgungswerk (Brutto) | B6: =Eingabe!E16*Variablen!$M$3 -> 2000 | D6: bAV | E6: =Eingabe!E19 -> 0
A7: =Eingabe!A17 -> Basisrente (Brutto) | B7: =Eingabe!E17*Variablen!$M$3 -> 0 | D7: =Eingabe!A20 -> Mieteinkünfte (Brutto) | E7: =Eingabe!E20 -> 0
A8: =Eingabe!A18 -> Riesterrente (Brutto) | B8: =Eingabe!E18 -> 0 | D8: =Eingabe!A21 -> Sonstige Renten m. Ertragsanteil (Brutto) | E8: =Eingabe!E21 -> 0
A9: =Eingabe!A19 -> betriebliche Altersversorgung (Brutto) | B9: =Eingabe!E19 -> 0 | D9: Rente aus Kapital | E9: =Eingabe!E25 -> 0
A10: =Eingabe!A20 -> Mieteinkünfte (Brutto) | B10: =Eingabe!E20 -> 0 | D10: Rentenlücke | E10: =Eingabe!E30 -> 0
A11: =Eingabe!A21 -> Sonstige Renten m. Ertragsanteil (Brutto) | B11: =Eingabe!E21*Variablen!I2 -> 0
A12: Sonstiges Vermögen (mit Ertragsanteil) | B12: =Eingabe!E25*Variablen!I2 -> 0
A13: Gesamt Steuerpflichtig p.a. | B13: =SUM(B6:B12)*12 -> 24000 | C13: Für die Steuerberechnung
A14: Steuer | B14: =steuer(Variablen!B3,Hilfe!B13) -> 859.4856511
A15: Nettoeinkommen mtl. | B15: =((Eingabe!E16+Eingabe!E17+Eingabe!E18+Eingabe!E19+Eingabe!E20+Eingabe!E21+Eingabe!E25)*12-B14)/12 -> 1928.376196 | C15: (Wichtig: Brutto von Steuer abziehen!)
A16: Rentenlücke (netto) | B16: =MAX(B29-B15,0) -> 0
A17: Einkommen | B17: =Eingabe!G10 -> 36000 | D17: Bruttoeinkommen | E17: =IF(Variablen!B6=1,Eingabe!G10,Hilfe!B22) -> 36000
A18: Brutto | B18: =IF(Variablen!B6=1,B17,0) -> 36000
A19: Netto | B19: =IF(Variablen!B6=1,Hilfe!B17-steuer(Variablen!B3,Hilfe!B17),0) -> 32497.43006
D20: Druck
A21: Zielwertsuche aus Netto mach Brutto | D21: Wieviel Sicherheit | E21: TRUE
A22: Bruttogehalt | B22: 40721.67615 | D22: Schichtennavigator | E22: TRUE
A23: Steuer | B23: =steuer(Variablen!B3,Hilfe!B22) -> 4721.676153 | D23: Inflation | E23: FALSE
A24: Nettogehalt | B24: =B22-B23 -> 36000 | D24: Ruhestandsplanung | E24: FALSE
D25: Risikostufe | E25: TRUE
A26: Vorgabe Bruttorente
A27: Wunschrente Brutto | B27: =Eingabe!E13 -> 0 | D27: Bruttoeinkommen | E27: =IF(Variablen!B6=1,Hilfe!B18,Hilfe!B22) -> 36000
A28: Steuer Brutto | B28: =steuer(Variablen!B3,Hilfe!B27*12)/12 -> 0 | D28: Nettoeinkommen | E28: =IF(Variablen!B6=1,B19,B24) -> 32497.43006
A29: Wunschrente Netto | B29: =B27-B28 -> 0
A31: Vorgabe Nettorente
A32: Wunschrente Brutto | B32: 3000.036295
A33: Steuer Brutto | B33: =steuer(Variablen!B3,Hilfe!B32*12)/12 -> 291.890112
A34: Wunschrente Netto | B34: =B32-B33 -> 2708.146183

Sheet Sicherheit
A5: =IF(YEAR(TODAY())=Variablen!B1,"Wieviel Sicherheit kann ich mir leisten?","Das Tool ist abgelaufen!") -> Wieviel Sicherheit kann ich mir leisten?
A6: Eingabe
A8: Wunscheinkommen (Netto) | E8: =Eingabe!E14 -> 0
A9: Rentenlücke (Netto) | E9: =MAX(Eingabe!E31,0) -> 0
A10: Spardauer | E10: =Variablen!B15 -> 57
G11: ="Der Kapitalbedarf wird entsprechend Ihrer Rentenvorgabe berechnet! ["&Variablen!B10&"]" -> Der Kapitalbedarf wird entsprechend Ihrer Rentenvorgabe berechnet! [Mit Garantie (klassisch)]
A12: Kapitalbedarf ca. | E12: =ROUND(E9*Variablen!E13/100,0)*100 -> 0
G13: Notwendiger Beitrag / Zins
A15: Zinsvorgabe (Berechnet wird der notwendige Beitrag) | E15: 0.02 | G15: =-PMT((E15-Eingabe!E33)/12,Variablen!B15*12,0,E12) -> 0
A17: ="Da Sie eine Rendite von "&FIXED(E15*100,2)&"% in der Ansparphase ansetzen, bedingt dies einen Beitrag von ca. "&FIXED(G15,0)&" EUR mtl.. Falls Sie dieses Kapital nicht haben, bleiben Ihnen zwei Möglichkeiten: 1) Das vorhandene Kapital wird volatiler verrentet, so dass die erwartete Rente steigt und die Lücke sinkt. 2)"&" Sie können den Beitrag vorgeben, der als Sparbeitrag in Frage kommt. Es wird dann die notwendige Rendite errechnet. Achtung: Eine Rendite über 9% p.a. ist bei einer Laufzeit von "&E10&" Jahren unrealistisch." -> Da Sie eine Rendite von 2,00% in der Ansparphase ansetzen, bedingt dies einen Beitrag von ca. 0 EUR mtl.. Falls Sie dieses Kapital nicht haben, bleiben Ihnen zwei Möglichkeiten: 1) Das vorhandene Kapital wird volatiler verrentet, so dass die erwartete Rente steigt und die Lücke sinkt. 2) Sie können den Beitrag vorgeben, der als Sparbeitrag in Frage kommt. Es wird dann die notwendige Rendite errechnet. Achtung: Eine Rendite über 9% p.a. ist bei einer Laufzeit von 57 Jahren unrealistisch.
A20: Beitragsvorgabe (Berechnet wird der notwendige Zins) | E20: 100 | G20: =MAX(0,RATE(E10*12,-E20,E12,0,1)*(-12))+Eingabe!E33 -> 
A22: ="Bei einem vorgegebenen Beitrag von "&E20&" EUR mtl. benötigen Sie eine Rendite / Zins in Höhe von "&FIXED(G20*100,2)&"%. "&IF(G20>Variablen!E24,"Diese Rendite ist mit einer Anlage mit Garantie / viel Sicherheit nicht realistisch.","")&"" -> 
A23: Das gegenwärtige Niedrigzinsumfeld lässt die meisten Finanzberater zur Basisberatung zurückkehren. Folgende Fragen sind dabei elementar: • Wann möchte der Sparer über sein Geld verfügen? (=> Rentenbeginn? => Dies bestimmt die Laufzeit!) • Wie hoch ist der Geldbedarf zum Rentenbeginn? (=> Rentenlücke? => Dies bestimmt das Ziel!) • Welchen Betrag kann der Sparer heute aufwenden? (=> Beitrag?) Mit diesen drei Vorgaben (Laufzeit / Rentenbeginn, Ziel / Rentenlücke, Beitrag), kann mit Hilfe reiner Mathematik (Zinseszinsformel einer Anlage) der notwendige Zins berechnet werden. Falls dann doch der Beitrag vorgegeben werden soll, wird der dann notwendige Zins / Rendite ermittelt.
A24: ="Die Rendite ist dabei ein Maß für das Anlagerisiko: In einem Niedrigzinsumfeld können sichere oder garantierte Anlagen meist weniger als "&Variablen!E24*100&"% p.a. erwirtschaften. Wird jedoch mehr als "&Variablen!E24*100&"% Rendite p.a. für die realistische Sparzielerreichung benötigt, muss ein höheres Anlagerisiko damit einhergehen. Letztlich muss sich der Sparer entscheiden: Mehr Risiko eingehen, Rentenerwartung senken oder mehr Beitrag leisten!" -> Die Rendite ist dabei ein Maß für das Anlagerisiko: In einem Niedrigzinsumfeld können sichere oder garantierte Anlagen meist weniger als 2% p.a. erwirtschaften. Wird jedoch mehr als 2% Rendite p.a. für die realistische Sparzielerreichung benötigt, muss ein höheres Anlagerisiko damit einhergehen. Letztlich muss sich der Sparer entscheiden: Mehr Risiko eingehen, Rentenerwartung senken oder mehr Beitrag leisten!
A25: ="ACHTUNG: In dieser Berechnung ist ein Kostensatz in Höhe von "&FIXED(Eingabe!E33*100,2)&"% eingeflossen. Die Inflation wurde nicht berücksichtigt. Dies kann aber umgesetzt werden, indem das Wunscheinkommen mittels ''Hilfsrechner'' an die Inflation angepasst wird." -> ACHTUNG: In dieser Berechnung ist ein Kostensatz in Höhe von 0,13% eingeflossen. Die Inflation wurde nicht berücksichtigt. Dies kann aber umgesetzt werden, indem das Wunscheinkommen mittels ''Hilfsrechner'' an die Inflation angepasst wird.
A26: Die Rendite ist dabei ein Maß für das Anlagerisiko: In einem Niedrigzinsumfeld können sichere oder garantierte Anlagen meist weniger als 3% p.a. erwirtschaften. Wird jedoch mehr als 3% Rendite p.a. für die realistische Sparzielerreichung benötigt, muss ein höheres Anlagerisiko damit einhergehen. Letztlich muss sich der Sparer entscheiden: Mehr Risiko eingehen oder mehr Beitrag leisten!
A28: Quelle: Eigene Berechnungen auf Basis Ihrer Angaben und der gesetzlichen Daten. | H28: ="1/"&Variablen!B1&"" -> 1/2022
A29: Für die Richtigkeit der Angaben kann keine Gewähr übernommen werden, denn Programm- und Berechnungsfehler sind trotz sorgfältigstem Vorgehen nicht ausgeschlossen.

Sheet Schichtennavigator (hidden)
A5: =IF(YEAR(TODAY())=Variablen!B1,"Schichtennavigator","Das Tool ist abgelaufen!") -> Schichtennavigator
A6: =IF(YEAR(TODAY())=Variablen!B1," (Rentenvergleich nach Steuer) ","Das Tool ist abgelaufen!") -> (Rentenvergleich nach Steuer)
A8: Eingabe
C10: =Eingabe!A9 -> Alter | E10: =Eingabe!C9 -> 10
C11: =Eingabe!A10 -> Beginn Ruhestand | E11: =Eingabe!C10 -> 67
C12: Bruttoeinkommen | E12: =ROUND(IF(Variablen!B6=1,Eingabe!G10,Hilfe!B22)/10,0)*10 -> 36000
A13: =Eingabe!A14 -> Wunscheinkommen im Ruhestand (Netto) ca. | E13: =Eingabe!E14 -> 0 | G13: =Eingabe!E14+Eingabe!E30 -> 0 | H13: (inkl. KV)
A14: =Eingabe!A31 -> Rentenlücke (Netto) inkl. KV ca. | E14: =Eingabe!E31 -> 0 | G14: (abzusichern durch neuen Sparvertrag)
C15: Kinder vor 2008 | E15: 0
C16: Kinder ab 2008 | E16: 0
C17: Zins vor Kosten | E17: =Sicherheit!G20 -> 
A19: Beitragsgarantie in der Ansparphase gewünscht?
A21: Verrentungsart

Sheet Inflation (hidden)
B11: angenommene Inflation | D11: 0.02 | F11: =IF(OR(Eingabe!E13=0,Eingabe!E14=0),"Bitte Wunscheinkommen unter Eingabe eingeben!",IF(ROUND('Inflation Berechnung'!G12/10,0)*10=ROUND('Inflation Berechnung'!G13/10,0)*10,"","''Berechnen'' drücken!")) -> Bitte Wunscheinkommen unter Eingabe eingeben!
A12: gewünschte Dynamik (teildynamischer Beitrag) | D12: =D11 -> 0.02
A13: Inflation (von lat. inflatio „Schwellung“, „Anschwellen“) bezeichnet in der Volkswirtschaftslehre eine allgemeine und anhaltende Erhöhung des Preisniveaus von Gütern und Dienstleistungen (Teuerung), gleichbedeutend mit einer Minderung der Kaufkraft des Geldes. (Zitat Wikipedia)
A14: Die Inflation bezieht sich auf einen sogenannten Warenkorb, in welchen Güter und Dienstleistungen des allgemeinen Lebens bewertet und eingepreist sind.
A15: Auf der Internetseite "www.destatis.de" steht ein individueller Inflationsrechner zur Verfügung. Dort kann über die Eingabe der persönlichen Konsumgewohnheiten die individuelle Inflation berechnet werden.
A16: Generell sollte bei der Schlißung Ihrer Rentenlücke oder bei dem notwendigen Kapital für Ihre Rente die Inflation berücksichtigt werden. Dies kann über folgende Gestaltung der Beitragszahlung erfolgen: | G16: 1.267639267e+22
E17: =Schichtennavigator!E17 -> 
E18: =E14 -> 0
A20: 1) Konstanter Beitrag
A21: ="Mit der vorgegebenen Inflation wird der Kapitalbedarf für die Zukunft berechnet. Wenn dieser Kapitalbedarf bekannt ist, kann mittels Zinseszinsformel mit den Größen ''Laufzeit'' ("&'Inflation Berechnung'!B2&" Jahre) und ''Zins'' (siehe Schichtennavigator) der notwendige Beitrag errechnet werden." -> Mit der vorgegebenen Inflation wird der Kapitalbedarf für die Zukunft berechnet. Wenn dieser Kapitalbedarf bekannt ist, kann mittels Zinseszinsformel mit den Größen ''Laufzeit'' (57 Jahre) und ''Zins'' (siehe Schichtennavigator) der notwendige Beitrag errechnet werden.
D23: ='Inflation Berechnung'!B11 -> Basisrente | E23: ='Inflation Berechnung'!C11 -> Riesterrente | F23: ='Inflation Berechnung'!D11 -> Privatrente
A24: ='Inflation Berechnung'!A12 -> Kapitalbedarf ohne Inflation | D24: ='Inflation Berechnung'!B12 -> 335000 | E24: ='Inflation Berechnung'!C12 -> 335000 | F24: ='Inflation Berechnung'!D12 -> 270000
A25: ='Inflation Berechnung'!A13 -> Zins | D25: ='Inflation Berechnung'!B13 ->  | E25: ='Inflation Berechnung'!C13 ->  | F25: ='Inflation Berechnung'!D13 -> 
A26: ='Inflation Berechnung'!A14 -> Beitrag (Brutto) ohne Inflation mtl. | D26: ='Inflation Berechnung'!B14 ->  | E26: ='Inflation Berechnung'!C14 ->  | F26: ='Inflation Berechnung'!D14 -> 
A28: ='Inflation Berechnung'!A16 -> Kapitalbedarf mit Inflation | D28: ='Inflation Berechnung'!B16 -> 1035749.178 | E28: ='Inflation Berechnung'!C16 -> 1035749.178 | F28: ='Inflation Berechnung'!D16 -> 834782.9199
A29: ='Inflation Berechnung'!A17 -> Beitrag (Brutto) mit Inflation mtl. | D29: ='Inflation Berechnung'!B17 ->  | E29: ='Inflation Berechnung'!C17 ->  | F29: ='Inflation Berechnung'!D17 -> 
A31: ="Dies bedeutet, dass inflationsbereinigt (angenommene Inflation: "&FIXED(D11*100,2)&"% p.a.) in "&Variablen!B15&" Jahren ein Betrag von "&FIXED(D28,0)&" EUR oder "&FIXED(E28,0)&" EUR oder "&FIXED(F28,0)&" EUR benötigt wird, um die Lücke in Höhe von "&FIXED(Eingabe!E30,0)&" EUR zu schließen. Je nachdem welchen Weg Sie nutzen wird ein konstanter Beitrag von "&FIXED(D29,0)&" EUR mtl. oder "&FIXED(E29,0)&" EUR mtl. oder "&FIXED(F29,0)&" EUR mtl. fällig." -> 
A32: ="Falls Ihnen der Beitrag zu hoch ist, könnten Sie einen teildynamischen Beitrag wählen. Dies bedeutet Sie dynamisieren den Beitrag in Höhe der Inflation ("&D11*100&"%) und Beitrag steigt jedes Jahr leicht an." -> Falls Ihnen der Beitrag zu hoch ist, könnten Sie einen teildynamischen Beitrag wählen. Dies bedeutet Sie dynamisieren den Beitrag in Höhe der Inflation (2%) und Beitrag steigt jedes Jahr leicht an.
A34: 2) Teildynamischer Beitrag
A35: ="Die EZB hat als Ziel eine Inflation in Höhe von knapp 2% p.a.. Bei dieser Herangehensweise könnte deswegen geplant werden, den Beitrag jedes Jahr um ca. "&D12*100&"% p.a. (oder jedes zweite Jahr um ca. "&D12*200&"% p.a.) zu erhöhen. "&"Falls die 2% p.a. Inflation wirklich eintritt, würde die Dynamik aber für die Schließung der Lücke nicht reichen. Im Erstbeitrag ist deswegen bereits ein ''Sicherheitspuffer'' berücksichtigt, damit künftige Beitragserhöhungen moderater ausfallen können." -> Die EZB hat als Ziel eine Inflation in Höhe von knapp 2% p.a.. Bei dieser Herangehensweise könnte deswegen geplant werden, den Beitrag jedes Jahr um ca. 2% p.a. (oder jedes zweite Jahr um ca. 4% p.a.) zu erhöhen. Falls die 2% p.a. Inflation wirklich eintritt, würde die Dynamik aber für die Schließung der Lücke nicht reichen. Im Erstbeitrag ist deswegen bereits ein ''Sicherheitspuffer'' berücksichtigt, damit künftige Beitragserhöhungen moderater ausfallen können.
D36: =D23 -> Basisrente | E36: =E23 -> Riesterrente | F36: Privatrente
A37: =A24 -> Kapitalbedarf ohne Inflation | D37: =D24 -> 335000 | E37: =E24 -> 335000 | F37: 270000
A38: =A25 -> Zins | D38: =D25 -> 
A39: Beitrag (Brutto) ohne Inflation mtl.
A41: Dynamik | D41: =D12 -> 0.02 | E41: =D41 -> 0.02 | F41: =E41 -> 0.02
A42: Anfangsbeitrag (Brutto) | D42: ='Inflation Berechnung'!G15 -> 241.5029191 | E42: ='Inflation Berechnung'!I15 -> 3059.499717 | F42: ='Inflation Berechnung'!K15 -> 193.9232395
A43: Endbeitrag (Brutto) | D43: ='Inflation Berechnung'!G75 -> 732.0352649 | E43: ='Inflation Berechnung'!I75 -> 9273.849338 | F43: ='Inflation Berechnung'!K75 -> 587.8133918
A46: 3) Dynamischer Beitrag
A47: Bei dieser Herangehensweise wird davon ausgegangen, dass der Beitrag jährlich entsprechend der tatsächlichen Inflation angepasst wird. Die Inflation wird beim Anfangsbeitrag nicht berücksichtigt! ACHTUNG: Die Beitragsanpassung muss größer als die Inflationsrate sein!
D49: =D36 -> Basisrente | E49: =E36 -> Riesterrente | F49: Privatrente
A50: =A37 -> Kapitalbedarf ohne Inflation | D50: =D37 -> 335000 | E50: =E37 -> 335000 | F50: 270000
A51: =A38 -> Zins | D51: =D38 -> 
A52: Beitrag (Brutto) ohne Inflation mtl. | D52: =D39 -> 
A54: Dynamik p.a. | D54: ='Inflation Berechnung'!O8 -> 0.1072642673 | E54: ='Inflation Berechnung'!Q8 -> 0.04154499622 | F54: ='Inflation Berechnung'!S8 -> 0.1072642673
A55: Inflation p.a. | D55: ='Inflation Berechnung'!B1 -> 0.02 | E55: =D55 -> 0.02 | F55: =D55 -> 0.02
A56: Endbeitrag (Brutto) mtl. | D56: ='Inflation Berechnung'!O75 ->  | E56: ='Inflation Berechnung'!Q75 ->  | F56: ='Inflation Berechnung'!S75 -> 
A58: Die verschiendenen Beitragsverläufe sind in der folgenden Grafik am Beispiel der Privatrente aufgezeigt.
G60: =F56 -> 
G62: =F43 -> 587.8133918
G64: =F29 -> 
A67: ='Inflation Berechnung'!B21 -> 
A69: ='Inflation Berechnung'!C21 -> 193.9232395
A71: ='Inflation Berechnung'!D21 -> 
A75: Quelle: Eigene Berechnungen auf Basis Ihrer Angaben und der gesetzlichen Daten. | F75: ="1 / "&Variablen!B1&"" -> 1 / 2022
A76: Für die Richtigkeit der Angaben kann keine Gewähr übernommen werden, denn Programm- und Berechnungsfehler sind trotz sorgfältigstem Vorgehen nicht ausgeschlossen.

Sheet Inflation Berechnung (hidden)
A1: Inflation | B1: =Inflation!D11 -> 0.02
A2: Laufzeit | B2: =Variablen!B15 -> 57
A3: gew. Dynamik | B3: =Inflation!D12 -> 0.02
N8: Dynamik: | O8: 0.1072642673 | Q8: 0.04154499622 | S8: 0.1072642673
N9: Keine negative Dynamik | O9: =MAX(O8,0) -> 0.1072642673 | Q9: =MAX(Q8,0) -> 0.04154499622 | S9: =MAX(S8,0) -> 0.1072642673
A10: Konstanter Beitrag | F10: Teildynamischer Beitrag | N10: Dynamischer Beitrag
B11: Basisrente | C11: Riesterrente | D11: Privatrente | G11: Basisrente | I11: Riesterrente | K11: Privatrente | O11: Basisrente | Q11: Riesterrente | S11: Privatrente
A12: Kapitalbedarf ohne Inflation | B12: ='Schichtennavigator Ausgabe'!C20 -> 335000 | C12: ='Schichtennavigator Ausgabe'!D20 -> 335000 | D12: ='Schichtennavigator Ausgabe'!E20 -> 270000 | F12: Kapitalbedarf ohne Inflation | G12: =B16 -> 1035749.178 | J12: =C16 -> 1035749.178 | L12: =D16 -> 834782.9199 | N12: Kapitalbedarf ohne Inflation | O12: =G12 -> 1035749.178 | R12: =J12 -> 1035749.178 | T12: 834782.9199
A13: Zins | B13: ='Schichtennavigator Ausgabe'!C19 ->  | C13: ='Schichtennavigator Ausgabe'!D19 ->  | D13: ='Schichtennavigator Ausgabe'!E19 ->  | F13: Zielwertsuche | G13: =VLOOKUP(B2,F15:L74,3) ->  | J13: =VLOOKUP(B2,F15:L74,5) ->  | L13: =VLOOKUP(B2,F15:L74,7) ->  | N13: Zielwertsuche | O13: =VLOOKUP(B2,N15:T74,3) ->  | R13: =VLOOKUP(B2,N15:T74,5) ->  | T13: =VLOOKUP(B2,N15:T74,7) -> 
A14: Beitrag (Brutto) ohne Inflation mtl. | B14: ='Schichtennavigator Ausgabe'!C18 ->  | C14: ='Schichtennavigator Ausgabe'!D18 ->  | D14: ='Schichtennavigator Ausgabe'!E18 ->  | F14: Laufzeit | G14: Beitrag | H14: Gesamt Basisrente | I14: Beitrag Riester | J14: Gesamt Riesterrente | K14: Beitrag Privat | L14: Gesamt Privatrente | N14: Laufzeit | O14: Beitrag | P14: Gesamt Basisrente | Q14: Beitrag Riester | R14: Gesamt Riesterrente | S14: Beitrag Privat | T14: Gesamt Privatrente
F15: 1 | G15: 241.5029191 | H15: =G15*12*(1+$B$13) ->  | I15: 3059.499717 | J15: =I15*12*(1+$C$13) ->  | K15: 193.9232395 | L15: =K15*12*(1+$D$13) ->  | N15: 1 | O15: =B14 ->  | P15: =O15*12*(1+$B$13) ->  | Q15: =C14 ->  | R15: =Q15*12*(1+$C$13) ->  | S15: =D14 ->  | T15: =S15*12*(1+$D$13) -> 
A16: Kapitalbedarf mit Inflation | B16: =B12*(1+$B$1)^$B$2 -> 1035749.178 | C16: =C12*(1+$B$1)^$B$2 -> 1035749.178 | D16: 834782.9199 | F16: =F15+1 -> 2 | G16: =G15*(1+$B$3) -> 246.3329775 | H16: =(H15+G16*12)*(1+$B$13) ->  | I16: =I15*(1+$B$1) -> 3120.689712 | J16: =(J15+I16*12)*(1+$C$13) ->  | K16: =K15*(1+$B$1) -> 197.8017043 | L16: =(L15+K16*12)*(1+$D$13) ->  | N16: =N15+1 -> 2 | O16: =O15*(1+$O$9) ->  | P16: =(P15+O16*12)*(1+$B$13) ->  | Q16: =MAX(Q15*(1+$Q$9),0) ->  | R16: =(R15+Q16*12)*(1+$C$13) ->  | S16: =S15*(1+$S$9) ->  | T16: =(T15+S16*12)*(1+$D$13) -> 
A17: Beitrag (Brutto) mit Inflation mtl. | B17: =-PMT(B13/12,$B$2*12,0,B16) ->  | C17: =-PMT(C13/12,$B$2*12,0,C16) ->  | F17: =F16+1 -> 3 | G17: =G16*(1+$B$3) -> 251.259637 | H17: =(H16+G17*12)*(1+$B$13) ->  | I17: =I16*(1+$B$1) -> 3183.103506 | J17: =(J16+I17*12)*(1+$C$13) ->  | K17: =K16*(1+$B$1) -> 201.7577384 | L17: =(L16+K17*12)*(1+$D$13) ->  | N17: =N16+1 -> 3 | O17: =O16*(1+$O$9) ->  | P17: =(P16+O17*12)*(1+$B$13) ->  | Q17: =MAX(Q16*(1+$Q$9),0) ->  | R17: =(R16+Q17*12)*(1+$C$13) ->  | S17: =S16*(1+$S$9) ->  | T17: =(T16+S17*12)*(1+$D$13) -> 
F18: 4 | G18: =G17*(1+$B$3) -> 256.2848298 | I18: 3246.765576 | K18: 205.7928932 | N18: 4
A19: Grafik | F19: 5 | G19: 261.4105264 | I19: 3311.700888 | K19: 209.908751 | N19: 5
A20: Alter | B20: Konstanter Beitrag | C20: Teildynamischer Beitrag | D20: Dynamischer Beitrag | F20: 6 | G20: 266.6387369 | I20: 3377.934905 | K20: 214.106926 | N20: 6
A21: =Eingabe!C9 -> 10 | B21: =D17 ->  | C21: =K15 -> 193.9232395 | D21: =S15 ->  | F21: 7 | G21: 271.9715116 | I21: 3445.493604 | K21: 218.3890646 | N21: 7
A22: =IF(A21+1>Eingabe!$C$10,#N/A,A21+1) -> 11 | B22: =IF(A22>Eingabe!$C$10,#N/A,B21) ->  | C22: =IF(A22>Eingabe!$C$10,#N/A,K16) -> 197.8017043 | D22: =IF(A22>Eingabe!$C$10,#N/A,S16) ->  | F22: 8 | G22: 277.4109419 | I22: 3514.403476 | K22: 222.7568458 | N22: 8
A23: =IF(A22+1>Eingabe!$C$10,#N/A,A22+1) -> 12 | B23: =IF(A23>Eingabe!$C$10,#N/A,B22) ->  | C23: =IF(A23>Eingabe!$C$10,#N/A,K17) -> 201.7577384 | D23: =IF(A23>Eingabe!$C$10,#N/A,S17) ->  | F23: 9 | G23: 282.9591607 | I23: 3584.691545 | K23: 227.2119828 | N23: 9
A24: =IF(A23+1>Eingabe!$C$10,#N/A,A23+1) -> 13 | B24: =IF(A24>Eingabe!$C$10,#N/A,B23) ->  | C24: =IF(A24>Eingabe!$C$10,#N/A,K18) -> 205.7928932 | D24: =IF(A24>Eingabe!$C$10,#N/A,S18) ->  | F24: 10 | G24: 288.6183439 | I24: 3656.385376 | K24: 231.7562224 | N24: 10
A25: =IF(A24+1>Eingabe!$C$10,#N/A,A24+1) -> 14 | B25: =IF(A25>Eingabe!$C$10,#N/A,B24) ->  | C25: =IF(A25>Eingabe!$C$10,#N/A,K19) -> 209.908751 | D25: =IF(A25>Eingabe!$C$10,#N/A,S19) ->  | F25: 11 | G25: 294.3907108 | I25: 3729.513084 | K25: 236.3913469 | N25: 11
A26: =IF(A25+1>Eingabe!$C$10,#N/A,A25+1) -> 15 | B26: =IF(A26>Eingabe!$C$10,#N/A,B25) ->  | C26: =IF(A26>Eingabe!$C$10,#N/A,K20) -> 214.106926 | D26: =IF(A26>Eingabe!$C$10,#N/A,S20) ->  | F26: 12 | G26: 300.278525 | I26: 3804.103345 | K26: 241.1191738 | N26: 12
A27: =IF(A26+1>Eingabe!$C$10,#N/A,A26+1) -> 16 | B27: =IF(A27>Eingabe!$C$10,#N/A,B26) ->  | C27: =IF(A27>Eingabe!$C$10,#N/A,K21) -> 218.3890646 | D27: =IF(A27>Eingabe!$C$10,#N/A,S21) ->  | F27: 13 | G27: 306.2840955 | I27: 3880.185412 | K27: 245.9415573 | N27: 13
A28: =IF(A27+1>Eingabe!$C$10,#N/A,A27+1) -> 17 | B28: =IF(A28>Eingabe!$C$10,#N/A,B27) ->  | C28: =IF(A28>Eingabe!$C$10,#N/A,K22) -> 222.7568458 | D28: =IF(A28>Eingabe!$C$10,#N/A,S22) ->  | F28: 14 | G28: 312.4097774 | I28: 3957.78912 | K28: 250.8603884 | N28: 14
A29: =IF(A28+1>Eingabe!$C$10,#N/A,A28+1) -> 18 | B29: =IF(A29>Eingabe!$C$10,#N/A,B28) ->  | C29: =IF(A29>Eingabe!$C$10,#N/A,K23) -> 227.2119828 | D29: =IF(A29>Eingabe!$C$10,#N/A,S23) ->  | F29: 15 | G29: 318.657973 | I29: 4036.944903 | K29: 255.8775962 | N29: 15
A30: =IF(A29+1>Eingabe!$C$10,#N/A,A29+1) -> 19 | B30: =IF(A30>Eingabe!$C$10,#N/A,B29) ->  | C30: =IF(A30>Eingabe!$C$10,#N/A,K24) -> 231.7562224 | D30: =IF(A30>Eingabe!$C$10,#N/A,S24) ->  | F30: 16 | G30: 325.0311324 | I30: 4117.683801 | K30: 260.9951481 | N30: 16
A31: =IF(A30+1>Eingabe!$C$10,#N/A,A30+1) -> 20 | B31: =IF(A31>Eingabe!$C$10,#N/A,B30) ->  | C31: =IF(A31>Eingabe!$C$10,#N/A,K25) -> 236.3913469 | D31: =IF(A31>Eingabe!$C$10,#N/A,S25) ->  | F31: 17 | G31: 331.5317551 | I31: 4200.037477 | K31: 266.2150511 | N31: 17
A32: =IF(A31+1>Eingabe!$C$10,#N/A,A31+1) -> 21 | B32: =IF(A32>Eingabe!$C$10,#N/A,B31) ->  | C32: =IF(A32>Eingabe!$C$10,#N/A,K26) -> 241.1191738 | D32: =IF(A32>Eingabe!$C$10,#N/A,S26) ->  | F32: 18 | G32: 338.1623902 | I32: 4284.038226 | K32: 271.5393521 | N32: 18
A33: =IF(A32+1>Eingabe!$C$10,#N/A,A32+1) -> 22 | B33: =IF(A33>Eingabe!$C$10,#N/A,B32) ->  | C33: =IF(A33>Eingabe!$C$10,#N/A,K27) -> 245.9415573 | D33: =IF(A33>Eingabe!$C$10,#N/A,S27) ->  | F33: 19 | G33: 344.925638 | I33: 4369.718991 | K33: 276.9701391 | N33: 19
A34: =IF(A33+1>Eingabe!$C$10,#N/A,A33+1) -> 23 | B34: =IF(A34>Eingabe!$C$10,#N/A,B33) ->  | C34: =IF(A34>Eingabe!$C$10,#N/A,K28) -> 250.8603884 | D34: =IF(A34>Eingabe!$C$10,#N/A,S28) ->  | F34: 20 | G34: 351.8241507 | I34: 4457.113371 | K34: 282.5095419 | N34: 20
A35: =IF(A34+1>Eingabe!$C$10,#N/A,A34+1) -> 24 | B35: =IF(A35>Eingabe!$C$10,#N/A,B34) ->  | C35: =IF(A35>Eingabe!$C$10,#N/A,K29) -> 255.8775962 | D35: =IF(A35>Eingabe!$C$10,#N/A,S29) ->  | F35: 21 | G35: 358.8606337 | I35: 4546.255638 | K35: 288.1597328 | N35: 21
A36: =IF(A35+1>Eingabe!$C$10,#N/A,A35+1) -> 25 | B36: =IF(A36>Eingabe!$C$10,#N/A,B35) ->  | C36: =IF(A36>Eingabe!$C$10,#N/A,K30) -> 260.9951481 | D36: =IF(A36>Eingabe!$C$10,#N/A,S30) ->  | F36: 22 | G36: 366.0378464 | I36: 4637.180751 | K36: 293.9229274 | N36: 22
A37: =IF(A36+1>Eingabe!$C$10,#N/A,A36+1) -> 26 | B37: =IF(A37>Eingabe!$C$10,#N/A,B36) ->  | C37: =IF(A37>Eingabe!$C$10,#N/A,K31) -> 266.2150511 | D37: =IF(A37>Eingabe!$C$10,#N/A,S31) ->  | F37: 23 | G37: 373.3586033 | I37: 4729.924366 | K37: 299.801386 | N37: 23
A38: =IF(A37+1>Eingabe!$C$10,#N/A,A37+1) -> 27 | B38: =IF(A38>Eingabe!$C$10,#N/A,B37) ->  | C38: =IF(A38>Eingabe!$C$10,#N/A,K32) -> 271.5393521 | D38: =IF(A38>Eingabe!$C$10,#N/A,S32) ->  | F38: 24 | G38: 380.8257754 | I38: 4824.522853 | K38: 305.7974137 | N38: 24
A39: =IF(A38+1>Eingabe!$C$10,#N/A,A38+1) -> 28 | B39: =IF(A39>Eingabe!$C$10,#N/A,B38) ->  | C39: =IF(A39>Eingabe!$C$10,#N/A,K33) -> 276.9701391 | D39: =IF(A39>Eingabe!$C$10,#N/A,S33) ->  | F39: 25 | G39: 388.4422909 | I39: 4921.01331 | K39: 311.913362 | N39: 25
A40: =IF(A39+1>Eingabe!$C$10,#N/A,A39+1) -> 29 | B40: =IF(A40>Eingabe!$C$10,#N/A,B39) ->  | C40: =IF(A40>Eingabe!$C$10,#N/A,K34) -> 282.5095419 | D40: =IF(A40>Eingabe!$C$10,#N/A,S34) ->  | F40: 26 | G40: 396.2111367 | I40: 5019.433577 | K40: 318.1516292 | N40: 26
A41: =IF(A40+1>Eingabe!$C$10,#N/A,A40+1) -> 30 | B41: =IF(A41>Eingabe!$C$10,#N/A,B40) ->  | C41: =IF(A41>Eingabe!$C$10,#N/A,K35) -> 288.1597328 | D41: =IF(A41>Eingabe!$C$10,#N/A,S35) ->  | F41: 27 | G41: 404.1353595 | I41: 5119.822248 | K41: 324.5146618 | N41: 27
A42: =IF(A41+1>Eingabe!$C$10,#N/A,A41+1) -> 31 | B42: =IF(A42>Eingabe!$C$10,#N/A,B41) ->  | C42: =IF(A42>Eingabe!$C$10,#N/A,K36) -> 293.9229274 | D42: =IF(A42>Eingabe!$C$10,#N/A,S36) ->  | F42: 28 | G42: =G41*(1+$B$1) -> 412.2180667 | I42: 5222.218693 | K42: 331.004955 | N42: 28
A43: =IF(A42+1>Eingabe!$C$10,#N/A,A42+1) -> 32 | B43: =IF(A43>Eingabe!$C$10,#N/A,B42) ->  | C43: =IF(A43>Eingabe!$C$10,#N/A,K37) -> 299.801386 | D43: =IF(A43>Eingabe!$C$10,#N/A,S37) ->  | F43: 29 | G43: 420.462428 | I43: 5326.663067 | K43: 337.6250541 | N43: 29
A44: =IF(A43+1>Eingabe!$C$10,#N/A,A43+1) -> 33 | B44: =IF(A44>Eingabe!$C$10,#N/A,B43) ->  | C44: =IF(A44>Eingabe!$C$10,#N/A,K38) -> 305.7974137 | D44: =IF(A44>Eingabe!$C$10,#N/A,S38) ->  | F44: 30 | G44: 428.8716766 | I44: 5433.196328 | K44: 344.3775552 | N44: 30
A45: =IF(A44+1>Eingabe!$C$10,#N/A,A44+1) -> 34 | B45: =IF(A45>Eingabe!$C$10,#N/A,B44) ->  | C45: =IF(A45>Eingabe!$C$10,#N/A,K39) -> 311.913362 | D45: =IF(A45>Eingabe!$C$10,#N/A,S39) ->  | F45: 31 | G45: 437.4491101 | I45: 5541.860255 | K45: 351.2651063 | N45: 31
A46: =IF(A45+1>Eingabe!$C$10,#N/A,A45+1) -> 35 | B46: =IF(A46>Eingabe!$C$10,#N/A,B45) ->  | C46: =IF(A46>Eingabe!$C$10,#N/A,K40) -> 318.1516292 | D46: =IF(A46>Eingabe!$C$10,#N/A,S40) ->  | F46: 32 | G46: 446.1980923 | I46: 5652.69746 | K46: 358.2904084 | N46: 32
A47: =IF(A46+1>Eingabe!$C$10,#N/A,A46+1) -> 36 | B47: =IF(A47>Eingabe!$C$10,#N/A,B46) ->  | C47: =IF(A47>Eingabe!$C$10,#N/A,K41) -> 324.5146618 | D47: =IF(A47>Eingabe!$C$10,#N/A,S41) ->  | F47: 33 | G47: 455.1220541 | I47: 5765.751409 | K47: 365.4562166 | N47: 33
A48: =IF(A47+1>Eingabe!$C$10,#N/A,A47+1) -> 37 | B48: =IF(A48>Eingabe!$C$10,#N/A,B47) ->  | C48: =IF(A48>Eingabe!$C$10,#N/A,K42) -> 331.004955 | D48: =IF(A48>Eingabe!$C$10,#N/A,S42) ->  | F48: 34 | G48: 464.2244952 | I48: 5881.066437 | K48: 372.7653409 | N48: 34
A49: =IF(A48+1>Eingabe!$C$10,#N/A,A48+1) -> 38 | B49: =IF(A49>Eingabe!$C$10,#N/A,B48) ->  | C49: =IF(A49>Eingabe!$C$10,#N/A,K43) -> 337.6250541 | D49: =IF(A49>Eingabe!$C$10,#N/A,S43) ->  | F49: 35 | G49: 473.5089851 | I49: 5998.687766 | K49: 380.2206478 | N49: 35
A50: =IF(A49+1>Eingabe!$C$10,#N/A,A49+1) -> 39 | B50: =IF(A50>Eingabe!$C$10,#N/A,B49) ->  | C50: =IF(A50>Eingabe!$C$10,#N/A,K44) -> 344.3775552 | D50: =IF(A50>Eingabe!$C$10,#N/A,S44) ->  | F50: 36 | G50: 482.9791648 | I50: 6118.661521 | K50: 387.8250607 | N50: 36
A51: =IF(A50+1>Eingabe!$C$10,#N/A,A50+1) -> 40 | B51: =IF(A51>Eingabe!$C$10,#N/A,B50) ->  | C51: =IF(A51>Eingabe!$C$10,#N/A,K45) -> 351.2651063 | D51: =IF(A51>Eingabe!$C$10,#N/A,S45) ->  | F51: 37 | G51: 492.6387481 | I51: 6241.034752 | K51: 395.5815619 | N51: 37
A52: =IF(A51+1>Eingabe!$C$10,#N/A,A51+1) -> 41 | B52: =IF(A52>Eingabe!$C$10,#N/A,B51) ->  | C52: =IF(A52>Eingabe!$C$10,#N/A,K46) -> 358.2904084 | D52: =IF(A52>Eingabe!$C$10,#N/A,S46) ->  | F52: 38 | G52: 502.4915231 | I52: 6365.855447 | K52: 403.4931932 | N52: 38
A53: =IF(A52+1>Eingabe!$C$10,#N/A,A52+1) -> 42 | B53: =IF(A53>Eingabe!$C$10,#N/A,B52) ->  | C53: =IF(A53>Eingabe!$C$10,#N/A,K47) -> 365.4562166 | D53: =IF(A53>Eingabe!$C$10,#N/A,S47) ->  | F53: 39 | G53: 512.5413535 | I53: 6493.172556 | K53: 411.563057 | N53: 39
A54: =IF(A53+1>Eingabe!$C$10,#N/A,A53+1) -> 43 | B54: =IF(A54>Eingabe!$C$10,#N/A,B53) ->  | C54: =IF(A54>Eingabe!$C$10,#N/A,K48) -> 372.7653409 | D54: =IF(A54>Eingabe!$C$10,#N/A,S48) ->  | F54: 40 | G54: 522.7921806 | I54: 6623.036007 | K54: 419.7943182 | N54: 40
A55: =IF(A54+1>Eingabe!$C$10,#N/A,A54+1) -> 44 | B55: =IF(A55>Eingabe!$C$10,#N/A,B54) ->  | C55: =IF(A55>Eingabe!$C$10,#N/A,K49) -> 380.2206478 | D55: =IF(A55>Eingabe!$C$10,#N/A,S49) ->  | F55: 41 | G55: 533.2480242 | I55: 6755.496727 | K55: 428.1902045 | N55: 41 | O55: =O54*(1+$O$8) ->  | Q55: =MAX(Q54*(1+$Q$8),0) ->  | S55: =S54*(1+$S$8) -> 
A56: =IF(A55+1>Eingabe!$C$10,#N/A,A55+1) -> 45 | B56: =IF(A56>Eingabe!$C$10,#N/A,B55) ->  | C56: =IF(A56>Eingabe!$C$10,#N/A,K50) -> 387.8250607 | D56: =IF(A56>Eingabe!$C$10,#N/A,S50) ->  | F56: 42 | G56: 543.9129847 | I56: 6890.606661 | K56: 436.7540086 | N56: 42
A57: =IF(A56+1>Eingabe!$C$10,#N/A,A56+1) -> 46 | B57: =IF(A57>Eingabe!$C$10,#N/A,B56) ->  | C57: =IF(A57>Eingabe!$C$10,#N/A,K51) -> 395.5815619 | D57: =IF(A57>Eingabe!$C$10,#N/A,S51) ->  | F57: 43 | G57: 554.7912444 | I57: 7028.418795 | K57: 445.4890888 | N57: 43 | O57: =O56*(1+$O$8) ->  | Q57: =Q56*(1+$Q$8) ->  | T57: =(T56+S57*12)*(1+$D$13) -> 
A58: =IF(A57+1>Eingabe!$C$10,#N/A,A57+1) -> 47 | B58: =IF(A58>Eingabe!$C$10,#N/A,B57) ->  | C58: =IF(A58>Eingabe!$C$10,#N/A,K52) -> 403.4931932 | D58: =IF(A58>Eingabe!$C$10,#N/A,S52) ->  | F58: 44 | G58: 565.8870693 | I58: 7168.987171 | K58: 454.3988706 | N58: 44
A59: =IF(A58+1>Eingabe!$C$10,#N/A,A58+1) -> 48 | B59: =IF(A59>Eingabe!$C$10,#N/A,B58) ->  | C59: =IF(A59>Eingabe!$C$10,#N/A,K53) -> 411.563057 | D59: =IF(A59>Eingabe!$C$10,#N/A,S53) ->  | F59: 45 | G59: 577.2048107 | I59: 7312.366914 | K59: 463.486848 | N59: 45
A60: =IF(A59+1>Eingabe!$C$10,#N/A,A59+1) -> 49 | B60: =IF(A60>Eingabe!$C$10,#N/A,B59) ->  | C60: =IF(A60>Eingabe!$C$10,#N/A,K54) -> 419.7943182 | D60: =IF(A60>Eingabe!$C$10,#N/A,S54) ->  | F60: 46 | G60: 588.7489069 | I60: 7458.614252 | K60: 472.7565849 | N60: 46
A61: =IF(A60+1>Eingabe!$C$10,#N/A,A60+1) -> 50 | B61: =IF(A61>Eingabe!$C$10,#N/A,B60) ->  | C61: =IF(A61>Eingabe!$C$10,#N/A,K55) -> 428.1902045 | D61: =IF(A61>Eingabe!$C$10,#N/A,S55) ->  | F61: 47 | G61: 600.523885 | I61: 7607.786537 | K61: 482.2117166 | N61: 47
A62: =IF(A61+1>Eingabe!$C$10,#N/A,A61+1) -> 51 | B62: =IF(A62>Eingabe!$C$10,#N/A,B61) ->  | C62: =IF(A62>Eingabe!$C$10,#N/A,K56) -> 436.7540086 | D62: =IF(A62>Eingabe!$C$10,#N/A,S56) ->  | F62: 48 | G62: 612.5343627 | I62: 7759.942268 | K62: 491.855951 | N62: 48
A63: =IF(A62+1>Eingabe!$C$10,#N/A,A62+1) -> 52 | B63: =IF(A63>Eingabe!$C$10,#N/A,B62) ->  | C63: =IF(A63>Eingabe!$C$10,#N/A,K57) -> 445.4890888 | D63: =IF(A63>Eingabe!$C$10,#N/A,S57) ->  | F63: 49 | G63: 624.78505 | I63: 7915.141113 | K63: 501.69307 | N63: 49
A64: =IF(A63+1>Eingabe!$C$10,#N/A,A63+1) -> 53 | B64: =IF(A64>Eingabe!$C$10,#N/A,B63) ->  | C64: =IF(A64>Eingabe!$C$10,#N/A,K58) -> 454.3988706 | D64: =IF(A64>Eingabe!$C$10,#N/A,S58) ->  | F64: 50 | G64: 637.280751 | I64: 8073.443936 | K64: 511.7269314 | N64: 50
A65: =IF(A64+1>Eingabe!$C$10,#N/A,A64+1) -> 54 | B65: =IF(A65>Eingabe!$C$10,#N/A,B64) ->  | C65: =IF(A65>Eingabe!$C$10,#N/A,K59) -> 463.486848 | D65: =IF(A65>Eingabe!$C$10,#N/A,S59) ->  | F65: 51 | G65: 650.026366 | I65: 8234.912814 | K65: 521.96147 | N65: 51
A66: =IF(A65+1>Eingabe!$C$10,#N/A,A65+1) -> 55 | B66: =IF(A66>Eingabe!$C$10,#N/A,B65) ->  | C66: =IF(A66>Eingabe!$C$10,#N/A,K60) -> 472.7565849 | D66: =IF(A66>Eingabe!$C$10,#N/A,S60) ->  | F66: 52 | G66: 663.0268933 | I66: 8399.611071 | K66: 532.4006994 | N66: 52
A67: =IF(A66+1>Eingabe!$C$10,#N/A,A66+1) -> 56 | B67: =IF(A67>Eingabe!$C$10,#N/A,B66) ->  | C67: =IF(A67>Eingabe!$C$10,#N/A,K61) -> 482.2117166 | D67: =IF(A67>Eingabe!$C$10,#N/A,S61) ->  | F67: 53 | G67: 676.2874312 | I67: 8567.603292 | K67: 543.0487134 | N67: 53
A68: =IF(A67+1>Eingabe!$C$10,#N/A,A67+1) -> 57 | B68: =IF(A68>Eingabe!$C$10,#N/A,B67) ->  | C68: =IF(A68>Eingabe!$C$10,#N/A,K62) -> 491.855951 | D68: =IF(A68>Eingabe!$C$10,#N/A,S62) ->  | F68: 54 | G68: 689.8131798 | I68: 8738.955358 | K68: 553.9096877 | N68: 54
A69: =IF(A68+1>Eingabe!$C$10,#N/A,A68+1) -> 58 | B69: =IF(A69>Eingabe!$C$10,#N/A,B68) ->  | C69: =IF(A69>Eingabe!$C$10,#N/A,K63) -> 501.69307 | D69: =IF(A69>Eingabe!$C$10,#N/A,S63) ->  | F69: 55 | G69: 703.6094434 | I69: 8913.734465 | K69: 564.9878814 | N69: 55
A70: =IF(A69+1>Eingabe!$C$10,#N/A,A69+1) -> 59 | B70: =IF(A70>Eingabe!$C$10,#N/A,B69) ->  | C70: =IF(A70>Eingabe!$C$10,#N/A,K64) -> 511.7269314 | D70: =IF(A70>Eingabe!$C$10,#N/A,S64) ->  | F70: 56 | G70: 717.6816323 | I70: 9092.009154 | K70: 576.2876391 | N70: 56
A71: =IF(A70+1>Eingabe!$C$10,#N/A,A70+1) -> 60 | B71: =IF(A71>Eingabe!$C$10,#N/A,B70) ->  | C71: =IF(A71>Eingabe!$C$10,#N/A,K65) -> 521.96147 | D71: =IF(A71>Eingabe!$C$10,#N/A,S65) ->  | F71: 57 | G71: 732.0352649 | I71: 9273.849338 | K71: 587.8133918 | N71: 57
A72: =IF(A71+1>Eingabe!$C$10,#N/A,A71+1) -> 61 | B72: =IF(A72>Eingabe!$C$10,#N/A,B71) ->  | C72: =IF(A72>Eingabe!$C$10,#N/A,K66) -> 532.4006994 | D72: =IF(A72>Eingabe!$C$10,#N/A,S66) ->  | F72: 58 | G72: 746.6759702 | I72: 9459.326324 | K72: 599.5696597 | N72: 58
A73: =IF(A72+1>Eingabe!$C$10,#N/A,A72+1) -> 62 | B73: =IF(A73>Eingabe!$C$10,#N/A,B72) ->  | C73: =IF(A73>Eingabe!$C$10,#N/A,K67) -> 543.0487134 | D73: =IF(A73>Eingabe!$C$10,#N/A,S67) ->  | F73: 59 | G73: 761.6094896 | I73: 9648.512851 | K73: 611.5610529 | N73: 59
A74: =IF(A73+1>Eingabe!$C$10,#N/A,A73+1) -> 63 | B74: =IF(A74>Eingabe!$C$10,#N/A,B73) ->  | C74: =IF(A74>Eingabe!$C$10,#N/A,K68) -> 553.9096877 | D74: =IF(A74>Eingabe!$C$10,#N/A,S68) ->  | F74: 60 | G74: 776.8416794 | I74: 9841.483108 | K74: 623.7922739 | N74: 60 | S74: =S73*(1+$S$8) -> 
A75: =IF(A74+1>Eingabe!$C$10,#N/A,A74+1) -> 64 | B75: =IF(A75>Eingabe!$C$10,#N/A,B74) ->  | C75: =IF(A75>Eingabe!$C$10,#N/A,K69) -> 564.9878814 | D75: =IF(A75>Eingabe!$C$10,#N/A,S69) ->  | F75: Endbeitrag | G75: =VLOOKUP(B2,F15:G74,2) -> 732.0352649 | I75: =VLOOKUP(B2,F15:I74,4) -> 9273.849338 | K75: =VLOOKUP(B2,F15:K74,6) -> 587.8133918 | N75: Endbeitrag | O75: =VLOOKUP(B2,N15:T74,2) ->  | Q75: =VLOOKUP(B2,N15:T74,4) ->  | S75: =VLOOKUP(B2,N15:T74,6) -> 
A76: =IF(A75+1>Eingabe!$C$10,#N/A,A75+1) -> 65 | B76: =IF(A76>Eingabe!$C$10,#N/A,B75) ->  | C76: =IF(A76>Eingabe!$C$10,#N/A,K70) -> 576.2876391 | D76: =IF(A76>Eingabe!$C$10,#N/A,S70) -> 
A77: =IF(A76+1>Eingabe!$C$10,#N/A,A76+1) -> 66 | B77: =IF(A77>Eingabe!$C$10,#N/A,B76) ->  | C77: =IF(A77>Eingabe!$C$10,#N/A,K71) -> 587.8133918 | D77: =IF(A77>Eingabe!$C$10,#N/A,S71) -> 
A78: =IF(A77+1>Eingabe!$C$10,#N/A,A77+1) -> 67 | B78: =IF(A78>Eingabe!$C$10,#N/A,B77) ->  | C78: =IF(A78>Eingabe!$C$10,#N/A,K72) -> 599.5696597 | D78: =IF(A78>Eingabe!$C$10,#N/A,S72) ->  | F78: =IF(P35+1>Eingabe!$G$8,#N/A,E36) -> 
A79: =IF(A78+1>Eingabe!$C$10,#N/A,A78+1) ->  | B79: =IF(A79>Eingabe!$C$10,#N/A,B78) ->  | C79: =IF(A79>Eingabe!$C$10,#N/A,K73) ->  | D79: =IF(A79>Eingabe!$C$10,#N/A,S73) -> 
A80: =IF(A79+1>Eingabe!$C$10,#N/A,A79+1) ->  | B80: =IF(A80>Eingabe!$C$10,#N/A,B79) ->  | C80: =IF(A80>Eingabe!$C$10,#N/A,K74) ->  | D80: =IF(A80>Eingabe!$C$10,#N/A,S74) -> 

Sheet Ruhestandsplanung (hidden)
A4: =IF(YEAR(TODAY())=Variablen!B1,"Ruhestandsplanung","Das Tool ist abgelaufen!") -> Ruhestandsplanung
A6: Eingaben | J6: =IF('Ruhestandsplanung Berechnung'!AI5>=E8,"Wunschrente ist zum Rentenbeginn erreicht!","Wunschrente ist zum Rentenbeginn NICHT erreicht!") -> Wunschrente ist zum Rentenbeginn erreicht!
A8: Wunschrente (Netto) inkl. KV-Bedarf - siehe Eingabe | E8: =Eingabe!E14+Eingabe!E30 -> 0 | G8: ="Oft sind es 70% = "&FIXED(E8*0.7,0)&" EUR der Wunschrente" -> Oft sind es 70% = 0 EUR der Wunschrente
A9: Notwendige Rente für das Existenzminimum | E9: =E8*0.7 -> 0
G10: (Renten-) Steigerung
A11: Gesetzliche Rente / Versorgungswerk (Brutto) | E11: =Eingabe!E16 -> 2000 | G11: 0.005
A12: Basisrente (Brutto) | E12: =Eingabe!E17 -> 0 | G12: 0.013
A13: Riesterrente (Brutto) | E13: =Eingabe!E18 -> 0 | G13: 0.01
A14: betriebliche Altersversorgung (Brutto) | E14: =Eingabe!E19 -> 0 | G14: 0.013
A15: Mieteinkünfte (Brutto) | E15: =Eingabe!E20 -> 0 | G15: 0.015
A16: Sonstige Renten mit Ertragsanteil (Brutto) | E16: =Eingabe!E21 -> 0 | G16: 0.013
A18: Verfügbares liquides Kapitalvermögen / Neuanlage | E18: =Eingabe!E24 -> 0
A19: Daraus resultierende Kapitalrente (Brutto) ca. | E19: =ROUND(E18/Variablen!E11,0) -> 0 | G19: 0.013
A20: (ACHTUNG: Simulation mit einer klassischen Verrentung!) | J20: =IF('Ruhestandsplanung Berechnung'!AI5>=E8,"","Es fehlen netto "&FIXED(E8-'Ruhestandsplanung Berechnung'!AI5,0)&" EUR mtl. oder liquides Kapital von ca. "&FIXED(Variablen!E34,0)&" EUR im Alter von "&Eingabe!C10&" Jahren auf Basis der klassischen Verrentung!") -> 
A21: Inflation | E21: =Inflation!D11 -> 0.02
A22: Rendite (nach Kosten) bei einem Auszahlplan | E22: 0.05
A23: Übernahme Schichtennavigator / Neuanlage | E23: 1.06
J24: =IF('Ruhestandsplanung Berechnung'!AS35<=0,"Über einen Auszahlplan mit "&FIXED(Ruhestandsplanung!E22*100,2)&" % kann für mind. 30 Jahre die dynamische Rentenlücke geschlossen werden.","Für die Absicherung der dynamischen Rentenlücke in den Rentenphase als Auszahlplan bis zum Alter "&FIXED('Ruhestandsplanung Berechnung'!A35,0)&" benötigen Sie zusätzlich "&FIXED(Variablen!E35,0)&" EUR.") -> Über einen Auszahlplan mit 5,00 % kann für mind. 30 Jahre die dynamische Rentenlücke geschlossen werden.

Sheet Ruhestandsplanung Berechnung (hidden)
A1: Rentenbeginn | B1: =Eingabe!$C$10 -> 67 | D1: Steuerpflichtig Schicht 1 | E1: =Variablen!M3 -> 1 | X1: Ertragsanteil | Y1: =Variablen!I2 -> 0.17
AL2: Kapital für Entnahmeplan: | AN2: =Ruhestandsplanung!E18 -> 0 | AU2: Steuer bei Komplettschließung
A3: Alter | B3: Wunschrente (Netto) | C3: Existenzrente (Netto) | D3: Gesetzliche Rente / Versorgungswerk | H3: Basisrente | L3: Riesterrente | P3: betriebliche Altersversorgung | T3: Mieteinkünfte | X3: Sonstige Renten | AB3: Kapitalrente | AF3: Gesamteinkommen (Netto) | AK3: Gesamt ohne Kapitalrente | AL3: Kapial | AM3: Entnahme | AN3: Zins | AO3: Steuer | AP3: Gesamt | AQ3: Gesamteinkommen (Netto) | AR3: Lücke | AS3: Kapital dyn. Lücke | AU3: Lücke | AV3: Steuer-pflichtig | AW3: Steuer gesamt | AX3: Steuer Zusatzrente | AY3: Prozentsatz
D4: Brutto Rente | E4: Steuerpflichtig | F4: Steuer | G4: Netto-Rente | H4: Brutto Rente | I4: Steuerpflichtig | J4: Steuer | K4: Netto-Rente | L4: Brutto Rente | M4: Steuerpflichtig | N4: Steuer | O4: Netto-Rente | P4: Brutto Rente | Q4: Steuerpflichtig | R4: Steuer | S4: Netto-Rente | T4: Brutto Rente | U4: Steuerpflichtig | V4: Steuer | W4: Netto-Rente | X4: Brutto Rente | Y4: Steuerpflichtig | Z4: Steuer | AA4: Netto-Rente | AB4: Brutto Rente | AC4: Steuerpflichtig | AD4: Steuer | AE4: Netto-Rente | AF4: Brutto Rente | AG4: Steuerpflichtig | AH4: Steuer | AI4: Netto-Rente | AK4: Netto | AM4: Netto
A5: =B1 -> 67 | B5: =Ruhestandsplanung!E8 -> 0 | C5: =Ruhestandsplanung!E9 -> 0 | D5: =Ruhestandsplanung!E11 -> 2000 | E5: =D5*$E$1 -> 2000 | F5: =IF(AG5=0,0,AH5/AG5*E5) -> 71.62380426 | G5: =D5-F5 -> 1928.376196 | H5: =Ruhestandsplanung!E12 -> 0 | I5: =H5*$E$1 -> 0 | J5: =IF(AG5=0,0,AH5/AG5*I5) -> 0 | K5: =H5-J5 -> 0 | L5: =Ruhestandsplanung!E13 -> 0 | M5: =L5 -> 0 | N5: =IF(AG5=0,0,AH5/AG5*M5) -> 0 | O5: =L5-N5 -> 0 | P5: =Ruhestandsplanung!E14 -> 0 | Q5: =P5 -> 0 | R5: =IF(AG5=0,0,AH5/AG5*Q5) -> 0 | S5: =P5-R5 -> 0 | T5: =Ruhestandsplanung!E15 -> 0 | U5: =T5 -> 0 | V5: =IF(AG5=0,0,AH5/AG5*U5) -> 0 | W5: =T5-V5 -> 0 | X5: =Ruhestandsplanung!E16 -> 0 | Y5: =X5*$Y$1 -> 0 | Z5: =IF(AG5=0,0,AH5/AG5*Y5) -> 0 | AA5: =X5-Z5 -> 0 | AB5: =Ruhestandsplanung!E19 -> 0 | AC5: =AB5*$Y$1 -> 0 | AD5: =IF(AG5=0,0,AH5*AC5/AG5) -> 0 | AE5: =AB5-AD5 -> 0 | AF5: =D5+H5+L5+P5+T5+X5+AB5 -> 2000 | AG5: =E5+I5+M5+Q5+U5+Y5+AC5 -> 2000 | AH5: =steuer(Variablen!$B$3,AG5*12)/12 -> 71.62380426 | AI5: =AF5-AH5 -> 1928.376196 | AK5: =G5+K5+O5+S5+W5+AA5 -> 1928.376196 | AL5: =AN2 -> 0 | AM5: =MAX(B5-AK5,0) -> 0 | AN5: =(AL5-(AM5*12))*Ruhestandsplanung!$E$22 -> 0 | AO5: =steuer(Variablen!$B$3,AG5*12+AN5)/12-AH5 -> 0 | AP5: =AL5-AM5*12+AN5-AO5 -> 0 | AQ5: =AK5+AM5 -> 1928.376196 | AR5: =B5-AQ5 -> -1928.376196 | AS5: =(SUM($AR4:AR$5)*12)*(1/((1+Ruhestandsplanung!$E$22)^(A5-'Ruhestandsplanung Berechnung'!$A$5))) -> -23140.51435 | AU5: =MAX(0,Ruhestandsplanung!E8-G5-K5-O5-S5-W5-AA5) -> 0 | AV5: =AU5*Y1 -> 0 | AW5: =steuer(Variablen!$B$3,(AG5+AV5)*12)/12 -> 71.62380426 | AX5: =AW5-AH5 -> 0 | AY5: =ROUNDUP(IF('Ruhestandsplanung Berechnung'!AU5=0,0,('Ruhestandsplanung Berechnung'!AX5/'Ruhestandsplanung Berechnung'!AU5)),2) -> 0
A6: =A5+1 -> 68 | B6: =B5*(1+Ruhestandsplanung!$E$21) -> 0 | C6: =C5*(1+Ruhestandsplanung!$E$21) -> 0 | D6: =D5*(1+Ruhestandsplanung!$G$11) -> 2010 | E6: =D6*$E$1 -> 2010 | F6: =IF(AG6=0,0,AH6/AG6*E6) -> 73.54569239 | G6: =D6-F6 -> 1936.454308 | H6: =H5*(1+Ruhestandsplanung!$G$12) -> 0 | I6: =H6*$E$1 -> 0 | J6: =IF(AG6=0,0,AH6/AG6*I6) -> 0 | K6: =H6-J6 -> 0 | L6: =L5*(1+Ruhestandsplanung!$G$13) -> 0 | M6: =L6 -> 0 | N6: =IF(AG6=0,0,AH6/AG6*M6) -> 0 | O6: =L6-N6 -> 0 | P6: =P5*(1+Ruhestandsplanung!$G$14) -> 0 | Q6: =P6 -> 0 | R6: =IF(AG6=0,0,AH6/AG6*Q6) -> 0 | S6: =P6-R6 -> 0 | T6: =T5*(1+Ruhestandsplanung!$G$15) -> 0 | U6: =T6 -> 0 | V6: =IF(AG6=0,0,AH6/AG6*U6) -> 0 | W6: =T6-V6 -> 0 | X6: =X5*(1+Ruhestandsplanung!$G$16) -> 0 | Y6: =X6*$Y$1 -> 0 | Z6: =IF(AG6=0,0,AH6/AG6*Y6) -> 0 | AA6: =X6-Z6 -> 0 | AB6: =AB5*(1+Ruhestandsplanung!$G$19) -> 0 | AC6: =AB6*$Y$1 -> 0 | AD6: =IF(AG6=0,0,AH6*AC6/AG6) -> 0 | AE6: =AB6-AD6 -> 0 | AF6: =D6+H6+L6+P6+T6+X6+AB6 -> 2010 | AG6: =E6+I6+M6+Q6+U6+Y6+AC6 -> 2010 | AH6: =steuer(Variablen!$B$3,AG6*12)/12 -> 73.54569239 | AI6: =AF6-AH6 -> 1936.454308 | AK6: =G6+K6+O6+S6+W6+AA6 -> 1936.454308 | AL6: =IF(AP5<=0,0,AP5) -> 0 | AM6: =MAX(MIN(IF(AL6=0,0,MAX(B6-AK6,0)),AP5),0) -> 0 | AN6: =(AL6-(AM6*12))*Ruhestandsplanung!$E$22 -> 0 | AO6: =steuer(Variablen!$B$3,AG6*12+AN6)/12-AH6 -> 0 | AP6: =AL6-AM6*12+AN6-AO6 -> 0 | AQ6: =AK6+AM6 -> 1936.454308 | AR6: =B6-AQ6 -> -1936.454308 | AS6: =(SUM($AR$5:AR5)*12)*(1/((1+Ruhestandsplanung!$E$22)^(A6-'Ruhestandsplanung Berechnung'!$A$5))) -> -22038.58509
A7: =A6+1 -> 69 | B7: =B6*(1+Ruhestandsplanung!$E$21) -> 0 | C7: =C6*(1+Ruhestandsplanung!$E$21) -> 0 | D7: =D6*(1+Ruhestandsplanung!$G$11) -> 2020.05 | E7: =D7*$E$1 -> 2020.05 | F7: 75.48922219 | G7: =D7-F7 -> 1944.560778 | H7: =H6*(1+Ruhestandsplanung!$G$12) -> 0 | I7: 0 | J7: 0 | K7: 0 | L7: =L6*(1+Ruhestandsplanung!$G$13) -> 0 | M7: 0 | N7: 0 | O7: 0 | P7: =P6*(1+Ruhestandsplanung!$G$14) -> 0 | Q7: 0 | R7: 0 | S7: 0 | T7: =T6*(1+Ruhestandsplanung!$G$15) -> 0 | U7: 0 | V7: 0 | W7: 0 | X7: =X6*(1+Ruhestandsplanung!$G$16) -> 0 | Y7: 0 | Z7: 0 | AA7: 0 | AB7: =AB6*(1+Ruhestandsplanung!$G$19) -> 0 | AC7: 0 | AD7: 0 | AE7: 0 | AF7: 2020.05 | AG7: 2020.05 | AH7: =steuer(Variablen!$B$3,AG7*12)/12 -> 75.48922219 | AI7: 1944.560778 | AK7: 1944.560778 | AL7: =IF(AP6<=0,0,AP6) -> 0 | AM7: =MAX(MIN(IF(AL7=0,0,MAX(B7-AK7,0)),AP6),0) -> 0 | AN7: =(AL7-(AM7*12))*Ruhestandsplanung!$E$22 -> 0 | AO7: =steuer(Variablen!$B$3,AG7*12+AN7)/12-AH7 -> 0 | AP7: =AL7-AM7*12+AN7-AO7 -> 0 | AQ7: 1944.560778 | AR7: -1944.560778 | AS7: =(SUM($AR$5:AR6)*12)*(1/((1+Ruhestandsplanung!$E$22)^(A7-'Ruhestandsplanung Berechnung'!$A$5))) -> -42066.18235
A8: 70 | B8: =B7*(1+Ruhestandsplanung!$E$21) -> 0 | C8: =C7*(1+Ruhestandsplanung!$E$21) -> 0 | D8: =D7*(1+Ruhestandsplanung!$G$11) -> 2030.15025 | E8: 2030.15025 | F8: 77.4545737 | G8: 1952.695676 | H8: =H7*(1+Ruhestandsplanung!$G$12) -> 0 | I8: 0 | J8: 0 | K8: 0 | L8: =L7*(1+Ruhestandsplanung!$G$13) -> 0 | M8: 0 | N8: 0 | O8: 0 | P8: =P7*(1+Ruhestandsplanung!$G$14) -> 0 | Q8: 0 | R8: 0 | S8: 0 | T8: =T7*(1+Ruhestandsplanung!$G$15) -> 0 | U8: 0 | V8: 0 | W8: 0 | X8: =X7*(1+Ruhestandsplanung!$G$16) -> 0 | Y8: 0 | Z8: 0 | AA8: 0 | AB8: =AB7*(1+Ruhestandsplanung!$G$19) -> 0 | AC8: 0 | AD8: 0 | AE8: 0 | AF8: 2030.15025 | AG8: 2030.15025 | AH8: =steuer(Variablen!$B$3,AG8*12)/12 -> 77.4545737 | AI8: 1952.695676 | AK8: 1952.695676 | AL8: =IF(AP7<=0,0,AP7) -> 0 | AM8: 0 | AN8: =(AL8-(AM8*12))*Ruhestandsplanung!$E$22 -> 0 | AO8: =steuer(Variablen!$B$3,AG8*12+AN8)/12-AH8 -> 0 | AP8: =AL8-AM8*12+AN8-AO8 -> 0 | AQ8: 1952.695676 | AR8: -1952.695676 | AS8: =(SUM($AR$5:AR7)*12)*(1/((1+Ruhestandsplanung!$E$22)^(A8-'Ruhestandsplanung Berechnung'!$A$5))) -> -60220.44736
A9: 71 | B9: =B8*(1+Ruhestandsplanung!$E$21) -> 0 | C9: =C8*(1+Ruhestandsplanung!$E$21) -> 0 | D9: =D8*(1+Ruhestandsplanung!$G$11) -> 2040.301001 | E9: 2040.301001 | F9: 79.4422552 | G9: 1960.858746 | H9: =H8*(1+Ruhestandsplanung!$G$12) -> 0 | I9: 0 | J9: 0 | K9: 0 | L9: =L8*(1+Ruhestandsplanung!$G$13) -> 0 | M9: 0 | N9: 0 | O9: 0 | P9: =P8*(1+Ruhestandsplanung!$G$14) -> 0 | Q9: 0 | R9: 0 | S9: 0 | T9: =T8*(1+Ruhestandsplanung!$G$15) -> 0 | U9: 0 | V9: 0 | W9: 0 | X9: =X8*(1+Ruhestandsplanung!$G$16) -> 0 | Y9: 0 | Z9: 0 | AA9: 0 | AB9: =AB8*(1+Ruhestandsplanung!$G$19) -> 0 | AC9: 0 | AD9: 0 | AE9: 0 | AF9: 2040.301001 | AG9: 2040.301001 | AH9: =steuer(Variablen!$B$3,AG9*12)/12 -> 79.4422552 | AI9: 1960.858746 | AK9: 1960.858746 | AL9: 0 | AM9: 0 | AN9: =(AL9-(AM9*12))*Ruhestandsplanung!$E$22 -> 0 | AO9: =steuer(Variablen!$B$3,AG9*12+AN9)/12-AH9 -> 0 | AP9: =AL9-AM9*12+AN9-AO9 -> 0 | AQ9: 1960.858746 | AR9: -1960.858746 | AS9: =(SUM($AR$5:AR8)*12)*(1/((1+Ruhestandsplanung!$E$22)^(A9-'Ruhestandsplanung Berechnung'!$A$5))) -> -76630.65779
A10: 72 | B10: =B9*(1+Ruhestandsplanung!$E$21) -> 0 | C10: =C9*(1+Ruhestandsplanung!$E$21) -> 0 | D10: =D9*(1+Ruhestandsplanung!$G$11) -> 2050.502506 | E10: 2050.502506 | F10: 81.45212523 | G10: 1969.050381 | H10: =H9*(1+Ruhestandsplanung!$G$12) -> 0 | I10: 0 | J10: 0 | K10: 0 | L10: =L9*(1+Ruhestandsplanung!$G$13) -> 0 | M10: 0 | N10: 0 | O10: 0 | P10: =P9*(1+Ruhestandsplanung!$G$14) -> 0 | Q10: 0 | R10: 0 | S10: 0 | T10: =T9*(1+Ruhestandsplanung!$G$15) -> 0 | U10: 0 | V10: 0 | W10: 0 | X10: =X9*(1+Ruhestandsplanung!$G$16) -> 0 | Y10: 0 | Z10: 0 | AA10: 0 | AB10: =AB9*(1+Ruhestandsplanung!$G$19) -> 0 | AC10: 0 | AD10: 0 | AE10: 0 | AF10: 2050.502506 | AG10: 2050.502506 | AH10: =steuer(Variablen!$B$3,AG10*12)/12 -> 81.45212523 | AI10: 1969.050381 | AK10: 1969.050381 | AL10: 0 | AM10: 0 | AN10: =(AL10-(AM10*12))*Ruhestandsplanung!$E$22 -> 0 | AO10: =steuer(Variablen!$B$3,AG10*12+AN10)/12-AH10 -> 0 | AP10: 0 | AQ10: 1969.050381 | AR10: -1969.050381 | AS10: =(SUM($AR$5:AR9)*12)*(1/((1+Ruhestandsplanung!$E$22)^(A10-'Ruhestandsplanung Berechnung'!$A$5))) -> -91418.18849
A11: 73 | B11: =B10*(1+Ruhestandsplanung!$E$21) -> 0 | C11: =C10*(1+Ruhestandsplanung!$E$21) -> 0 | D11: =D10*(1+Ruhestandsplanung!$G$11) -> 2060.755019 | E11: 2060.755019 | F11: 83.48436653 | G11: 1977.270652 | H11: =H10*(1+Ruhestandsplanung!$G$12) -> 0 | I11: 0 | J11: 0 | K11: 0 | L11: =L10*(1+Ruhestandsplanung!$G$13) -> 0 | M11: 0 | N11: 0 | O11: 0 | P11: =P10*(1+Ruhestandsplanung!$G$14) -> 0 | Q11: 0 | R11: 0 | S11: 0 | T11: =T10*(1+Ruhestandsplanung!$G$15) -> 0 | U11: 0 | V11: 0 | W11: 0 | X11: =X10*(1+Ruhestandsplanung!$G$16) -> 0 | Y11: 0 | Z11: 0 | AA11: 0 | AB11: =AB10*(1+Ruhestandsplanung!$G$19) -> 0 | AC11: 0 | AD11: 0 | AE11: 0 | AF11: 2060.755019 | AG11: 2060.755019 | AH11: =steuer(Variablen!$B$3,AG11*12)/12 -> 83.48436653 | AI11: 1977.270652 | AK11: 1977.270652 | AL11: 0 | AM11: 0 | AN11: =(AL11-(AM11*12))*Ruhestandsplanung!$E$22 -> 0 | AO11: =steuer(Variablen!$B$3,AG11*12+AN11)/12-AH11 -> 0 | AP11: 0 | AQ11: 1977.270652 | AR11: -1977.270652 | AS11: =(SUM($AR$5:AR10)*12)*(1/((1+Ruhestandsplanung!$E$22)^(A11-'Ruhestandsplanung Berechnung'!$A$5))) -> -104696.9699
A12: 74 | B12: =B11*(1+Ruhestandsplanung!$E$21) -> 0 | C12: =C11*(1+Ruhestandsplanung!$E$21) -> 0 | D12: =D11*(1+Ruhestandsplanung!$G$11) -> 2071.058794 | E12: 2071.058794 | F12: 85.53949622 | G12: 1985.519298 | H12: =H11*(1+Ruhestandsplanung!$G$12) -> 0 | I12: 0 | J12: 0 | K12: 0 | L12: =L11*(1+Ruhestandsplanung!$G$13) -> 0 | M12: 0 | N12: 0 | O12: 0 | P12: =P11*(1+Ruhestandsplanung!$G$14) -> 0 | Q12: 0 | R12: 0 | S12: 0 | T12: =T11*(1+Ruhestandsplanung!$G$15) -> 0 | U12: 0 | V12: 0 | W12: 0 | X12: =X11*(1+Ruhestandsplanung!$G$16) -> 0 | Y12: 0 | Z12: 0 | AA12: 0 | AB12: =AB11*(1+Ruhestandsplanung!$G$19) -> 0 | AC12: 0 | AD12: 0 | AE12: 0 | AF12: 2071.058794 | AG12: 2071.058794 | AH12: =steuer(Variablen!$B$3,AG12*12)/12 -> 85.53949622 | AI12: 1985.519298 | AK12: 1985.519298 | AL12: 0 | AM12: 0 | AN12: =(AL12-(AM12*12))*Ruhestandsplanung!$E$22 -> 0 | AO12: =steuer(Variablen!$B$3,AG12*12+AN12)/12-AH12 -> 0 | AP12: 0 | AQ12: 1985.519298 | AR12: -1985.519298 | AS12: =(SUM($AR$5:AR11)*12)*(1/((1+Ruhestandsplanung!$E$22)^(A12-'Ruhestandsplanung Berechnung'!$A$5))) -> -116573.912
A13: 75 | B13: =B12*(1+Ruhestandsplanung!$E$21) -> 0 | C13: =C12*(1+Ruhestandsplanung!$E$21) -> 0 | D13: =D12*(1+Ruhestandsplanung!$G$11) -> 2081.414088 | E13: 2081.414088 | F13: 87.61770502 | G13: 1993.796383 | H13: =H12*(1+Ruhestandsplanung!$G$12) -> 0 | I13: 0 | J13: 0 | K13: 0 | L13: =L12*(1+Ruhestandsplanung!$G$13) -> 0 | M13: 0 | N13: 0 | O13: 0 | P13: =P12*(1+Ruhestandsplanung!$G$14) -> 0 | Q13: 0 | R13: 0 | S13: 0 | T13: =T12*(1+Ruhestandsplanung!$G$15) -> 0 | U13: 0 | V13: 0 | W13: 0 | X13: =X12*(1+Ruhestandsplanung!$G$16) -> 0 | Y13: 0 | Z13: 0 | AA13: 0 | AB13: =AB12*(1+Ruhestandsplanung!$G$19) -> 0 | AC13: 0 | AD13: 0 | AE13: 0 | AF13: 2081.414088 | AG13: 2081.414088 | AH13: =steuer(Variablen!$B$3,AG13*12)/12 -> 87.61770502 | AI13: 1993.796383 | AK13: 1993.796383 | AL13: 0 | AM13: 0 | AN13: =(AL13-(AM13*12))*Ruhestandsplanung!$E$22 -> 0 | AO13: =steuer(Variablen!$B$3,AG13*12+AN13)/12-AH13 -> 0 | AP13: 0 | AQ13: 1993.796383 | AR13: -1993.796383 | AS13: =(SUM($AR$5:AR12)*12)*(1/((1+Ruhestandsplanung!$E$22)^(A13-'Ruhestandsplanung Berechnung'!$A$5))) -> -127149.3047
A14: 76 | B14: =B13*(1+Ruhestandsplanung!$E$21) -> 0 | C14: =C13*(1+Ruhestandsplanung!$E$21) -> 0 | D14: =D13*(1+Ruhestandsplanung!$G$11) -> 2091.821158 | E14: 2091.821158 | F14: 89.7195222 | G14: 2002.101636 | H14: =H13*(1+Ruhestandsplanung!$G$12) -> 0 | I14: 0 | J14: 0 | K14: 0 | L14: =L13*(1+Ruhestandsplanung!$G$13) -> 0 | M14: 0 | N14: 0 | O14: 0 | P14: =P13*(1+Ruhestandsplanung!$G$14) -> 0 | Q14: 0 | R14: 0 | S14: 0 | T14: =T13*(1+Ruhestandsplanung!$G$15) -> 0 | U14: 0 | V14: 0 | W14: 0 | X14: =X13*(1+Ruhestandsplanung!$G$16) -> 0 | Y14: 0 | Z14: 0 | AA14: 0 | AB14: =AB13*(1+Ruhestandsplanung!$G$19) -> 0 | AC14: 0 | AD14: 0 | AE14: =AB14-AD14 -> 0 | AF14: 2091.821158 | AG14: 2091.821158 | AH14: =steuer(Variablen!$B$3,AG14*12)/12 -> 89.7195222 | AI14: 2002.101636 | AK14: 2002.101636 | AL14: 0 | AM14: 0 | AN14: =(AL14-(AM14*12))*Ruhestandsplanung!$E$22 -> 0 | AO14: =steuer(Variablen!$B$3,AG14*12+AN14)/12-AH14 -> 0 | AP14: 0 | AQ14: 2002.101636 | AR14: -2002.101636 | AS14: =(SUM($AR$5:AR13)*12)*(1/((1+Ruhestandsplanung!$E$22)^(A14-'Ruhestandsplanung Berechnung'!$A$5))) -> -136517.203
A15: 77 | B15: =B14*(1+Ruhestandsplanung!$E$21) -> 0 | C15: =C14*(1+Ruhestandsplanung!$E$21) -> 0 | D15: =D14*(1+Ruhestandsplanung!$G$11) -> 2102.280264 | E15: 2102.280264 | F15: 91.8444673 | G15: 2010.435797 | H15: =H14*(1+Ruhestandsplanung!$G$12) -> 0 | I15: 0 | J15: 0 | K15: 0 | L15: =L14*(1+Ruhestandsplanung!$G$13) -> 0 | M15: 0 | N15: 0 | O15: 0 | P15: =P14*(1+Ruhestandsplanung!$G$14) -> 0 | Q15: 0 | R15: 0 | S15: 0 | T15: =T14*(1+Ruhestandsplanung!$G$15) -> 0 | U15: 0 | V15: 0 | W15: 0 | X15: =X14*(1+Ruhestandsplanung!$G$16) -> 0 | Y15: 0 | Z15: 0 | AA15: =X15-Z15 -> 0 | AB15: =AB14*(1+Ruhestandsplanung!$G$19) -> 0 | AC15: 0 | AD15: 0 | AE15: 0 | AF15: 2102.280264 | AG15: 2102.280264 | AH15: =steuer(Variablen!$B$3,AG15*12)/12 -> 91.8444673 | AI15: 2010.435797 | AK15: 2010.435797 | AL15: 0 | AM15: 0 | AN15: =(AL15-(AM15*12))*Ruhestandsplanung!$E$22 -> 0 | AO15: =steuer(Variablen!$B$3,AG15*12+AN15)/12-AH15 -> 0 | AP15: 0 | AQ15: 2010.435797 | AR15: -2010.435797 | AS15: =(SUM($AR$5:AR14)*12)*(1/((1+Ruhestandsplanung!$E$22)^(A15-'Ruhestandsplanung Berechnung'!$A$5))) -> -144765.7846
A16: 78 | B16: =B15*(1+Ruhestandsplanung!$E$21) -> 0 | C16: =C15*(1+Ruhestandsplanung!$E$21) -> 0 | D16: =D15*(1+Ruhestandsplanung!$G$11) -> 2112.791665 | E16: 2112.791665 | F16: 93.9934112 | G16: 2018.798254 | H16: =H15*(1+Ruhestandsplanung!$G$12) -> 0 | I16: 0 | J16: 0 | K16: 0 | L16: =L15*(1+Ruhestandsplanung!$G$13) -> 0 | M16: 0 | N16: 0 | O16: 0 | P16: =P15*(1+Ruhestandsplanung!$G$14) -> 0 | Q16: 0 | R16: 0 | S16: 0 | T16: =T15*(1+Ruhestandsplanung!$G$15) -> 0 | U16: 0 | V16: 0 | W16: 0 | X16: =X15*(1+Ruhestandsplanung!$G$16) -> 0 | Y16: 0 | Z16: 0 | AA16: 0 | AB16: =AB15*(1+Ruhestandsplanung!$G$19) -> 0 | AC16: 0 | AD16: 0 | AE16: 0 | AF16: 2112.791665 | AG16: 2112.791665 | AH16: =steuer(Variablen!$B$3,AG16*12)/12 -> 93.9934112 | AI16: 2018.798254 | AK16: 2018.798254 | AL16: 0 | AM16: 0 | AN16: =(AL16-(AM16*12))*Ruhestandsplanung!$E$22 -> 0 | AO16: =steuer(Variablen!$B$3,AG16*12+AN16)/12-AH16 -> 0 | AP16: 0 | AQ16: 2018.798254 | AR16: -2018.798254 | AS16: =(SUM($AR$5:AR15)*12)*(1/((1+Ruhestandsplanung!$E$22)^(A16-'Ruhestandsplanung Berechnung'!$A$5))) -> -151977.6979
A17: 79 | B17: =B16*(1+Ruhestandsplanung!$E$21) -> 0 | C17: =C16*(1+Ruhestandsplanung!$E$21) -> 0 | D17: =D16*(1+Ruhestandsplanung!$G$11) -> 2123.355624 | E17: 2123.355624 | F17: 96.16621089 | G17: 2027.189413 | H17: =H16*(1+Ruhestandsplanung!$G$12) -> 0 | I17: 0 | J17: 0 | K17: 0 | L17: =L16*(1+Ruhestandsplanung!$G$13) -> 0 | M17: 0 | N17: 0 | O17: 0 | P17: =P16*(1+Ruhestandsplanung!$G$14) -> 0 | Q17: 0 | R17: 0 | S17: 0 | T17: =T16*(1+Ruhestandsplanung!$G$15) -> 0 | U17: 0 | V17: 0 | W17: 0 | X17: =X16*(1+Ruhestandsplanung!$G$16) -> 0 | Y17: 0 | Z17: 0 | AA17: 0 | AB17: =AB16*(1+Ruhestandsplanung!$G$19) -> 0 | AC17: 0 | AD17: 0 | AE17: 0 | AF17: 2123.355624 | AG17: 2123.355624 | AH17: =steuer(Variablen!$B$3,AG17*12)/12 -> 96.16621089 | AI17: 2027.189413 | AK17: 2027.189413 | AL17: 0 | AM17: 0 | AN17: =(AL17-(AM17*12))*Ruhestandsplanung!$E$22 -> 0 | AO17: =steuer(Variablen!$B$3,AG17*12+AN17)/12-AH17 -> 0 | AP17: 0 | AQ17: 2027.189413 | AR17: -2027.189413 | AS17: =(SUM($AR$5:AR16)*12)*(1/((1+Ruhestandsplanung!$E$22)^(A17-'Ruhestandsplanung Berechnung'!$A$5))) -> -158230.3735
A18: 80 | B18: =B17*(1+Ruhestandsplanung!$E$21) -> 0 | C18: =C17*(1+Ruhestandsplanung!$E$21) -> 0 | D18: =D17*(1+Ruhestandsplanung!$G$11) -> 2133.972402 | E18: 2133.972402 | F18: 98.36340788 | G18: 2035.608994 | H18: =H17*(1+Ruhestandsplanung!$G$12) -> 0 | I18: =H18*$E$1 -> 0 | J18: 0 | K18: =H18-J18 -> 0 | L18: =L17*(1+Ruhestandsplanung!$G$13) -> 0 | M18: 0 | N18: 0 | O18: 0 | P18: =P17*(1+Ruhestandsplanung!$G$14) -> 0 | Q18: 0 | R18: 0 | S18: 0 | T18: =T17*(1+Ruhestandsplanung!$G$15) -> 0 | U18: 0 | V18: 0 | W18: 0 | X18: =X17*(1+Ruhestandsplanung!$G$16) -> 0 | Y18: 0 | Z18: 0 | AA18: 0 | AB18: =AB17*(1+Ruhestandsplanung!$G$19) -> 0 | AC18: 0 | AD18: 0 | AE18: 0 | AF18: 2133.972402 | AG18: 2133.972402 | AH18: =steuer(Variablen!$B$3,AG18*12)/12 -> 98.36340788 | AI18: 2035.608994 | AK18: 2035.608994 | AL18: 0 | AM18: 0 | AN18: =(AL18-(AM18*12))*Ruhestandsplanung!$E$22 -> 0 | AO18: =steuer(Variablen!$B$3,AG18*12+AN18)/12-AH18 -> 0 | AP18: 0 | AQ18: 2035.608994 | AR18: -2035.608994 | AS18: =(SUM($AR$5:AR17)*12)*(1/((1+Ruhestandsplanung!$E$22)^(A18-'Ruhestandsplanung Berechnung'!$A$5))) -> -163596.3358
A19: 81 | B19: =B18*(1+Ruhestandsplanung!$E$21) -> 0 | C19: =C18*(1+Ruhestandsplanung!$E$21) -> 0 | D19: =D18*(1+Ruhestandsplanung!$G$11) -> 2144.642264 | E19: 2144.642264 | F19: 100.5852051 | G19: 2044.057059 | H19: =H18*(1+Ruhestandsplanung!$G$12) -> 0 | I19: 0 | J19: 0 | K19: =H19-J19 -> 0 | L19: =L18*(1+Ruhestandsplanung!$G$13) -> 0 | M19: 0 | N19: 0 | O19: 0 | P19: =P18*(1+Ruhestandsplanung!$G$14) -> 0 | Q19: 0 | R19: 0 | S19: 0 | T19: =T18*(1+Ruhestandsplanung!$G$15) -> 0 | U19: 0 | V19: 0 | W19: 0 | X19: =X18*(1+Ruhestandsplanung!$G$16) -> 0 | Y19: 0 | Z19: 0 | AA19: 0 | AB19: =AB18*(1+Ruhestandsplanung!$G$19) -> 0 | AC19: 0 | AD19: 0 | AE19: 0 | AF19: 2144.642264 | AG19: 2144.642264 | AH19: =steuer(Variablen!$B$3,AG19*12)/12 -> 100.5852051 | AI19: 2044.057059 | AK19: 2044.057059 | AL19: =IF(AP18<=0,0,AP18) -> 0 | AM19: 0 | AN19: =(AL19-(AM19*12))*Ruhestandsplanung!$E$22 -> 0 | AO19: =steuer(Variablen!$B$3,AG19*12+AN19)/12-AH19 -> 0 | AP19: 0 | AQ19: 2044.057059 | AR19: -2044.057059 | AS19: =(SUM($AR$5:AR18)*12)*(1/((1+Ruhestandsplanung!$E$22)^(A19-'Ruhestandsplanung Berechnung'!$A$5))) -> -168143.4845
A20: 82 | B20: =B19*(1+Ruhestandsplanung!$E$21) -> 0 | C20: =C19*(1+Ruhestandsplanung!$E$21) -> 0 | D20: =D19*(1+Ruhestandsplanung!$G$11) -> 2155.365475 | E20: 2155.365475 | F20: 102.8318063 | G20: 2052.533669 | H20: =H19*(1+Ruhestandsplanung!$G$12) -> 0 | I20: 0 | J20: 0 | K20: 0 | L20: =L19*(1+Ruhestandsplanung!$G$13) -> 0 | M20: 0 | N20: 0 | O20: 0 | P20: =P19*(1+Ruhestandsplanung!$G$14) -> 0 | Q20: 0 | R20: 0 | S20: 0 | T20: =T19*(1+Ruhestandsplanung!$G$15) -> 0 | U20: 0 | V20: 0 | W20: 0 | X20: =X19*(1+Ruhestandsplanung!$G$16) -> 0 | Y20: 0 | Z20: 0 | AA20: 0 | AB20: =AB19*(1+Ruhestandsplanung!$G$19) -> 0 | AC20: 0 | AD20: 0 | AE20: 0 | AF20: 2155.365475 | AG20: 2155.365475 | AH20: =steuer(Variablen!$B$3,AG20*12)/12 -> 102.8318063 | AI20: 2052.533669 | AK20: 2052.533669 | AL20: 0 | AM20: 0 | AN20: =(AL20-(AM20*12))*Ruhestandsplanung!$E$22 -> 0 | AO20: =steuer(Variablen!$B$3,AG20*12+AN20)/12-AH20 -> 0 | AP20: 0 | AQ20: 2052.533669 | AR20: -2052.533669 | AS20: =(SUM($AR$5:AR19)*12)*(1/((1+Ruhestandsplanung!$E$22)^(A20-'Ruhestandsplanung Berechnung'!$A$5))) -> -171935.3686
A21: 83 | B21: =B20*(1+Ruhestandsplanung!$E$21) -> 0 | C21: =C20*(1+Ruhestandsplanung!$E$21) -> 0 | D21: =D20*(1+Ruhestandsplanung!$G$11) -> 2166.142303 | E21: 2166.142303 | F21: 105.1034164 | G21: 2061.038886 | H21: =H20*(1+Ruhestandsplanung!$G$12) -> 0 | I21: 0 | J21: 0 | K21: 0 | L21: =L20*(1+Ruhestandsplanung!$G$13) -> 0 | M21: 0 | N21: 0 | O21: 0 | P21: =P20*(1+Ruhestandsplanung!$G$14) -> 0 | Q21: 0 | R21: 0 | S21: 0 | T21: =T20*(1+Ruhestandsplanung!$G$15) -> 0 | U21: 0 | V21: 0 | W21: 0 | X21: =X20*(1+Ruhestandsplanung!$G$16) -> 0 | Y21: 0 | Z21: 0 | AA21: 0 | AB21: =AB20*(1+Ruhestandsplanung!$G$19) -> 0 | AC21: 0 | AD21: 0 | AE21: 0 | AF21: 2166.142303 | AG21: 2166.142303 | AH21: =steuer(Variablen!$B$3,AG21*12)/12 -> 105.1034164 | AI21: 2061.038886 | AK21: 2061.038886 | AL21: 0 | AM21: 0 | AN21: =(AL21-(AM21*12))*Ruhestandsplanung!$E$22 -> 0 | AO21: =steuer(Variablen!$B$3,AG21*12+AN21)/12-AH21 -> 0 | AP21: 0 | AQ21: 2061.038886 | AR21: -2061.038886 | AS21: =(SUM($AR$5:AR20)*12)*(1/((1+Ruhestandsplanung!$E$22)^(A21-'Ruhestandsplanung Berechnung'!$A$5))) -> -175031.442
A22: 84 | B22: =B21*(1+Ruhestandsplanung!$E$21) -> 0 | C22: =C21*(1+Ruhestandsplanung!$E$21) -> 0 | D22: =D21*(1+Ruhestandsplanung!$G$11) -> 2176.973014 | E22: 2176.973014 | F22: 107.400596 | G22: 2069.572418 | H22: =H21*(1+Ruhestandsplanung!$G$12) -> 0 | I22: 0 | J22: 0 | K22: 0 | L22: =L21*(1+Ruhestandsplanung!$G$13) -> 0 | M22: 0 | N22: 0 | O22: 0 | P22: =P21*(1+Ruhestandsplanung!$G$14) -> 0 | Q22: 0 | R22: 0 | S22: 0 | T22: =T21*(1+Ruhestandsplanung!$G$15) -> 0 | U22: 0 | V22: 0 | W22: 0 | X22: =X21*(1+Ruhestandsplanung!$G$16) -> 0 | Y22: 0 | Z22: 0 | AA22: 0 | AB22: =AB21*(1+Ruhestandsplanung!$G$19) -> 0 | AC22: 0 | AD22: 0 | AE22: 0 | AF22: 2176.973014 | AG22: 2176.973014 | AH22: =steuer(Variablen!$B$3,AG22*12)/12 -> 107.400596 | AI22: 2069.572418 | AK22: 2069.572418 | AL22: 0 | AM22: 0 | AN22: =(AL22-(AM22*12))*Ruhestandsplanung!$E$22 -> 0 | AO22: =steuer(Variablen!$B$3,AG22*12+AN22)/12-AH22 -> 0 | AP22: 0 | AQ22: 2069.572418 | AR22: -2069.572418 | AS22: =(SUM($AR$5:AR21)*12)*(1/((1+Ruhestandsplanung!$E$22)^(A22-'Ruhestandsplanung Berechnung'!$A$5))) -> -177487.3047
A23: 85 | B23: =B22*(1+Ruhestandsplanung!$E$21) -> 0 | C23: =C22*(1+Ruhestandsplanung!$E$21) -> 0 | D23: =D22*(1+Ruhestandsplanung!$G$11) -> 2187.857879 | E23: 2187.857879 | F23: 109.7232018 | G23: 2078.134677 | H23: =H22*(1+Ruhestandsplanung!$G$12) -> 0 | I23: 0 | J23: 0 | K23: 0 | L23: =L22*(1+Ruhestandsplanung!$G$13) -> 0 | M23: 0 | N23: 0 | O23: 0 | P23: =P22*(1+Ruhestandsplanung!$G$14) -> 0 | Q23: 0 | R23: 0 | S23: 0 | T23: =T22*(1+Ruhestandsplanung!$G$15) -> 0 | U23: 0 | V23: 0 | W23: 0 | X23: =X22*(1+Ruhestandsplanung!$G$16) -> 0 | Y23: 0 | Z23: 0 | AA23: 0 | AB23: =AB22*(1+Ruhestandsplanung!$G$19) -> 0 | AC23: 0 | AD23: 0 | AE23: 0 | AF23: 2187.857879 | AG23: 2187.857879 | AH23: =steuer(Variablen!$B$3,AG23*12)/12 -> 109.7232018 | AI23: 2078.134677 | AK23: 2078.134677 | AL23: 0 | AM23: 0 | AN23: =(AL23-(AM23*12))*Ruhestandsplanung!$E$22 -> 0 | AO23: =steuer(Variablen!$B$3,AG23*12+AN23)/12-AH23 -> 0 | AP23: 0 | AQ23: 2078.134677 | AR23: -2078.134677 | AS23: =(SUM($AR$5:AR22)*12)*(1/((1+Ruhestandsplanung!$E$22)^(A23-'Ruhestandsplanung Berechnung'!$A$5))) -> -179354.9293
A24: 86 | B24: =B23*(1+Ruhestandsplanung!$E$21) -> 0 | C24: =C23*(1+Ruhestandsplanung!$E$21) -> 0 | D24: =D23*(1+Ruhestandsplanung!$G$11) -> 2198.797169 | E24: 2198.797169 | F24: 112.0714417 | G24: 2086.725727 | H24: =H23*(1+Ruhestandsplanung!$G$12) -> 0 | I24: 0 | J24: 0 | K24: 0 | L24: =L23*(1+Ruhestandsplanung!$G$13) -> 0 | M24: 0 | N24: 0 | O24: 0 | P24: =P23*(1+Ruhestandsplanung!$G$14) -> 0 | Q24: 0 | R24: 0 | S24: 0 | T24: =T23*(1+Ruhestandsplanung!$G$15) -> 0 | U24: 0 | V24: 0 | W24: 0 | X24: =X23*(1+Ruhestandsplanung!$G$16) -> 0 | Y24: 0 | Z24: 0 | AA24: 0 | AB24: =AB23*(1+Ruhestandsplanung!$G$19) -> 0 | AC24: 0 | AD24: 0 | AE24: 0 | AF24: 2198.797169 | AG24: 2198.797169 | AH24: =steuer(Variablen!$B$3,AG24*12)/12 -> 112.0714417 | AI24: 2086.725727 | AK24: 2086.725727 | AL24: 0 | AM24: 0 | AN24: =(AL24-(AM24*12))*Ruhestandsplanung!$E$22 -> 0 | AO24: =steuer(Variablen!$B$3,AG24*12+AN24)/12-AH24 -> 0 | AP24: 0 | AQ24: 2086.725727 | AR24: -2086.725727 | AS24: =(SUM($AR$5:AR23)*12)*(1/((1+Ruhestandsplanung!$E$22)^(A24-'Ruhestandsplanung Berechnung'!$A$5))) -> -180682.8799
A25: 87 | B25: =B24*(1+Ruhestandsplanung!$E$21) -> 0 | C25: =C24*(1+Ruhestandsplanung!$E$21) -> 0 | D25: =D24*(1+Ruhestandsplanung!$G$11) -> 2209.791154 | E25: 2209.791154 | F25: 114.4462469 | G25: 2095.344908 | H25: =H24*(1+Ruhestandsplanung!$G$12) -> 0 | I25: 0 | J25: 0 | K25: 0 | L25: =L24*(1+Ruhestandsplanung!$G$13) -> 0 | M25: 0 | N25: 0 | O25: 0 | P25: =P24*(1+Ruhestandsplanung!$G$14) -> 0 | Q25: 0 | R25: 0 | S25: 0 | T25: =T24*(1+Ruhestandsplanung!$G$15) -> 0 | U25: 0 | V25: 0 | W25: 0 | X25: =X24*(1+Ruhestandsplanung!$G$16) -> 0 | Y25: 0 | Z25: 0 | AA25: 0 | AB25: =AB24*(1+Ruhestandsplanung!$G$19) -> 0 | AC25: 0 | AD25: 0 | AE25: 0 | AF25: 2209.791154 | AG25: 2209.791154 | AH25: =steuer(Variablen!$B$3,AG25*12)/12 -> 114.4462469 | AI25: 2095.344908 | AK25: 2095.344908 | AL25: 0 | AM25: 0 | AN25: =(AL25-(AM25*12))*Ruhestandsplanung!$E$22 -> 0 | AO25: =steuer(Variablen!$B$3,AG25*12+AN25)/12-AH25 -> 0 | AP25: 0 | AQ25: 2095.344908 | AR25: -2095.344908 | AS25: =(SUM($AR$5:AR24)*12)*(1/((1+Ruhestandsplanung!$E$22)^(A25-'Ruhestandsplanung Berechnung'!$A$5))) -> -181516.513
A26: 88 | B26: =B25*(1+Ruhestandsplanung!$E$21) -> 0 | C26: =C25*(1+Ruhestandsplanung!$E$21) -> 0 | D26: =D25*(1+Ruhestandsplanung!$G$11) -> 2220.84011 | E26: 2220.84011 | F26: 116.847114 | G26: 2103.992996 | H26: =H25*(1+Ruhestandsplanung!$G$12) -> 0 | I26: 0 | J26: 0 | K26: 0 | L26: =L25*(1+Ruhestandsplanung!$G$13) -> 0 | M26: 0 | N26: 0 | O26: 0 | P26: =P25*(1+Ruhestandsplanung!$G$14) -> 0 | Q26: 0 | R26: 0 | S26: 0 | T26: =T25*(1+Ruhestandsplanung!$G$15) -> 0 | U26: 0 | V26: 0 | W26: 0 | X26: =X25*(1+Ruhestandsplanung!$G$16) -> 0 | Y26: 0 | Z26: 0 | AA26: 0 | AB26: =AB25*(1+Ruhestandsplanung!$G$19) -> 0 | AC26: 0 | AD26: 0 | AE26: 0 | AF26: 2220.84011 | AG26: 2220.84011 | AH26: =steuer(Variablen!$B$3,AG26*12)/12 -> 116.847114 | AI26: 2103.992996 | AK26: 2103.992996 | AL26: 0 | AM26: 0 | AN26: =(AL26-(AM26*12))*Ruhestandsplanung!$E$22 -> 0 | AO26: =steuer(Variablen!$B$3,AG26*12+AN26)/12-AH26 -> 0 | AP26: 0 | AQ26: 2103.992996 | AR26: -2103.992996 | AS26: =(SUM($AR$5:AR25)*12)*(1/((1+Ruhestandsplanung!$E$22)^(A26-'Ruhestandsplanung Berechnung'!$A$5))) -> -181898.1662
A27: 89 | B27: =B26*(1+Ruhestandsplanung!$E$21) -> 0 | C27: =C26*(1+Ruhestandsplanung!$E$21) -> 0 | D27: =D26*(1+Ruhestandsplanung!$G$11) -> 2231.944311 | E27: 2231.944311 | F27: 119.2749853 | G27: 2112.669325 | H27: =H26*(1+Ruhestandsplanung!$G$12) -> 0 | I27: 0 | J27: 0 | K27: 0 | L27: =L26*(1+Ruhestandsplanung!$G$13) -> 0 | M27: 0 | N27: 0 | O27: 0 | P27: =P26*(1+Ruhestandsplanung!$G$14) -> 0 | Q27: 0 | R27: 0 | S27: 0 | T27: =T26*(1+Ruhestandsplanung!$G$15) -> 0 | U27: 0 | V27: 0 | W27: 0 | X27: =X26*(1+Ruhestandsplanung!$G$16) -> 0 | Y27: 0 | Z27: 0 | AA27: 0 | AB27: =AB26*(1+Ruhestandsplanung!$G$19) -> 0 | AC27: 0 | AD27: 0 | AE27: 0 | AF27: 2231.944311 | AG27: 2231.944311 | AH27: =steuer(Variablen!$B$3,AG27*12)/12 -> 119.2749853 | AI27: 2112.669325 | AK27: 2112.669325 | AL27: 0 | AM27: 0 | AN27: =(AL27-(AM27*12))*Ruhestandsplanung!$E$22 -> 0 | AO27: =steuer(Variablen!$B$3,AG27*12+AN27)/12-AH27 -> 0 | AP27: 0 | AQ27: 2112.669325 | AR27: -2112.669325 | AS27: =(SUM($AR$5:AR26)*12)*(1/((1+Ruhestandsplanung!$E$22)^(A27-'Ruhestandsplanung Berechnung'!$A$5))) -> -181867.3456
A28: 90 | B28: =B27*(1+Ruhestandsplanung!$E$21) -> 0 | C28: =C27*(1+Ruhestandsplanung!$E$21) -> 0 | D28: =D27*(1+Ruhestandsplanung!$G$11) -> 2243.104032 | E28: 2243.104032 | F28: 121.7293506 | G28: 2121.374682 | H28: =H27*(1+Ruhestandsplanung!$G$12) -> 0 | I28: 0 | J28: 0 | K28: 0 | L28: =L27*(1+Ruhestandsplanung!$G$13) -> 0 | M28: 0 | N28: 0 | O28: 0 | P28: =P27*(1+Ruhestandsplanung!$G$14) -> 0 | Q28: 0 | R28: 0 | S28: 0 | T28: =T27*(1+Ruhestandsplanung!$G$15) -> 0 | U28: 0 | V28: 0 | W28: 0 | X28: =X27*(1+Ruhestandsplanung!$G$16) -> 0 | Y28: 0 | Z28: 0 | AA28: 0 | AB28: =AB27*(1+Ruhestandsplanung!$G$19) -> 0 | AC28: 0 | AD28: 0 | AE28: 0 | AF28: 2243.104032 | AG28: 2243.104032 | AH28: =steuer(Variablen!$B$3,AG28*12)/12 -> 121.7293506 | AI28: 2121.374682 | AK28: 2121.374682 | AL28: 0 | AM28: 0 | AN28: =(AL28-(AM28*12))*Ruhestandsplanung!$E$22 -> 0 | AO28: =steuer(Variablen!$B$3,AG28*12+AN28)/12-AH28 -> 0 | AP28: 0 | AQ28: 2121.374682 | AR28: -2121.374682 | AS28: =(SUM($AR$5:AR27)*12)*(1/((1+Ruhestandsplanung!$E$22)^(A28-'Ruhestandsplanung Berechnung'!$A$5))) -> -181460.8899
A29: =A28+1 -> 91 | B29: =B28*(1+Ruhestandsplanung!$E$21) -> 0 | C29: =C28*(1+Ruhestandsplanung!$E$21) -> 0 | D29: =D28*(1+Ruhestandsplanung!$G$11) -> 2254.319552 | E29: 2254.319552 | F29: 124.211533 | G29: 2130.108019 | H29: =H28*(1+Ruhestandsplanung!$G$12) -> 0 | I29: 0 | J29: 0 | K29: 0 | L29: =L28*(1+Ruhestandsplanung!$G$13) -> 0 | M29: 0 | N29: 0 | O29: 0 | P29: =P28*(1+Ruhestandsplanung!$G$14) -> 0 | Q29: 0 | R29: 0 | S29: 0 | T29: =T28*(1+Ruhestandsplanung!$G$15) -> 0 | U29: 0 | V29: 0 | W29: 0 | X29: =X28*(1+Ruhestandsplanung!$G$16) -> 0 | Y29: 0 | Z29: 0 | AA29: 0 | AB29: =AB28*(1+Ruhestandsplanung!$G$19) -> 0 | AC29: 0 | AD29: 0 | AE29: 0 | AF29: 2254.319552 | AG29: 2254.319552 | AH29: =steuer(Variablen!$B$3,AG29*12)/12 -> 124.211533 | AI29: 2130.108019 | AK29: 2130.108019 | AL29: 0 | AM29: 0 | AN29: =(AL29-(AM29*12))*Ruhestandsplanung!$E$22 -> 0 | AO29: =steuer(Variablen!$B$3,AG29*12+AN29)/12-AH29 -> 0 | AP29: 0 | AQ29: 2130.108019 | AR29: -2130.108019 | AS29: =(SUM($AR$5:AR28)*12)*(1/((1+Ruhestandsplanung!$E$22)^(A29-'Ruhestandsplanung Berechnung'!$A$5))) -> -180713.1377
A30: 92 | B30: =B29*(1+Ruhestandsplanung!$E$21) -> 0 | C30: =C29*(1+Ruhestandsplanung!$E$21) -> 0 | D30: =D29*(1+Ruhestandsplanung!$G$11) -> 2265.59115 | E30: 2265.59115 | F30: 126.7210227 | G30: 2138.870127 | H30: =H29*(1+Ruhestandsplanung!$G$12) -> 0 | I30: 0 | J30: 0 | K30: 0 | L30: =L29*(1+Ruhestandsplanung!$G$13) -> 0 | M30: 0 | N30: 0 | O30: 0 | P30: =P29*(1+Ruhestandsplanung!$G$14) -> 0 | Q30: 0 | R30: 0 | S30: 0 | T30: =T29*(1+Ruhestandsplanung!$G$15) -> 0 | U30: 0 | V30: 0 | W30: 0 | X30: =X29*(1+Ruhestandsplanung!$G$16) -> 0 | Y30: 0 | Z30: 0 | AA30: 0 | AB30: =AB29*(1+Ruhestandsplanung!$G$19) -> 0 | AC30: 0 | AD30: 0 | AE30: 0 | AF30: 2265.59115 | AG30: 2265.59115 | AH30: =steuer(Variablen!$B$3,AG30*12)/12 -> 126.7210227 | AI30: 2138.870127 | AK30: 2138.870127 | AL30: 0 | AM30: 0 | AN30: =(AL30-(AM30*12))*Ruhestandsplanung!$E$22 -> 0 | AO30: =steuer(Variablen!$B$3,AG30*12+AN30)/12-AH30 -> 0 | AP30: 0 | AQ30: 2138.870127 | AR30: -2138.870127 | AS30: =(SUM($AR$5:AR29)*12)*(1/((1+Ruhestandsplanung!$E$22)^(A30-'Ruhestandsplanung Berechnung'!$A$5))) -> -179656.0718
A31: 93 | B31: =B30*(1+Ruhestandsplanung!$E$21) -> 0 | C31: =C30*(1+Ruhestandsplanung!$E$21) -> 0 | D31: =D30*(1+Ruhestandsplanung!$G$11) -> 2276.919106 | E31: 2276.919106 | F31: 129.2580416 | G31: 2147.661064 | H31: =H30*(1+Ruhestandsplanung!$G$12) -> 0 | I31: 0 | J31: 0 | K31: 0 | L31: =L30*(1+Ruhestandsplanung!$G$13) -> 0 | M31: 0 | N31: 0 | O31: 0 | P31: =P30*(1+Ruhestandsplanung!$G$14) -> 0 | Q31: 0 | R31: 0 | S31: 0 | T31: =T30*(1+Ruhestandsplanung!$G$15) -> 0 | U31: 0 | V31: 0 | W31: 0 | X31: =X30*(1+Ruhestandsplanung!$G$16) -> 0 | Y31: 0 | Z31: 0 | AA31: 0 | AB31: =AB30*(1+Ruhestandsplanung!$G$19) -> 0 | AC31: 0 | AD31: 0 | AE31: 0 | AF31: 2276.919106 | AG31: 2276.919106 | AH31: =steuer(Variablen!$B$3,AG31*12)/12 -> 129.2580416 | AI31: 2147.661064 | AK31: 2147.661064 | AL31: 0 | AM31: 0 | AN31: =(AL31-(AM31*12))*Ruhestandsplanung!$E$22 -> 0 | AO31: =steuer(Variablen!$B$3,AG31*12+AN31)/12-AH31 -> 0 | AP31: 0 | AQ31: 2147.661064 | AR31: -2147.661064 | AS31: =(SUM($AR$5:AR30)*12)*(1/((1+Ruhestandsplanung!$E$22)^(A31-'Ruhestandsplanung Berechnung'!$A$5))) -> -178319.4697
A32: 94 | B32: =B31*(1+Ruhestandsplanung!$E$21) -> 0 | C32: =C31*(1+Ruhestandsplanung!$E$21) -> 0 | D32: =D31*(1+Ruhestandsplanung!$G$11) -> 2288.303701 | E32: 2288.303701 | F32: 131.8235665 | G32: 2156.480135 | H32: =H31*(1+Ruhestandsplanung!$G$12) -> 0 | I32: 0 | J32: 0 | K32: 0 | L32: =L31*(1+Ruhestandsplanung!$G$13) -> 0 | M32: 0 | N32: 0 | O32: 0 | P32: =P31*(1+Ruhestandsplanung!$G$14) -> 0 | Q32: 0 | R32: 0 | S32: 0 | T32: =T31*(1+Ruhestandsplanung!$G$15) -> 0 | U32: 0 | V32: 0 | W32: 0 | X32: =X31*(1+Ruhestandsplanung!$G$16) -> 0 | Y32: 0 | Z32: 0 | AA32: 0 | AB32: =AB31*(1+Ruhestandsplanung!$G$19) -> 0 | AC32: 0 | AD32: 0 | AE32: 0 | AF32: 2288.303701 | AG32: 2288.303701 | AH32: =steuer(Variablen!$B$3,AG32*12)/12 -> 131.8235665 | AI32: 2156.480135 | AK32: 2156.480135 | AL32: 0 | AM32: 0 | AN32: =(AL32-(AM32*12))*Ruhestandsplanung!$E$22 -> 0 | AO32: =steuer(Variablen!$B$3,AG32*12+AN32)/12-AH32 -> 0 | AP32: 0 | AQ32: 2156.480135 | AR32: -2156.480135 | AS32: =(SUM($AR$5:AR31)*12)*(1/((1+Ruhestandsplanung!$E$22)^(A32-'Ruhestandsplanung Berechnung'!$A$5))) -> -176731.0352
A33: 95 | B33: =B32*(1+Ruhestandsplanung!$E$21) -> 0 | C33: =C32*(1+Ruhestandsplanung!$E$21) -> 0 | D33: =D32*(1+Ruhestandsplanung!$G$11) -> 2299.74522 | E33: 2299.74522 | F33: 134.4174562 | G33: 2165.327764 | H33: =H32*(1+Ruhestandsplanung!$G$12) -> 0 | I33: 0 | J33: 0 | K33: 0 | L33: =L32*(1+Ruhestandsplanung!$G$13) -> 0 | M33: 0 | N33: 0 | O33: 0 | P33: =P32*(1+Ruhestandsplanung!$G$14) -> 0 | Q33: 0 | R33: 0 | S33: 0 | T33: =T32*(1+Ruhestandsplanung!$G$15) -> 0 | U33: 0 | V33: 0 | W33: 0 | X33: =X32*(1+Ruhestandsplanung!$G$16) -> 0 | Y33: 0 | Z33: 0 | AA33: 0 | AB33: =AB32*(1+Ruhestandsplanung!$G$19) -> 0 | AC33: 0 | AD33: 0 | AE33: 0 | AF33: 2299.74522 | AG33: 2299.74522 | AH33: =steuer(Variablen!$B$3,AG33*12)/12 -> 134.4174562 | AI33: 2165.327764 | AK33: 2165.327764 | AL33: 0 | AM33: 0 | AN33: =(AL33-(AM33*12))*Ruhestandsplanung!$E$22 -> 0 | AO33: =steuer(Variablen!$B$3,AG33*12+AN33)/12-AH33 -> 0 | AP33: 0 | AQ33: 2165.327764 | AR33: -2165.327764 | AS33: =(SUM($AR$5:AR32)*12)*(1/((1+Ruhestandsplanung!$E$22)^(A33-'Ruhestandsplanung Berechnung'!$A$5))) -> -174916.524
A34: 96 | B34: =B33*(1+Ruhestandsplanung!$E$21) -> 0 | C34: =C33*(1+Ruhestandsplanung!$E$21) -> 0 | D34: =D33*(1+Ruhestandsplanung!$G$11) -> 2311.243946 | E34: 2311.243946 | F34: 137.039943 | G34: 2174.204003 | H34: =H33*(1+Ruhestandsplanung!$G$12) -> 0 | I34: 0 | J34: 0 | K34: 0 | L34: =L33*(1+Ruhestandsplanung!$G$13) -> 0 | M34: 0 | N34: 0 | O34: 0 | P34: =P33*(1+Ruhestandsplanung!$G$14) -> 0 | Q34: 0 | R34: 0 | S34: 0 | T34: =T33*(1+Ruhestandsplanung!$G$15) -> 0 | U34: 0 | V34: 0 | W34: 0 | X34: =X33*(1+Ruhestandsplanung!$G$16) -> 0 | Y34: 0 | Z34: 0 | AA34: 0 | AB34: =AB33*(1+Ruhestandsplanung!$G$19) -> 0 | AC34: 0 | AD34: 0 | AE34: 0 | AF34: 2311.243946 | AG34: 2311.243946 | AH34: =steuer(Variablen!$B$3,AG34*12)/12 -> 137.039943 | AI34: 2174.204003 | AK34: 2174.204003 | AL34: 0 | AM34: 0 | AN34: =(AL34-(AM34*12))*Ruhestandsplanung!$E$22 -> 0 | AO34: =steuer(Variablen!$B$3,AG34*12+AN34)/12-AH34 -> 0 | AP34: 0 | AQ34: 2174.204003 | AR34: -2174.204003 | AS34: =(SUM($AR$5:AR33)*12)*(1/((1+Ruhestandsplanung!$E$22)^(A34-'Ruhestandsplanung Berechnung'!$A$5))) -> -172899.8667
A35: 97 | B35: =B34*(1+Ruhestandsplanung!$E$21) -> 0 | C35: =C34*(1+Ruhestandsplanung!$E$21) -> 0 | D35: =D34*(1+Ruhestandsplanung!$G$11) -> 2322.800166 | E35: 2322.800166 | F35: 139.691644 | G35: 2183.108522 | H35: =H34*(1+Ruhestandsplanung!$G$12) -> 0 | I35: 0 | J35: 0 | K35: =H35-J35 -> 0 | L35: =L34*(1+Ruhestandsplanung!$G$13) -> 0 | M35: 0 | N35: 0 | O35: 0 | P35: =P34*(1+Ruhestandsplanung!$G$14) -> 0 | Q35: 0 | R35: 0 | S35: 0 | T35: =T34*(1+Ruhestandsplanung!$G$15) -> 0 | U35: 0 | V35: 0 | W35: 0 | X35: =X34*(1+Ruhestandsplanung!$G$16) -> 0 | Y35: 0 | Z35: 0 | AA35: 0 | AB35: =AB34*(1+Ruhestandsplanung!$G$19) -> 0 | AC35: 0 | AD35: 0 | AE35: 0 | AF35: 2322.800166 | AG35: 2322.800166 | AH35: =steuer(Variablen!$B$3,AG35*12)/12 -> 139.691644 | AI35: 2183.108522 | AK35: 2183.108522 | AL35: 0 | AM35: 0 | AN35: =(AL35-(AM35*12))*Ruhestandsplanung!$E$22 -> 0 | AO35: =steuer(Variablen!$B$3,AG35*12+AN35)/12-AH35 -> 0 | AP35: 0 | AQ35: 2183.108522 | AR35: -2183.108522 | AS35: =(SUM($AR$5:AR34)*12)*(1/((1+Ruhestandsplanung!$E$22)^(A35-'Ruhestandsplanung Berechnung'!$A$5))) -> -170703.281
A36: 98 | B36: =B35*(1+Ruhestandsplanung!$E$21) -> 0 | C36: =C35*(1+Ruhestandsplanung!$E$21) -> 0 | D36: =D35*(1+Ruhestandsplanung!$G$11) -> 2334.414167 | E36: 2334.414167 | F36: 142.3724148 | G36: 2192.041752 | H36: =H35*(1+Ruhestandsplanung!$G$12) -> 0 | I36: 0 | J36: 0 | K36: 0 | L36: =L35*(1+Ruhestandsplanung!$G$13) -> 0 | M36: 0 | N36: 0 | O36: 0 | P36: =P35*(1+Ruhestandsplanung!$G$14) -> 0 | Q36: 0 | R36: 0 | S36: 0 | T36: =T35*(1+Ruhestandsplanung!$G$15) -> 0 | U36: 0 | V36: 0 | W36: 0 | X36: =X35*(1+Ruhestandsplanung!$G$16) -> 0 | Y36: 0 | Z36: 0 | AA36: 0 | AB36: =AB35*(1+Ruhestandsplanung!$G$19) -> 0 | AC36: 0 | AD36: 0 | AE36: 0 | AF36: 2334.414167 | AG36: 2334.414167 | AH36: =steuer(Variablen!$B$3,AG36*12)/12 -> 142.3724148 | AI36: 2192.041752 | AK36: 2192.041752 | AL36: 0 | AM36: 0 | AN36: =(AL36-(AM36*12))*Ruhestandsplanung!$E$22 -> 0 | AO36: =steuer(Variablen!$B$3,AG36*12+AN36)/12-AH36 -> 0 | AP36: 0 | AQ36: 2192.041752 | AR36: -2192.041752 | AS36: =(SUM($AR$5:AR35)*12)*(1/((1+Ruhestandsplanung!$E$22)^(A36-'Ruhestandsplanung Berechnung'!$A$5))) -> -168347.3771
A37: 99 | B37: =B36*(1+Ruhestandsplanung!$E$21) -> 0 | C37: =C36*(1+Ruhestandsplanung!$E$21) -> 0 | D37: =D36*(1+Ruhestandsplanung!$G$11) -> 2346.086237 | E37: 2346.086237 | F37: 145.0832676 | G37: 2201.00297 | H37: =H36*(1+Ruhestandsplanung!$G$12) -> 0 | I37: 0 | J37: 0 | K37: 0 | L37: =L36*(1+Ruhestandsplanung!$G$13) -> 0 | M37: 0 | N37: 0 | O37: 0 | P37: =P36*(1+Ruhestandsplanung!$G$14) -> 0 | Q37: 0 | R37: 0 | S37: 0 | T37: =T36*(1+Ruhestandsplanung!$G$15) -> 0 | U37: 0 | V37: 0 | W37: 0 | X37: =X36*(1+Ruhestandsplanung!$G$16) -> 0 | Y37: 0 | Z37: 0 | AA37: 0 | AB37: =AB36*(1+Ruhestandsplanung!$G$19) -> 0 | AC37: 0 | AD37: 0 | AE37: 0 | AF37: 2346.086237 | AG37: 2346.086237 | AH37: =steuer(Variablen!$B$3,AG37*12)/12 -> 145.0832676 | AI37: 2201.00297 | AK37: 2201.00297 | AL37: 0 | AM37: 0 | AN37: =(AL37-(AM37*12))*Ruhestandsplanung!$E$22 -> 0 | AO37: =steuer(Variablen!$B$3,AG37*12+AN37)/12-AH37 -> 0 | AP37: 0 | AQ37: 2201.00297 | AR37: -2201.00297 | AS37: =(SUM($AR$5:AR36)*12)*(1/((1+Ruhestandsplanung!$E$22)^(A37-'Ruhestandsplanung Berechnung'!$A$5))) -> -165851.2601
A38: 100 | B38: =B37*(1+Ruhestandsplanung!$E$21) -> 0 | C38: =C37*(1+Ruhestandsplanung!$E$21) -> 0 | D38: =D37*(1+Ruhestandsplanung!$G$11) -> 2357.816669 | E38: 2357.816669 | F38: 147.8236723 | G38: 2209.992996 | H38: =H37*(1+Ruhestandsplanung!$G$12) -> 0 | I38: 0 | J38: 0 | K38: 0 | L38: =L37*(1+Ruhestandsplanung!$G$13) -> 0 | M38: 0 | N38: 0 | O38: 0 | P38: =P37*(1+Ruhestandsplanung!$G$14) -> 0 | Q38: 0 | R38: 0 | S38: 0 | T38: =T37*(1+Ruhestandsplanung!$G$15) -> 0 | U38: 0 | V38: 0 | W38: 0 | X38: =X37*(1+Ruhestandsplanung!$G$16) -> 0 | Y38: 0 | Z38: 0 | AA38: 0 | AB38: =AB37*(1+Ruhestandsplanung!$G$19) -> 0 | AC38: 0 | AD38: 0 | AE38: 0 | AF38: =D38+H38+L38+P38+T38+X38+AB38 -> 2357.816669 | AG38: 2357.816669 | AH38: =steuer(Variablen!$B$3,AG38*12)/12 -> 147.8236723 | AI38: 2209.992996 | AK38: 2209.992996 | AL38: 0 | AM38: 0 | AN38: =(AL38-(AM38*12))*Ruhestandsplanung!$E$22 -> 0 | AO38: =steuer(Variablen!$B$3,AG38*12+AN38)/12-AH38 -> 0 | AP38: 0 | AQ38: 2209.992996 | AR38: -2209.992996 | AS38: =(SUM($AR$5:AR37)*12)*(1/((1+Ruhestandsplanung!$E$22)^(A38-'Ruhestandsplanung Berechnung'!$A$5))) -> -163232.6217
A39: 101 | B39: =B38*(1+Ruhestandsplanung!$E$21) -> 0 | C39: =C38*(1+Ruhestandsplanung!$E$21) -> 0 | D39: =D38*(1+Ruhestandsplanung!$G$11) -> 2369.605752 | E39: 2369.605752 | F39: 150.5942598 | G39: 2219.011492 | H39: =H38*(1+Ruhestandsplanung!$G$12) -> 0 | I39: 0 | J39: 0 | K39: 0 | L39: =L38*(1+Ruhestandsplanung!$G$13) -> 0 | M39: 0 | N39: 0 | O39: 0 | P39: =P38*(1+Ruhestandsplanung!$G$14) -> 0 | Q39: 0 | R39: 0 | S39: 0 | T39: =T38*(1+Ruhestandsplanung!$G$15) -> 0 | U39: 0 | V39: 0 | W39: 0 | X39: =X38*(1+Ruhestandsplanung!$G$16) -> 0 | Y39: 0 | Z39: 0 | AA39: 0 | AB39: =AB38*(1+Ruhestandsplanung!$G$19) -> 0 | AC39: 0 | AD39: 0 | AE39: 0 | AF39: 2369.605752 | AG39: 2369.605752 | AH39: =steuer(Variablen!$B$3,AG39*12)/12 -> 150.5942598 | AI39: 2219.011492 | AK39: 2219.011492 | AL39: 0 | AM39: 0 | AN39: =(AL39-(AM39*12))*Ruhestandsplanung!$E$22 -> 0 | AO39: =steuer(Variablen!$B$3,AG39*12+AN39)/12-AH39 -> 0 | AP39: 0 | AQ39: 2219.011492 | AR39: -2219.011492 | AS39: =(SUM($AR$5:AR38)*12)*(1/((1+Ruhestandsplanung!$E$22)^(A39-'Ruhestandsplanung Berechnung'!$A$5))) -> -160507.833
A40: 102 | B40: =B39*(1+Ruhestandsplanung!$E$21) -> 0 | C40: =C39*(1+Ruhestandsplanung!$E$21) -> 0 | D40: =D39*(1+Ruhestandsplanung!$G$11) -> 2381.453781 | E40: 2381.453781 | F40: 153.3956718 | G40: 2228.058109 | H40: =H39*(1+Ruhestandsplanung!$G$12) -> 0 | I40: 0 | J40: 0 | K40: 0 | L40: =L39*(1+Ruhestandsplanung!$G$13) -> 0 | M40: 0 | N40: 0 | O40: 0 | P40: =P39*(1+Ruhestandsplanung!$G$14) -> 0 | Q40: 0 | R40: 0 | S40: 0 | T40: =T39*(1+Ruhestandsplanung!$G$15) -> 0 | U40: 0 | V40: 0 | W40: 0 | X40: =X39*(1+Ruhestandsplanung!$G$16) -> 0 | Y40: 0 | Z40: 0 | AA40: 0 | AB40: =AB39*(1+Ruhestandsplanung!$G$19) -> 0 | AC40: 0 | AD40: 0 | AE40: 0 | AF40: 2381.453781 | AG40: 2381.453781 | AH40: =steuer(Variablen!$B$3,AG40*12)/12 -> 153.3956718 | AI40: 2228.058109 | AK40: 2228.058109 | AL40: 0 | AM40: 0 | AN40: =(AL40-(AM40*12))*Ruhestandsplanung!$E$22 -> 0 | AO40: =steuer(Variablen!$B$3,AG40*12+AN40)/12-AH40 -> 0 | AP40: 0 | AQ40: 2228.058109 | AR40: -2228.058109 | AS40: =(SUM($AR$5:AR39)*12)*(1/((1+Ruhestandsplanung!$E$22)^(A40-'Ruhestandsplanung Berechnung'!$A$5))) -> -157692.0256
A41: 103 | B41: =B40*(1+Ruhestandsplanung!$E$21) -> 0 | C41: =C40*(1+Ruhestandsplanung!$E$21) -> 0 | D41: =D40*(1+Ruhestandsplanung!$G$11) -> 2393.36105 | E41: 2393.36105 | F41: 156.228163 | G41: 2237.132887 | H41: =H40*(1+Ruhestandsplanung!$G$12) -> 0 | I41: 0 | J41: 0 | K41: 0 | L41: =L40*(1+Ruhestandsplanung!$G$13) -> 0 | M41: 0 | N41: 0 | O41: 0 | P41: =P40*(1+Ruhestandsplanung!$G$14) -> 0 | Q41: 0 | R41: 0 | S41: 0 | T41: =T40*(1+Ruhestandsplanung!$G$15) -> 0 | U41: 0 | V41: 0 | W41: 0 | X41: =X40*(1+Ruhestandsplanung!$G$16) -> 0 | Y41: 0 | Z41: 0 | AA41: 0 | AB41: =AB40*(1+Ruhestandsplanung!$G$19) -> 0 | AC41: 0 | AD41: 0 | AE41: 0 | AF41: 2393.36105 | AG41: 2393.36105 | AH41: =steuer(Variablen!$B$3,AG41*12)/12 -> 156.228163 | AI41: 2237.132887 | AK41: 2237.132887 | AL41: 0 | AM41: 0 | AN41: =(AL41-(AM41*12))*Ruhestandsplanung!$E$22 -> 0 | AO41: =steuer(Variablen!$B$3,AG41*12+AN41)/12-AH41 -> 0 | AP41: 0 | AQ41: 2237.132887 | AR41: -2237.132887 | AS41: =(SUM($AR$5:AR40)*12)*(1/((1+Ruhestandsplanung!$E$22)^(A41-'Ruhestandsplanung Berechnung'!$A$5))) -> -154799.1705
A42: 104 | B42: =B41*(1+Ruhestandsplanung!$E$21) -> 0 | C42: =C41*(1+Ruhestandsplanung!$E$21) -> 0 | D42: =D41*(1+Ruhestandsplanung!$G$11) -> 2405.327855 | E42: 2405.327855 | F42: 159.0915894 | G42: 2246.236265 | H42: =H41*(1+Ruhestandsplanung!$G$12) -> 0 | I42: 0 | J42: 0 | K42: 0 | L42: =L41*(1+Ruhestandsplanung!$G$13) -> 0 | M42: 0 | N42: 0 | O42: 0 | P42: =P41*(1+Ruhestandsplanung!$G$14) -> 0 | Q42: 0 | R42: 0 | S42: 0 | T42: =T41*(1+Ruhestandsplanung!$G$15) -> 0 | U42: 0 | V42: 0 | W42: 0 | X42: =X41*(1+Ruhestandsplanung!$G$16) -> 0 | Y42: 0 | Z42: 0 | AA42: 0 | AB42: =AB41*(1+Ruhestandsplanung!$G$19) -> 0 | AC42: 0 | AD42: 0 | AE42: 0 | AF42: 2405.327855 | AG42: 2405.327855 | AH42: =steuer(Variablen!$B$3,AG42*12)/12 -> 159.0915894 | AI42: 2246.236265 | AK42: 2246.236265 | AL42: 0 | AM42: 0 | AN42: =(AL42-(AM42*12))*Ruhestandsplanung!$E$22 -> 0 | AO42: =steuer(Variablen!$B$3,AG42*12+AN42)/12-AH42 -> 0 | AP42: 0 | AQ42: 2246.236265 | AR42: -2246.236265 | AS42: =(SUM($AR$5:AR41)*12)*(1/((1+Ruhestandsplanung!$E$22)^(A42-'Ruhestandsplanung Berechnung'!$A$5))) -> -151842.1538
A43: 105 | B43: =B42*(1+Ruhestandsplanung!$E$21) -> 0 | C43: =C42*(1+Ruhestandsplanung!$E$21) -> 0 | D43: =D42*(1+Ruhestandsplanung!$G$11) -> 2417.354494 | E43: 2417.354494 | F43: 161.9866035 | G43: 2255.367891 | H43: =H42*(1+Ruhestandsplanung!$G$12) -> 0 | I43: 0 | J43: 0 | K43: 0 | L43: =L42*(1+Ruhestandsplanung!$G$13) -> 0 | M43: 0 | N43: 0 | O43: 0 | P43: =P42*(1+Ruhestandsplanung!$G$14) -> 0 | Q43: 0 | R43: 0 | S43: 0 | T43: =T42*(1+Ruhestandsplanung!$G$15) -> 0 | U43: 0 | V43: 0 | W43: 0 | X43: =X42*(1+Ruhestandsplanung!$G$16) -> 0 | Y43: 0 | Z43: 0 | AA43: 0 | AB43: =AB42*(1+Ruhestandsplanung!$G$19) -> 0 | AC43: 0 | AD43: 0 | AE43: 0 | AF43: 2417.354494 | AG43: 2417.354494 | AH43: =steuer(Variablen!$B$3,AG43*12)/12 -> 161.9866035 | AI43: 2255.367891 | AK43: 2255.367891 | AL43: 0 | AM43: 0 | AN43: =(AL43-(AM43*12))*Ruhestandsplanung!$E$22 -> 0 | AO43: =steuer(Variablen!$B$3,AG43*12+AN43)/12-AH43 -> 0 | AP43: 0 | AQ43: 2255.367891 | AR43: -2255.367891 | AS43: =(SUM($AR$5:AR42)*12)*(1/((1+Ruhestandsplanung!$E$22)^(A43-'Ruhestandsplanung Berechnung'!$A$5))) -> -148832.8469
A44: 106 | B44: =B43*(1+Ruhestandsplanung!$E$21) -> 0 | C44: =C43*(1+Ruhestandsplanung!$E$21) -> 0 | D44: =D43*(1+Ruhestandsplanung!$G$11) -> 2429.441267 | E44: 2429.441267 | F44: 164.9134637 | G44: 2264.527803 | H44: =H43*(1+Ruhestandsplanung!$G$12) -> 0 | I44: 0 | J44: 0 | K44: 0 | L44: =L43*(1+Ruhestandsplanung!$G$13) -> 0 | M44: 0 | N44: 0 | O44: 0 | P44: =P43*(1+Ruhestandsplanung!$G$14) -> 0 | Q44: 0 | R44: 0 | S44: 0 | T44: =T43*(1+Ruhestandsplanung!$G$15) -> 0 | U44: 0 | V44: 0 | W44: 0 | X44: =X43*(1+Ruhestandsplanung!$G$16) -> 0 | Y44: 0 | Z44: 0 | AA44: 0 | AB44: =AB43*(1+Ruhestandsplanung!$G$19) -> 0 | AC44: 0 | AD44: 0 | AE44: 0 | AF44: 2429.441267 | AG44: 2429.441267 | AH44: =steuer(Variablen!$B$3,AG44*12)/12 -> 164.9134637 | AI44: 2264.527803 | AK44: 2264.527803 | AL44: 0 | AM44: 0 | AN44: =(AL44-(AM44*12))*Ruhestandsplanung!$E$22 -> 0 | AO44: =steuer(Variablen!$B$3,AG44*12+AN44)/12-AH44 -> 0 | AP44: 0 | AQ44: 2264.527803 | AR44: -2264.527803 | AS44: =(SUM($AR$5:AR43)*12)*(1/((1+Ruhestandsplanung!$E$22)^(A44-'Ruhestandsplanung Berechnung'!$A$5))) -> -145782.1708
A45: 107 | B45: =B44*(1+Ruhestandsplanung!$E$21) -> 0 | C45: =C44*(1+Ruhestandsplanung!$E$21) -> 0 | D45: =D44*(1+Ruhestandsplanung!$G$11) -> 2441.588473 | E45: 2441.588473 | F45: 167.87243 | G45: 2273.716043 | H45: =H44*(1+Ruhestandsplanung!$G$12) -> 0 | I45: 0 | J45: 0 | K45: 0 | L45: =L44*(1+Ruhestandsplanung!$G$13) -> 0 | M45: 0 | N45: 0 | O45: 0 | P45: =P44*(1+Ruhestandsplanung!$G$14) -> 0 | Q45: 0 | R45: 0 | S45: 0 | T45: =T44*(1+Ruhestandsplanung!$G$15) -> 0 | U45: 0 | V45: 0 | W45: 0 | X45: =X44*(1+Ruhestandsplanung!$G$16) -> 0 | Y45: 0 | Z45: 0 | AA45: 0 | AB45: =AB44*(1+Ruhestandsplanung!$G$19) -> 0 | AC45: 0 | AD45: 0 | AE45: 0 | AF45: 2441.588473 | AG45: 2441.588473 | AH45: =steuer(Variablen!$B$3,AG45*12)/12 -> 167.87243 | AI45: 2273.716043 | AK45: 2273.716043 | AL45: 0 | AM45: 0 | AN45: =(AL45-(AM45*12))*Ruhestandsplanung!$E$22 -> 0 | AO45: =steuer(Variablen!$B$3,AG45*12+AN45)/12-AH45 -> 0 | AP45: 0 | AQ45: 2273.716043 | AR45: -2273.716043 | AS45: =(SUM($AR$5:AR44)*12)*(1/((1+Ruhestandsplanung!$E$22)^(A45-'Ruhestandsplanung Berechnung'!$A$5))) -> -142700.1595
A46: 108 | B46: =B45*(1+Ruhestandsplanung!$E$21) -> 0 | C46: =C45*(1+Ruhestandsplanung!$E$21) -> 0 | D46: =D45*(1+Ruhestandsplanung!$G$11) -> 2453.796415 | E46: 2453.796415 | F46: 170.8641731 | G46: 2282.932242 | H46: =H45*(1+Ruhestandsplanung!$G$12) -> 0 | I46: 0 | J46: 0 | K46: 0 | L46: =L45*(1+Ruhestandsplanung!$G$13) -> 0 | M46: 0 | N46: 0 | O46: 0 | P46: =P45*(1+Ruhestandsplanung!$G$14) -> 0 | Q46: 0 | R46: 0 | S46: 0 | T46: =T45*(1+Ruhestandsplanung!$G$15) -> 0 | U46: 0 | V46: 0 | W46: 0 | X46: =X45*(1+Ruhestandsplanung!$G$16) -> 0 | Y46: 0 | Z46: 0 | AA46: 0 | AB46: =AB45*(1+Ruhestandsplanung!$G$19) -> 0 | AC46: 0 | AD46: 0 | AE46: 0 | AF46: 2453.796415 | AG46: 2453.796415 | AH46: =steuer(Variablen!$B$3,AG46*12)/12 -> 170.8641731 | AI46: 2282.932242 | AK46: 2282.932242 | AL46: 0 | AM46: 0 | AN46: =(AL46-(AM46*12))*Ruhestandsplanung!$E$22 -> 0 | AO46: =steuer(Variablen!$B$3,AG46*12+AN46)/12-AH46 -> 0 | AP46: 0 | AQ46: 2282.932242 | AR46: -2282.932242 | AS46: =(SUM($AR$5:AR45)*12)*(1/((1+Ruhestandsplanung!$E$22)^(A46-'Ruhestandsplanung Berechnung'!$A$5))) -> -139596.0172
A47: 109 | B47: =B46*(1+Ruhestandsplanung!$E$21) -> 0 | C47: =C46*(1+Ruhestandsplanung!$E$21) -> 0 | D47: =D46*(1+Ruhestandsplanung!$G$11) -> 2466.065397 | E47: 2466.065397 | F47: 160.2274193 | G47: 2305.837978 | H47: =H46*(1+Ruhestandsplanung!$G$12) -> 0 | I47: 0 | J47: 0 | K47: 0 | L47: =L46*(1+Ruhestandsplanung!$G$13) -> 0 | M47: 0 | N47: 0 | O47: 0 | P47: =P46*(1+Ruhestandsplanung!$G$14) -> 0 | Q47: 0 | R47: 0 | S47: 0 | T47: =T46*(1+Ruhestandsplanung!$G$15) -> 0 | U47: 0 | V47: 0 | W47: 0 | X47: =X46*(1+Ruhestandsplanung!$G$16) -> 0 | Y47: 0 | Z47: 0 | AA47: 0 | AB47: =AB46*(1+Ruhestandsplanung!$G$19) -> 0 | AC47: 0 | AD47: 0 | AE47: 0 | AF47: 2466.065397 | AG47: 2466.065397 | AH47: =steuer(Variablen!$B$3,AG47*12)/12 -> 160.2274193 | AI47: 2305.837978 | AK47: 2305.837978 | AL47: 0 | AM47: 0 | AN47: =(AL47-(AM47*12))*Ruhestandsplanung!$E$22 -> 0 | AO47: =steuer(Variablen!$B$3,AG47*12+AN47)/12-AH47 -> 0 | AP47: 0 | AQ47: 2305.837978 | AR47: -2305.837978 | AS47: =(SUM($AR$5:AR46)*12)*(1/((1+Ruhestandsplanung!$E$22)^(A47-'Ruhestandsplanung Berechnung'!$A$5))) -> -136478.1733
A48: =A47+1 -> 110 | B48: =B47*(1+Ruhestandsplanung!$E$21) -> 0 | C48: =C47*(1+Ruhestandsplanung!$E$21) -> 0 | D48: =D47*(1+Ruhestandsplanung!$G$11) -> 2478.395724 | E48: 2478.395724 | F48: 163.18706 | G48: 2315.208664 | H48: =H47*(1+Ruhestandsplanung!$G$12) -> 0 | I48: 0 | J48: 0 | K48: 0 | L48: =L47*(1+Ruhestandsplanung!$G$13) -> 0 | M48: 0 | N48: 0 | O48: 0 | P48: =P47*(1+Ruhestandsplanung!$G$14) -> 0 | Q48: 0 | R48: 0 | S48: 0 | T48: =T47*(1+Ruhestandsplanung!$G$15) -> 0 | U48: 0 | V48: 0 | W48: 0 | X48: =X47*(1+Ruhestandsplanung!$G$16) -> 0 | Y48: 0 | Z48: 0 | AA48: 0 | AB48: =AB47*(1+Ruhestandsplanung!$G$19) -> 0 | AC48: 0 | AD48: 0 | AE48: 0 | AF48: 2478.395724 | AG48: 2478.395724 | AH48: =steuer(Variablen!$B$3,AG48*12)/12 -> 163.18706 | AI48: 2315.208664 | AK48: 2315.208664 | AL48: 0 | AM48: 0 | AN48: =(AL48-(AM48*12))*Ruhestandsplanung!$E$22 -> 0 | AO48: =steuer(Variablen!$B$3,AG48*12+AN48)/12-AH48 -> 0 | AP48: 0 | AQ48: 2315.208664 | AR48: -2315.208664 | AS48: =(SUM($AR$5:AR47)*12)*(1/((1+Ruhestandsplanung!$E$22)^(A48-'Ruhestandsplanung Berechnung'!$A$5))) -> -133374.4503
A49: 111 | B49: =B48*(1+Ruhestandsplanung!$E$21) -> 0 | C49: =C48*(1+Ruhestandsplanung!$E$21) -> 0 | D49: =D48*(1+Ruhestandsplanung!$G$11) -> 2490.787703 | E49: 2490.787703 | F49: 166.1657425 | G49: 2324.621961 | H49: =H48*(1+Ruhestandsplanung!$G$12) -> 0 | I49: 0 | J49: 0 | K49: 0 | L49: =L48*(1+Ruhestandsplanung!$G$13) -> 0 | M49: 0 | N49: 0 | O49: 0 | P49: =P48*(1+Ruhestandsplanung!$G$14) -> 0 | Q49: 0 | R49: 0 | S49: 0 | T49: =T48*(1+Ruhestandsplanung!$G$15) -> 0 | U49: 0 | V49: 0 | W49: 0 | X49: =X48*(1+Ruhestandsplanung!$G$16) -> 0 | Y49: 0 | Z49: 0 | AA49: 0 | AB49: =AB48*(1+Ruhestandsplanung!$G$19) -> 0 | AC49: 0 | AD49: 0 | AE49: 0 | AF49: 2490.787703 | AG49: 2490.787703 | AH49: =steuer(Variablen!$B$3,AG49*12)/12 -> 166.1657425 | AI49: 2324.621961 | AK49: 2324.621961 | AL49: 0 | AM49: 0 | AN49: =(AL49-(AM49*12))*Ruhestandsplanung!$E$22 -> 0 | AO49: =steuer(Variablen!$B$3,AG49*12+AN49)/12-AH49 -> 0 | AP49: 0 | AQ49: 2324.621961 | AR49: -2324.621961 | AS49: =(SUM($AR$5:AR48)*12)*(1/((1+Ruhestandsplanung!$E$22)^(A49-'Ruhestandsplanung Berechnung'!$A$5))) -> -130269.9865
A50: 112 | B50: =B49*(1+Ruhestandsplanung!$E$21) -> 0 | C50: =C49*(1+Ruhestandsplanung!$E$21) -> 0 | D50: =D49*(1+Ruhestandsplanung!$G$11) -> 2503.241642 | E50: 2503.241642 | F50: 169.1627229 | G50: 2334.078919 | H50: =H49*(1+Ruhestandsplanung!$G$12) -> 0 | I50: 0 | J50: 0 | K50: 0 | L50: =L49*(1+Ruhestandsplanung!$G$13) -> 0 | M50: 0 | N50: 0 | O50: 0 | P50: =P49*(1+Ruhestandsplanung!$G$14) -> 0 | Q50: 0 | R50: 0 | S50: 0 | T50: =T49*(1+Ruhestandsplanung!$G$15) -> 0 | U50: 0 | V50: 0 | W50: 0 | X50: =X49*(1+Ruhestandsplanung!$G$16) -> 0 | Y50: 0 | Z50: 0 | AA50: 0 | AB50: =AB49*(1+Ruhestandsplanung!$G$19) -> 0 | AC50: 0 | AD50: 0 | AE50: 0 | AF50: 2503.241642 | AG50: 2503.241642 | AH50: =steuer(Variablen!$B$3,AG50*12)/12 -> 169.1627229 | AI50: 2334.078919 | AK50: 2334.078919 | AL50: 0 | AM50: 0 | AN50: =(AL50-(AM50*12))*Ruhestandsplanung!$E$22 -> 0 | AO50: =steuer(Variablen!$B$3,AG50*12+AN50)/12-AH50 -> 0 | AP50: 0 | AQ50: 2334.078919 | AR50: -2334.078919 | AS50: =(SUM($AR$5:AR49)*12)*(1/((1+Ruhestandsplanung!$E$22)^(A50-'Ruhestandsplanung Berechnung'!$A$5))) -> -127171.3215
A51: 113 | B51: =B50*(1+Ruhestandsplanung!$E$21) -> 0 | C51: =C50*(1+Ruhestandsplanung!$E$21) -> 0 | D51: =D50*(1+Ruhestandsplanung!$G$11) -> 2515.75785 | E51: 2515.75785 | F51: 172.178862 | G51: 2343.578988 | H51: =H50*(1+Ruhestandsplanung!$G$12) -> 0 | I51: 0 | J51: 0 | K51: 0 | L51: =L50*(1+Ruhestandsplanung!$G$13) -> 0 | M51: 0 | N51: 0 | O51: 0 | P51: =P50*(1+Ruhestandsplanung!$G$14) -> 0 | Q51: 0 | R51: 0 | S51: 0 | T51: =T50*(1+Ruhestandsplanung!$G$15) -> 0 | U51: 0 | V51: 0 | W51: 0 | X51: =X50*(1+Ruhestandsplanung!$G$16) -> 0 | Y51: 0 | Z51: 0 | AA51: 0 | AB51: =AB50*(1+Ruhestandsplanung!$G$19) -> 0 | AC51: 0 | AD51: 0 | AE51: 0 | AF51: 2515.75785 | AG51: 2515.75785 | AH51: =steuer(Variablen!$B$3,AG51*12)/12 -> 172.178862 | AI51: 2343.578988 | AK51: 2343.578988 | AL51: 0 | AM51: 0 | AN51: =(AL51-(AM51*12))*Ruhestandsplanung!$E$22 -> 0 | AO51: =steuer(Variablen!$B$3,AG51*12+AN51)/12-AH51 -> 0 | AP51: 0 | AQ51: 2343.578988 | AR51: -2343.578988 | AS51: =(SUM($AR$5:AR50)*12)*(1/((1+Ruhestandsplanung!$E$22)^(A51-'Ruhestandsplanung Berechnung'!$A$5))) -> -124084.3995
A52: 114 | B52: =B51*(1+Ruhestandsplanung!$E$21) -> 0 | C52: =C51*(1+Ruhestandsplanung!$E$21) -> 0 | D52: =D51*(1+Ruhestandsplanung!$G$11) -> 2528.336639 | E52: 2528.336639 | F52: 175.2138154 | G52: 2353.122824 | H52: =H51*(1+Ruhestandsplanung!$G$12) -> 0 | I52: 0 | J52: 0 | K52: 0 | L52: =L51*(1+Ruhestandsplanung!$G$13) -> 0 | M52: 0 | N52: 0 | O52: 0 | P52: =P51*(1+Ruhestandsplanung!$G$14) -> 0 | Q52: 0 | R52: 0 | S52: 0 | T52: =T51*(1+Ruhestandsplanung!$G$15) -> 0 | U52: 0 | V52: 0 | W52: 0 | X52: =X51*(1+Ruhestandsplanung!$G$16) -> 0 | Y52: 0 | Z52: 0 | AA52: 0 | AB52: =AB51*(1+Ruhestandsplanung!$G$19) -> 0 | AC52: 0 | AD52: 0 | AE52: 0 | AF52: 2528.336639 | AG52: 2528.336639 | AH52: =steuer(Variablen!$B$3,AG52*12)/12 -> 175.2138154 | AI52: 2353.122824 | AK52: 2353.122824 | AL52: 0 | AM52: 0 | AN52: =(AL52-(AM52*12))*Ruhestandsplanung!$E$22 -> 0 | AO52: =steuer(Variablen!$B$3,AG52*12+AN52)/12-AH52 -> 0 | AP52: 0 | AQ52: 2353.122824 | AR52: -2353.122824 | AS52: =(SUM($AR$5:AR51)*12)*(1/((1+Ruhestandsplanung!$E$22)^(A52-'Ruhestandsplanung Berechnung'!$A$5))) -> -121014.6081
A53: 115 | B53: =B52*(1+Ruhestandsplanung!$E$21) -> 0 | C53: =C52*(1+Ruhestandsplanung!$E$21) -> 0 | D53: =D52*(1+Ruhestandsplanung!$G$11) -> 2540.978322 | E53: 2540.978322 | F53: 178.268046 | G53: 2362.710276 | H53: =H52*(1+Ruhestandsplanung!$G$12) -> 0 | I53: 0 | J53: 0 | K53: 0 | L53: =L52*(1+Ruhestandsplanung!$G$13) -> 0 | M53: 0 | N53: 0 | O53: 0 | P53: =P52*(1+Ruhestandsplanung!$G$14) -> 0 | Q53: 0 | R53: 0 | S53: 0 | T53: =T52*(1+Ruhestandsplanung!$G$15) -> 0 | U53: 0 | V53: 0 | W53: 0 | X53: =X52*(1+Ruhestandsplanung!$G$16) -> 0 | Y53: 0 | Z53: 0 | AA53: 0 | AB53: =AB52*(1+Ruhestandsplanung!$G$19) -> 0 | AC53: 0 | AD53: 0 | AE53: 0 | AF53: 2540.978322 | AG53: 2540.978322 | AH53: =steuer(Variablen!$B$3,AG53*12)/12 -> 178.268046 | AI53: 2362.710276 | AK53: 2362.710276 | AL53: 0 | AM53: 0 | AN53: =(AL53-(AM53*12))*Ruhestandsplanung!$E$22 -> 0 | AO53: =steuer(Variablen!$B$3,AG53*12+AN53)/12-AH53 -> 0 | AP53: 0 | AQ53: 2362.710276 | AR53: -2362.710276 | AS53: =(SUM($AR$5:AR52)*12)*(1/((1+Ruhestandsplanung!$E$22)^(A53-'Ruhestandsplanung Berechnung'!$A$5))) -> -117966.818
A54: 116 | B54: =B53*(1+Ruhestandsplanung!$E$21) -> 0 | C54: =C53*(1+Ruhestandsplanung!$E$21) -> 0 | D54: =D53*(1+Ruhestandsplanung!$G$11) -> 2553.683214 | E54: 2553.683214 | F54: 181.3416141 | G54: 2372.3416 | H54: =H53*(1+Ruhestandsplanung!$G$12) -> 0 | I54: 0 | J54: 0 | K54: 0 | L54: =L53*(1+Ruhestandsplanung!$G$13) -> 0 | M54: 0 | N54: 0 | O54: 0 | P54: =P53*(1+Ruhestandsplanung!$G$14) -> 0 | Q54: 0 | R54: 0 | S54: 0 | T54: =T53*(1+Ruhestandsplanung!$G$15) -> 0 | U54: 0 | V54: 0 | W54: 0 | X54: =X53*(1+Ruhestandsplanung!$G$16) -> 0 | Y54: 0 | Z54: 0 | AA54: 0 | AB54: =AB53*(1+Ruhestandsplanung!$G$19) -> 0 | AC54: 0 | AD54: 0 | AE54: 0 | AF54: 2553.683214 | AG54: 2553.683214 | AH54: =steuer(Variablen!$B$3,AG54*12)/12 -> 181.3416141 | AI54: 2372.3416 | AK54: 2372.3416 | AL54: 0 | AM54: 0 | AN54: =(AL54-(AM54*12))*Ruhestandsplanung!$E$22 -> 0 | AO54: =steuer(Variablen!$B$3,AG54*12+AN54)/12-AH54 -> 0 | AP54: 0 | AQ54: 2372.3416 | AR54: -2372.3416 | AS54: =(SUM($AR$5:AR53)*12)*(1/((1+Ruhestandsplanung!$E$22)^(A54-'Ruhestandsplanung Berechnung'!$A$5))) -> -114945.4185
A55: 117 | B55: =B54*(1+Ruhestandsplanung!$E$21) -> 0 | C55: =C54*(1+Ruhestandsplanung!$E$21) -> 0 | D55: =D54*(1+Ruhestandsplanung!$G$11) -> 2566.45163 | E55: 2566.45163 | F55: 184.4345784 | G55: 2382.017051 | H55: =H54*(1+Ruhestandsplanung!$G$12) -> 0 | I55: 0 | J55: 0 | K55: 0 | L55: =L54*(1+Ruhestandsplanung!$G$13) -> 0 | M55: 0 | N55: 0 | O55: 0 | P55: =P54*(1+Ruhestandsplanung!$G$14) -> 0 | Q55: 0 | R55: 0 | S55: 0 | T55: =T54*(1+Ruhestandsplanung!$G$15) -> 0 | U55: 0 | V55: 0 | W55: 0 | X55: =X54*(1+Ruhestandsplanung!$G$16) -> 0 | Y55: 0 | Z55: 0 | AA55: 0 | AB55: =AB54*(1+Ruhestandsplanung!$G$19) -> 0 | AC55: 0 | AD55: 0 | AE55: 0 | AF55: 2566.45163 | AG55: 2566.45163 | AH55: =steuer(Variablen!$B$3,AG55*12)/12 -> 184.4345784 | AI55: 2382.017051 | AK55: 2382.017051 | AL55: 0 | AM55: 0 | AN55: =(AL55-(AM55*12))*Ruhestandsplanung!$E$22 -> 0 | AO55: =steuer(Variablen!$B$3,AG55*12+AN55)/12-AH55 -> 0 | AP55: 0 | AQ55: 2382.017051 | AR55: -2382.017051 | AS55: =(SUM($AR$5:AR54)*12)*(1/((1+Ruhestandsplanung!$E$22)^(A55-'Ruhestandsplanung Berechnung'!$A$5))) -> -111954.3514
A56: 118 | B56: =B55*(1+Ruhestandsplanung!$E$21) -> 0 | C56: =C55*(1+Ruhestandsplanung!$E$21) -> 0 | D56: =D55*(1+Ruhestandsplanung!$G$11) -> 2579.283888 | E56: 2579.283888 | F56: 187.547 | G56: 2391.736888 | H56: =H55*(1+Ruhestandsplanung!$G$12) -> 0 | I56: 0 | J56: 0 | K56: 0 | L56: =L55*(1+Ruhestandsplanung!$G$13) -> 0 | M56: 0 | N56: 0 | O56: 0 | P56: =P55*(1+Ruhestandsplanung!$G$14) -> 0 | Q56: 0 | R56: 0 | S56: 0 | T56: =T55*(1+Ruhestandsplanung!$G$15) -> 0 | U56: 0 | V56: 0 | W56: 0 | X56: =X55*(1+Ruhestandsplanung!$G$16) -> 0 | Y56: 0 | Z56: 0 | AA56: 0 | AB56: =AB55*(1+Ruhestandsplanung!$G$19) -> 0 | AC56: 0 | AD56: 0 | AE56: 0 | AF56: 2579.283888 | AG56: 2579.283888 | AH56: =steuer(Variablen!$B$3,AG56*12)/12 -> 187.547 | AI56: 2391.736888 | AK56: 2391.736888 | AL56: 0 | AM56: 0 | AN56: =(AL56-(AM56*12))*Ruhestandsplanung!$E$22 -> 0 | AO56: =steuer(Variablen!$B$3,AG56*12+AN56)/12-AH56 -> 0 | AP56: 0 | AQ56: 2391.736888 | AR56: -2391.736888 | AS56: =(SUM($AR$5:AR55)*12)*(1/((1+Ruhestandsplanung!$E$22)^(A56-'Ruhestandsplanung Berechnung'!$A$5))) -> -108997.1435
A57: 119 | B57: =B56*(1+Ruhestandsplanung!$E$21) -> 0 | C57: =C56*(1+Ruhestandsplanung!$E$21) -> 0 | D57: =D56*(1+Ruhestandsplanung!$G$11) -> 2592.180307 | E57: 2592.180307 | F57: 190.6793473 | G57: 2401.50096 | H57: =H56*(1+Ruhestandsplanung!$G$12) -> 0 | I57: 0 | J57: 0 | K57: 0 | L57: =L56*(1+Ruhestandsplanung!$G$13) -> 0 | M57: 0 | N57: 0 | O57: 0 | P57: =P56*(1+Ruhestandsplanung!$G$14) -> 0 | Q57: 0 | R57: 0 | S57: 0 | T57: =T56*(1+Ruhestandsplanung!$G$15) -> 0 | U57: 0 | V57: 0 | W57: 0 | X57: =X56*(1+Ruhestandsplanung!$G$16) -> 0 | Y57: 0 | Z57: 0 | AA57: 0 | AB57: =AB56*(1+Ruhestandsplanung!$G$19) -> 0 | AC57: 0 | AD57: 0 | AE57: 0 | AF57: 2592.180307 | AG57: 2592.180307 | AH57: =steuer(Variablen!$B$3,AG57*12)/12 -> 190.6793473 | AI57: 2401.50096 | AK57: 2401.50096 | AL57: 0 | AM57: 0 | AN57: =(AL57-(AM57*12))*Ruhestandsplanung!$E$22 -> 0 | AO57: =steuer(Variablen!$B$3,AG57*12+AN57)/12-AH57 -> 0 | AP57: 0 | AQ57: 2401.50096 | AR57: -2401.50096 | AS57: =(SUM($AR$5:AR56)*12)*(1/((1+Ruhestandsplanung!$E$22)^(A57-'Ruhestandsplanung Berechnung'!$A$5))) -> -106076.9352
A58: 120 | B58: =B57*(1+Ruhestandsplanung!$E$21) -> 0 | C58: =C57*(1+Ruhestandsplanung!$E$21) -> 0 | D58: =D57*(1+Ruhestandsplanung!$G$11) -> 2605.141209 | E58: 2605.141209 | F58: 193.8316803 | G58: 2411.309529 | H58: =H57*(1+Ruhestandsplanung!$G$12) -> 0 | I58: 0 | J58: 0 | K58: 0 | L58: =L57*(1+Ruhestandsplanung!$G$13) -> 0 | M58: 0 | N58: 0 | O58: 0 | P58: =P57*(1+Ruhestandsplanung!$G$14) -> 0 | Q58: 0 | R58: 0 | S58: 0 | T58: =T57*(1+Ruhestandsplanung!$G$15) -> 0 | U58: 0 | V58: 0 | W58: 0 | X58: =X57*(1+Ruhestandsplanung!$G$16) -> 0 | Y58: 0 | Z58: 0 | AA58: 0 | AB58: =AB57*(1+Ruhestandsplanung!$G$19) -> 0 | AC58: 0 | AD58: 0 | AE58: 0 | AF58: 2605.141209 | AG58: 2605.141209 | AH58: =steuer(Variablen!$B$3,AG58*12)/12 -> 193.8316803 | AI58: 2411.309529 | AK58: 2411.309529 | AL58: 0 | AM58: 0 | AN58: =(AL58-(AM58*12))*Ruhestandsplanung!$E$22 -> 0 | AO58: =steuer(Variablen!$B$3,AG58*12+AN58)/12-AH58 -> 0 | AP58: 0 | AQ58: 2411.309529 | AR58: -2411.309529 | AS58: =(SUM($AR$5:AR57)*12)*(1/((1+Ruhestandsplanung!$E$22)^(A58-'Ruhestandsplanung Berechnung'!$A$5))) -> -103196.5093
A59: 121 | B59: =B58*(1+Ruhestandsplanung!$E$21) -> 0 | C59: =C58*(1+Ruhestandsplanung!$E$21) -> 0 | D59: =D58*(1+Ruhestandsplanung!$G$11) -> 2618.166915 | E59: 2618.166915 | F59: 197.0036598 | G59: 2421.163255 | H59: =H58*(1+Ruhestandsplanung!$G$12) -> 0 | I59: 0 | J59: 0 | K59: 0 | L59: =L58*(1+Ruhestandsplanung!$G$13) -> 0 | M59: 0 | N59: 0 | O59: 0 | P59: =P58*(1+Ruhestandsplanung!$G$14) -> 0 | Q59: 0 | R59: 0 | S59: 0 | T59: =T58*(1+Ruhestandsplanung!$G$15) -> 0 | U59: 0 | V59: 0 | W59: 0 | X59: =X58*(1+Ruhestandsplanung!$G$16) -> 0 | Y59: 0 | Z59: 0 | AA59: 0 | AB59: =AB58*(1+Ruhestandsplanung!$G$19) -> 0 | AC59: 0 | AD59: 0 | AE59: 0 | AF59: 2618.166915 | AG59: 2618.166915 | AH59: =steuer(Variablen!$B$3,AG59*12)/12 -> 197.0036598 | AI59: 2421.163255 | AK59: 2421.163255 | AL59: 0 | AM59: 0 | AN59: =(AL59-(AM59*12))*Ruhestandsplanung!$E$22 -> 0 | AO59: =steuer(Variablen!$B$3,AG59*12+AN59)/12-AH59 -> 0 | AP59: 0 | AQ59: 2421.163255 | AR59: -2421.163255 | AS59: =(SUM($AR$5:AR58)*12)*(1/((1+Ruhestandsplanung!$E$22)^(A59-'Ruhestandsplanung Berechnung'!$A$5))) -> -100358.3167
A60: 122 | B60: =B59*(1+Ruhestandsplanung!$E$21) -> 0 | C60: =C59*(1+Ruhestandsplanung!$E$21) -> 0 | D60: =D59*(1+Ruhestandsplanung!$G$11) -> 2631.25775 | E60: 2631.25775 | F60: 200.1961571 | G60: 2431.061593 | H60: =H59*(1+Ruhestandsplanung!$G$12) -> 0 | I60: 0 | J60: 0 | K60: 0 | L60: =L59*(1+Ruhestandsplanung!$G$13) -> 0 | M60: 0 | N60: 0 | O60: 0 | P60: =P59*(1+Ruhestandsplanung!$G$14) -> 0 | Q60: 0 | R60: 0 | S60: 0 | T60: =T59*(1+Ruhestandsplanung!$G$15) -> 0 | U60: 0 | V60: 0 | W60: 0 | X60: =X59*(1+Ruhestandsplanung!$G$16) -> 0 | Y60: 0 | Z60: 0 | AA60: 0 | AB60: =AB59*(1+Ruhestandsplanung!$G$19) -> 0 | AC60: 0 | AD60: 0 | AE60: 0 | AF60: 2631.25775 | AG60: 2631.25775 | AH60: =steuer(Variablen!$B$3,AG60*12)/12 -> 200.1961571 | AI60: 2431.061593 | AK60: 2431.061593 | AL60: 0 | AM60: 0 | AN60: =(AL60-(AM60*12))*Ruhestandsplanung!$E$22 -> 0 | AO60: =steuer(Variablen!$B$3,AG60*12+AN60)/12-AH60 -> 0 | AP60: 0 | AQ60: 2431.061593 | AR60: -2431.061593 | AS60: =(SUM($AR$5:AR59)*12)*(1/((1+Ruhestandsplanung!$E$22)^(A60-'Ruhestandsplanung Berechnung'!$A$5))) -> -97564.50174
A61: 123 | B61: =B60*(1+Ruhestandsplanung!$E$21) -> 0 | C61: =C60*(1+Ruhestandsplanung!$E$21) -> 0 | D61: =D60*(1+Ruhestandsplanung!$G$11) -> 2644.414038 | E61: 2644.414038 | F61: 203.4084275 | G61: 2441.005611 | H61: =H60*(1+Ruhestandsplanung!$G$12) -> 0 | I61: 0 | J61: 0 | K61: 0 | L61: =L60*(1+Ruhestandsplanung!$G$13) -> 0 | M61: 0 | N61: 0 | O61: 0 | P61: =P60*(1+Ruhestandsplanung!$G$14) -> 0 | Q61: 0 | R61: 0 | S61: 0 | T61: =T60*(1+Ruhestandsplanung!$G$15) -> 0 | U61: 0 | V61: 0 | W61: 0 | X61: =X60*(1+Ruhestandsplanung!$G$16) -> 0 | Y61: 0 | Z61: 0 | AA61: 0 | AB61: =AB60*(1+Ruhestandsplanung!$G$19) -> 0 | AC61: 0 | AD61: 0 | AE61: 0 | AF61: 2644.414038 | AG61: 2644.414038 | AH61: =steuer(Variablen!$B$3,AG61*12)/12 -> 203.4084275 | AI61: 2441.005611 | AK61: 2441.005611 | AL61: 0 | AM61: 0 | AN61: =(AL61-(AM61*12))*Ruhestandsplanung!$E$22 -> 0 | AO61: =steuer(Variablen!$B$3,AG61*12+AN61)/12-AH61 -> 0 | AP61: 0 | AQ61: 2441.005611 | AR61: -2441.005611 | AS61: =(SUM($AR$5:AR60)*12)*(1/((1+Ruhestandsplanung!$E$22)^(A61-'Ruhestandsplanung Berechnung'!$A$5))) -> -94816.92385
A62: 124 | B62: =B61*(1+Ruhestandsplanung!$E$21) -> 0 | C62: =C61*(1+Ruhestandsplanung!$E$21) -> 0 | D62: =D61*(1+Ruhestandsplanung!$G$11) -> 2657.636109 | E62: 2657.636109 | F62: 206.641752 | G62: 2450.994357 | H62: =H61*(1+Ruhestandsplanung!$G$12) -> 0 | I62: 0 | J62: 0 | K62: 0 | L62: =L61*(1+Ruhestandsplanung!$G$13) -> 0 | M62: 0 | N62: 0 | O62: 0 | P62: =P61*(1+Ruhestandsplanung!$G$14) -> 0 | Q62: 0 | R62: 0 | S62: 0 | T62: =T61*(1+Ruhestandsplanung!$G$15) -> 0 | U62: 0 | V62: 0 | W62: 0 | X62: =X61*(1+Ruhestandsplanung!$G$16) -> 0 | Y62: 0 | Z62: 0 | AA62: 0 | AB62: =AB61*(1+Ruhestandsplanung!$G$19) -> 0 | AC62: 0 | AD62: 0 | AE62: 0 | AF62: 2657.636109 | AG62: 2657.636109 | AH62: =steuer(Variablen!$B$3,AG62*12)/12 -> 206.641752 | AI62: 2450.994357 | AK62: 2450.994357 | AL62: 0 | AM62: 0 | AN62: =(AL62-(AM62*12))*Ruhestandsplanung!$E$22 -> 0 | AO62: =steuer(Variablen!$B$3,AG62*12+AN62)/12-AH62 -> 0 | AP62: 0 | AQ62: 2450.994357 | AR62: -2450.994357 | AS62: =(SUM($AR$5:AR61)*12)*(1/((1+Ruhestandsplanung!$E$22)^(A62-'Ruhestandsplanung Berechnung'!$A$5))) -> -92117.18059
A65: Auswertung | L65: Auswertung Auszahlplan
B66: Wunschrente | C66: Gesamtrente | D66: Lücke | M66: Wunschrente | N66: Gesamtrente | O66: Lücke
A67: =A5 -> 67 | B67: =VLOOKUP(A67,$A$5:$AF$62,2) -> 0 | C67: =VLOOKUP(A67,$A$5:$AF$62,11) -> 0 | D67: =B67-C67 -> 0 | L67: =A67 -> 67 | M67: =VLOOKUP(L67,$A$5:$AF$62,2) -> 0 | N67: =VLOOKUP(L67,$A$5:$AQ$62,18) -> 0 | O67: =M67-N67 -> 0
A68: =A67+10 -> 77 | B68: 0 | C68: 0 | D68: =B68-C68 -> 0 | L68: =L67+10 -> 77 | M68: 0 | N68: 0 | O68: 0
A69: =A68+10 -> 87 | B69: 0 | C69: 0 | D69: 0 | L69: =L68+10 -> 87 | M69: 0 | N69: 0 | O69: 0
A70: 97 | B70: 0 | C70: 0 | D70: 0 | L70: 97 | M70: 0 | N70: 0 | O70: 0
A71: 107 | B71: 0 | C71: 0 | D71: 0 | L71: 107 | M71: 0 | N71: 0 | O71: 0
A72: =A71+10 -> 117 | B72: 0 | C72: 0 | D72: =B72-C72 -> 0 | L72: 117 | M72: 0 | N72: 0 | O72: 0

Sheet Risikoklasse (hidden)
H19: Risikostufe
A20: Gesetzliche Rente / Versorgungswerk | F20: =Eingabe!E16 -> 2000
A21: Basisrente | F21: =Eingabe!E17 -> 0
A22: Riesterrente | F22: =Eingabe!E18 -> 0
A23: betriebliche Altersversorgung | F23: =Eingabe!E19 -> 0
A24: Sonstige Renten | F24: =Eingabe!E21 -> 0
A25: Immobilie | F25: =Eingabe!E21 -> 0
A28: Sonstiges verfüg. Vermögen für die Altersversorgung | F28: =Eingabe!E24 -> 0
A29: Verrentungsfaktor | F29: ='Risikoklasse Berechnen'!F1 -> 335 | H29: ='Risikoklasse Berechnen'!H12 -> 1
A30: Rente aus dem Kapital | F30: =F28/F29 -> 0
A32: Neuanlage | F32: 0
A36: Ihre Ziel-Risikostufe
D37: =IF('Risikoklasse Berechnen'!$C$1=1,0,1) -> 1 | E37: =IF('Risikoklasse Berechnen'!$C$1=2,0,1) -> 1 | F37: =IF('Risikoklasse Berechnen'!$C$1=3,0,1) -> 0 | G37: =IF('Risikoklasse Berechnen'!$C$1=4,0,1) -> 1 | H37: =IF('Risikoklasse Berechnen'!$C$1=5,0,1) -> 1
D38: =IF('Risikoklasse Berechnen'!$J$21=1,0,1) -> 0 | E38: =IF('Risikoklasse Berechnen'!$J$21=2,0,1) -> 1 | F38: =IF('Risikoklasse Berechnen'!$J$21=3,0,1) -> 1 | G38: =IF('Risikoklasse Berechnen'!$J$21=4,0,1) -> 1 | H38: =IF('Risikoklasse Berechnen'!$J$21=5,0,1) -> 1
A39: Aktuelle Risikostufe Ihrer Gesamtanlage
A41: ="Die Gesamtheit Ihres aktuellen Vermögens ist der Risikostufe "&'Risikoklasse Berechnen'!J21&" zugeordnet." -> Die Gesamtheit Ihres aktuellen Vermögens ist der Risikostufe 1 zugeordnet.
A42: =IF('Risikoklasse Berechnen'!C1>'Risikoklasse Berechnen'!J21,"Achtung, Ihre Gesamtanlage hat eine geringere Risikostufe als gewünscht. Dementsprechend kann die erwartete Rendite Ihrer aktuellen Vermögenstruktur niedriger ausfallen als erwartet!",IF('Risikoklasse Berechnen'!C1<'Risikoklasse Berechnen'!J21,"Achtung, Ihre Gesamtanlage hat eine größere Risikostufe als gewünscht.","Ihre Risikostufe passt mit Ihrer Risikostufe der Gesamtanlage.")) -> Achtung, Ihre Gesamtanlage hat eine geringere Risikostufe als gewünscht. Dementsprechend kann die erwartete Rendite Ihrer aktuellen Vermögenstruktur niedriger ausfallen als erwartet!
A52: Wichtige Fragen zu den einzelnen Anlagen
A54: Gesetzliche Rente / Versorgungswerk
A55: Die gesetzliche Rente oder ein Versorgungswerk wird durch die Gesetzgebung und durch die Bevölkerungsstruktur beeinflusst. Wie wird sich dieser Einkommensbaustein entwickeln?
A57: Betriebliche Altersversorgung
A58: Durch das Niedrigzinsumfeld werden die Überschüsse und Zinsen weiter sinken. Auch eine Reduktion der Anwartschaft durch den Arbeitgeber ist möglich. Wie wirkt sich das auf die Auszahlungen aus?
A60: Immobilie
A61: Gibt es einen Instandhaltungsstau bei Ihrer Immobilie? Wie wird sich der Immobiliemarkt und auch der Standort Ihrer Immobilie entwickeln?
A63: Lebensversicherungen / Rentenversicherungen
A64: Durch das Niedrigzinsumfeld werden die Überschüsse und Zinsen sinken. Welchen Einfluss hat dies auf die Ablaufwerte und Renten?
A66: Fondspolicen / Investmentdepot
A67: Aktienmärkte können schwanken. Ist Ihr Depot so investiert, dass Sie vorübergehende Schwankungen abwarten und abfedern können?
A69: Fazit
A70: Um ein angemessenes Einkommen im Alter zu gewährleisten, sollten Sie auf verschiedene Vorsorge-formen setzen. Zusätzlich sollten auch die Risikoklassen gemischt werden, um eine ausreichende Streuung der Risiken zu erreichen.
G72: ="Stand 1/"&Variablen!B1&"" -> Stand 1/2022
A73: Quelle: Eigene Berechnungen auf Basis Ihrer Angaben und der gesetzlichen / steuerrechtlichen Daten.
A74: Für die Richtigkeit der Angaben kann keine Gewähr übernommen werden, denn Programm- und Berechnungsfehler sind trotz sorgfältigstem Vorgehen nicht ausgeschlossen.

Sheet Risikoklasse Berechnen (hidden)
A1: Risikoklasse 1 | B1: 2 | C1: =IF(B1=5,1,B1+1) -> 3 | E1: Rentenfaktor | F1: =Variablen!E13 -> 335
A2: Risikoklasse2
A3: Risikoklasse 3
A4: Risikoklasse 4
A5: Risikoklasse 5
B11: Gesetzliche Rente | C11: Basisrente | D11: Riesterrente | E11: bAV | F11: Immobilie | G11: Rente | H11: Kapital | I11: Neuanlage
B12: 1 | C12: 1 | D12: 1 | E12: 1 | F12: 1 | G12: 1 | H12: =Variablen!B9 -> 1 | I12: 1
B13: 1 | C13: 1 | D13: 1 | E13: 1 | F13: 2 | G13: 1 | H13: 1 | I13: 1
C14: 2 | D14: 2 | E14: 2 | F14: 3 | G14: 2 | H14: 2 | I14: 2
C15: 3 | D15: 3 | E15: 3 | G15: 3 | H15: 3 | I15: 3
C16: 4 | E16: 4 | H16: 4 | I16: 4
C17: 5 | E17: 5 | H17: 5 | I17: 5
A18: Rentenfaktor | B18: =Variablen!E11 -> 335 | C18: =Variablen!E11 -> 335 | D18: =Variablen!E11 -> 335 | E18: =Variablen!E11 -> 335 | G18: =Variablen!E13 -> 335
A19: Kapital | B19: =Risikoklasse!F20*'Risikoklasse Berechnen'!B18 -> 670000 | C19: =Risikoklasse!F21*'Risikoklasse Berechnen'!C18 -> 0 | D19: =Risikoklasse!F22*'Risikoklasse Berechnen'!D18 -> 0 | E19: =Risikoklasse!F23*'Risikoklasse Berechnen'!E18 -> 0 | F19: =Risikoklasse!F25 -> 0 | G19: =Risikoklasse!F24*'Risikoklasse Berechnen'!G18 -> 0 | H19: =Risikoklasse!F28 -> 0 | I19: =Risikoklasse!F32 -> 0 | J19: =B19+C19+D19+E19+F19+G19+H19+I19 -> 670000
A20: Prozent | B20: =B19/IF($J$19=0,0.0000001,$J$19) -> 1 | C20: =C19/IF($J$19=0,0.0000001,$J$19) -> 0 | D20: 0 | E20: 0 | F20: 0 | G20: 0 | H20: 0 | I20: 0 | J20: =SUM(B20:I20) -> 1
A21: Risikoklasse der Anlagen | B21: =B12*B20 -> 1 | C21: =C12*C20 -> 0 | D21: 0 | E21: 0 | F21: 0 | G21: 0 | H21: 0 | I21: 0 | J21: =ROUND(SUM(B21:I21),0) -> 1
A24: Achtung, Ihre Gesamtanlage hat eine geringere Risikoklasse als gewünscht. Dementsprechend kann die erwartete Rendite Ihrer aktuellen Vermögenstruktur niedriger ausfallen!

Sheet Sicherheit Ausgabe (hidden)
A12: In der jetzigen Zinslandschaft sind hohe Renditen bei gleichzeitig hoher Sicherheit kaum noch möglich!
A13: Die Eigenschaften Rendite, Verfügbarkeit (Liquidität) und Sicherheit hängen "magisch" (magisches Drei-/Seckseck) miteinander zusammen. Oft kann nur ein Punkt optimiert werden. Dies bedeutet, wenn für ein Ziel (z.B. Ruhestand) eine gewisse Summe und somit eine gewisse Rendite benötigt wird, müssen bei den Punkten Sicherheit und / oder Verfügbarkeit Abstriche gemacht werden. Zusätzlich sollten Punkte wie Kosten, Steuer und Inflation berücksichtigt werden, da diese zusätzlich die Rendite beeinflussen.
A28: ="Sie möchten Ihre Rentenlücke in Höhe von "&FIXED(Eingabe!E31,0)&" EUR mtl. mit Hilfe eines zusätzlichen Sparvertrags / Sparvolumens schließen." -> Sie möchten Ihre Rentenlücke in Höhe von 0 EUR mtl. mit Hilfe eines zusätzlichen Sparvertrags / Sparvolumens schließen.
C30: Rendite p.a. | E30: mtl. Beitrag
C31: =Sicherheit!E15 -> 0.02 | E31: =ROUND(Sicherheit!G15,0) -> 0
C32: =Sicherheit!G20 ->  | E32: =Sicherheit!E20 -> 100
A35: ="Bei einer Rendite von "&FIXED(Sicherheit!E15*100,2)&"% p.a. ist eine monatliche Sparleistung von ca. "&FIXED(Sicherheit!G15/10,0)*10&" EUR monatlich erforderlich. Falls sich die Rendite in der Ansparphase auf "&FIXED(Sicherheit!G20*100,2)&"% p.a. belaufen wird, beträgt der notwendige Beitrag in der Ansparphase "&FIXED(Sicherheit!E20,0)&" EUR p.a.." -> 
A36: ="Was meinen Sie? Wäre etwas mehr Risiko - also auch etwas mehr Renditeerwartung - für Sie vorstellbar, um Ihr Ziel - das Schließen der Rentenlücke - zu erreichen? Diese "&"Angaben wurden mit einem durchschnittlichen Kostensatz berechnet. Renditen oberhalb von "&Variablen!E24*100&"% sprechen für Anlagen ohne Garantie." -> Was meinen Sie? Wäre etwas mehr Risiko - also auch etwas mehr Renditeerwartung - für Sie vorstellbar, um Ihr Ziel - das Schließen der Rentenlücke - zu erreichen? Diese Angaben wurden mit einem durchschnittlichen Kostensatz berechnet. Renditen oberhalb von 2% sprechen für Anlagen ohne Garantie.
A39: Quelle: Eigene Berechnungen auf Basis Ihrer Angaben und der gesetzlichen Daten. | H39: ="1 / "&Variablen!B1&"" -> 1 / 2022
A40: Für die Richtigkeit der Angaben kann keine Gewähr übernommen werden, denn Programm- und Berechnungsfehler sind trotz sorgfältigstem Vorgehen nicht ausgeschlossen.

Sheet Schichtennavigator Ausgabe (hidden)
B13: Ziel: | C13: =Schichtennavigator!E13 -> 0 | E13: ="im Alter von "&Eingabe!C10&" Jahren." -> im Alter von 67 Jahren.
B16: Ansparphase | C16: Basisrente | D16: Riesterrente | E16: Privatrente
B17: Beitrag nach Förderung mtl. | C17: ='Schichtennavigator Berechnung'!E6 ->  | D17: ='Schichtennavigator Berechnung'!H10 ->  | E17: =E18 ->  | F17: =IF(Variablen!B9=1,"","ACHTUNG: Die Verrentung in der Privatrente ist als ''volatil'' vorgegeben! ("&Variablen!B10&")") -> 
B18: Beitrag vor Förderung mtl. | C18: =-PMT((C19)/12,Variablen!B15*12,0,C20,1) ->  | D18: =-PMT((D19)/12,Variablen!B15*12,0,D20,1) ->  | E18: =-PMT((E19)/12,Variablen!B15*12,0,E20,1) -> 
B19: Zins p.a. | C19: =IF(Variablen!F16=2,MIN(MAX(Schichtennavigator!E17-Eingabe!E33,0)*IF(Variablen!F16=2,0.7,1),'Schichtennavigator Berechnung'!B2-Eingabe!E33),MAX(Schichtennavigator!E17-Eingabe!E33,0)*IF(Variablen!F16=2,0.7,1)) ->  | D19: =ROUNDUP(MIN(MAX(Schichtennavigator!E17-Eingabe!E33,0)*0.9*IF(Variablen!F16=2,0.7,1),('Schichtennavigator Berechnung'!B2-Eingabe!E33)*0.9*0.7),3) ->  | E19: =IF(Variablen!F16=2,MIN(MAX(Schichtennavigator!E17-Eingabe!E33,0)*IF(Variablen!F16=2,0.7,1),'Schichtennavigator Berechnung'!B2-Eingabe!E33),MAX(Schichtennavigator!E17-Eingabe!E33,0)*IF(Variablen!F16=2,0.7,1)) ->  | F19: ="Kosten Garantie: 30% (max. "&Variablen!E24*100&"% Rendite) Mehrkosten Riester: 10%, Vertragskosten: "&Eingabe!E33*100&"% p.a." -> Kosten Garantie: 30% (max. 2% Rendite) Mehrkosten Riester: 10%, Vertragskosten: 0,13% p.a.
B20: Kapital | C20: =ROUND(C21*C24/1000,0)*1000 -> 335000 | D20: =ROUND(D21*D24/1000,0)*1000 -> 335000 | E20: =ROUND(E21*E24/1000,0)*1000 -> 270000
B21: Renten-Faktoren | C21: =Variablen!E11 -> 335 | D21: =C21 -> 335 | E21: =Variablen!E13 -> 335
B23: Rentenphase | C23: Basisrente | D23: Riesterrente | E23: Privatrente
B24: Rente vor Steuern | C24: =MAX('Schichtennavigator Berechnung'!E16/12,0) -> 1000.000593 | D24: =MAX('Schichtennavigator Berechnung'!H16/12,0) -> 1000.000593 | E24: =MAX('Schichtennavigator Berechnung'!B16/12,0) -> 807.1567517
B25: Sonstige Renten | C25: =E25 -> 2000 | D25: =E25 -> 2000 | E25: =SUM(Eingabe!E16:F21)+Eingabe!E25 -> 2000
B26: Steuer (mtl.) | C26: ='Schichtennavigator Berechnung'!E35/12 -> 291.8808282 | D26: ='Schichtennavigator Berechnung'!H35/12 -> 291.8808282 | E26: ='Schichtennavigator Berechnung'!B35/12 -> 99.03767036
B27: Rente nach Steuern | C27: =C24+C25-C26 -> 2708.119765 | D27: =D24+D25-D26 -> 2708.119765 | E27: =E24+E25-E26 -> 2708.119081
B28: ="Bitte beachten Sie, dass die simulierte Rechnung den maximalen Beitrag für die Riesterrente (2.100 EUR) und der Basisrente ("&FIXED(Variablen!D29*Variablen!B3,0)&" EUR) nicht berücksichtigt, damit die geförderten Produkte nicht wegen des Höchstbeitrages herausfallen." -> Bitte beachten Sie, dass die simulierte Rechnung den maximalen Beitrag für die Riesterrente (2.100 EUR) und der Basisrente (51.278 EUR) nicht berücksichtigt, damit die geförderten Produkte nicht wegen des Höchstbeitrages herausfallen.
B30: Die Berechnung zeigt folgende Reihenfolge, wenn es lediglich um die Eigenschaft "Rendite" geht. Bedenken Sie, dass geförderte Produkte eine gewisse Inflexibilität beinhalten. Lediglich in der Privatrente sind Sie voll flexibel! Eine Mischung aus geförderten und flexiblen Produkten (Privatrente) ist auf jeden Fall anzuraten.
A32: Rangfolge bei reiner Renditebetrachtung
D34: =""&'Schichtennavigator Berechnung'!B9&"" -> 
C36: =""&'Schichtennavigator Berechnung'!B10&"" -> 
E38: =""&'Schichtennavigator Berechnung'!B11&"" -> 
A43: Rangfolge bei Wunsch nach Flexibilitäten wie Entnahmen, fondsgebundene Verrentung und freie Todesfallleistung
D45: Privatrente
C47: Riesterrente
E49: Basisrente
A53: Quelle: Eigene Berechnungen auf Basis Ihrer Angaben und der gesetzlichen Daten. | E53: ="1 / "&Variablen!B1&"" -> 1 / 2022
A54: Für die Richtigkeit der Angaben kann keine Gewähr übernommen werden, denn Programm- und Berechnungsfehler sind trotz sorgfältigstem Vorgehen nicht ausgeschlossen.

Sheet Schichtennavigator Berechnung (hidden)
A1: Beitrags - Förderberchnung
A2: Maximale Rendite bei Beitragsgarantie: | B2: =Variablen!E24 -> 0.02 | D2: Brutto-Beitrag mtl. | E2: ='Schichtennavigator Ausgabe'!C18 ->  | G2: Brutto-Beitrag mtl. | H2: ='Schichtennavigator Ausgabe'!D18 -> 
A3: =MAX(A5,A6,A7) ->  | B3: Maximum | D3: Prozent | E3: =Variablen!L2 -> 0.94 | G3: Prozent | H3: 1
A4: =MIN(A5,A6,A7) ->  | B4: Minimum | D4: Absetzbar mtl. | E4: =E2*E3 ->  | G4: Absetzbar mtl. | H4: =H2*H3 -> 
A5: =ROUND('Schichtennavigator Ausgabe'!C17,0) ->  | B5: Basisrente | D5: Steuerersparnis p.a. | E5: =steuer(Variablen!B3,Hilfe!E17)-steuer(Variablen!B3,Hilfe!E17-'Schichtennavigator Berechnung'!E4*12) ->  | G5: Steuerersparnis p.a. | H5: =steuer(Variablen!B3,Hilfe!E17)-steuer(Variablen!B3,Hilfe!E17-H4*12) -> 
A6: =ROUND('Schichtennavigator Ausgabe'!D17,0) ->  | B6: Riesterrente | D6: Netto-Beitrag mtl. | E6: =E2-(E5/12) ->  | G6: Zulage p.a. | H6: =Schichtennavigator!E15*Variablen!E20+Schichtennavigator!E16*Variablen!E21+Variablen!E22 -> 175
A7: =ROUND('Schichtennavigator Ausgabe'!E17,0) ->  | B7: Privatrente
A8: Reihenfolge | G8: Günstigerprüfung | H8: =IF(H5>H6,H5,H6) -> 
A9: Platz 1 | B9: =IF(A4=A5,B5,IF(A4=A6,B6,B7)) -> 
A10: Platz 2 | B10: =IF(C10=A5,B5,IF(C10=A6,B6,B7)) ->  | C10: =SUM(A5:A7)-A3-A4 ->  | G10: Netto-Beitrag mtl. | H10: =MAX(H2-(H8/12),60/12) -> 
A11: Platz 3 | B11: =IF(A3=A5,B5,IF(A3=A6,B6,B7)) -> 
A13: Private Rente | D13: Basisrente | G13: Riesterrente
A14: Gesamteinkommen | B14: =(SUM(Eingabe!E16:F21)+Eingabe!E25)*12 -> 24000 | D14: Gesamteinkommen | E14: =B14 -> 24000 | G14: Gesamteinkommen | H14: =E14 -> 24000
A15: Sonstige Rente zu versteuern p.a. | B15: =Hilfe!B13 -> 24000 | D15: Sonstige Rente zu versteuern p.a. | E15: =B15 -> 24000 | G15: Sonstige Rente zu versteuern p.a. | H15: =E15 -> 24000
A16: Brutto-Rente p.a. | B16: 9685.88102 | D16: Brutto-Basisrente p.a. | E16: 12000.00712 | G16: Brutto-Basisrente p.a. | H16: 12000.00712
A17: Steuer p.a. | B17: =steuer(Variablen!B3,'Schichtennavigator Berechnung'!B15+'Schichtennavigator Berechnung'!B16*Variablen!I2) -> 1188.452044 | D17: Steuer p.a. | E17: =steuer(Variablen!B3,'Schichtennavigator Berechnung'!E15+E16*Variablen!M3) -> 3502.569938 | G17: Steuer p.a. | H17: =steuer(Variablen!B3,'Schichtennavigator Berechnung'!H15+H16) -> 3502.569938
A18: Netto Rente (Gesamt) mtl. | B18: =(B14+B16-B17)/12 -> 2708.119081 | D18: Netto Rente (Gesamt) mtl. | E18: =(E14+E16-E17)/12 -> 2708.119765 | G18: Netto Rente (Gesamt) mtl. | H18: =(H14+H16-H17)/12 -> 2708.119765
A19: Netto Rentenziel (Gesamt, Vorgabe) mtl. | B19: =Schichtennavigator!G13 -> 0 | D19: Netto Rentenziel (Gesamt, Vorgabe) mtl. | E19: =B19 -> 0 | G19: Netto Rentenziel (Gesamt, Vorgabe) mtl. | H19: =E19 -> 0
A25: Einkommensart | B25: Steuerpflichtig | D25: Einkommensart | E25: Steuerpflichtig | G25: Einkommensart | H25: Steuerpflichtig
A26: =Hilfe!A6 -> Gesetzliche Rente / Versorgungswerk (Brutto) | B26: =Eingabe!E16*Variablen!M3 -> 2000 | D26: =A26 -> Gesetzliche Rente / Versorgungswerk (Brutto) | E26: =B26 -> 2000 | G26: =D26 -> Gesetzliche Rente / Versorgungswerk (Brutto) | H26: =E26 -> 2000
A27: =Hilfe!A7 -> Basisrente (Brutto) | B27: =Eingabe!E17*Variablen!M3 -> 0 | D27: =A27 -> Basisrente (Brutto) | E27: =B27 -> 0 | G27: =D27 -> Basisrente (Brutto) | H27: =E27 -> 0
A28: =Hilfe!A8 -> Riesterrente (Brutto) | B28: =Eingabe!E18 -> 0 | D28: Riesterrente (Brutto) | E28: 0 | G28: Riesterrente (Brutto) | H28: 0
A29: =Hilfe!A9 -> betriebliche Altersversorgung (Brutto) | B29: =Eingabe!E19 -> 0 | D29: betriebliche Altersversorgung (Brutto) | E29: 0 | G29: betriebliche Altersversorgung (Brutto) | H29: 0
A30: =Hilfe!A10 -> Mieteinkünfte (Brutto) | B30: =Eingabe!E20 -> 0 | D30: Mieteinkünfte (Brutto) | E30: 0 | G30: Mieteinkünfte (Brutto) | H30: 0
A31: =Hilfe!A11 -> Sonstige Renten m. Ertragsanteil (Brutto) | B31: =Eingabe!E21*Variablen!I2 -> 0 | D31: Sonstige Renten m. Ertragsanteil (Brutto) | E31: 0 | G31: Sonstige Renten m. Ertragsanteil (Brutto) | H31: 0
A32: =Hilfe!A12 -> Sonstiges Vermögen (mit Ertragsanteil) | B32: =Eingabe!E25*Variablen!I2 -> 0 | D32: Sonstiges Vermögen (mit Ertragsanteil) | E32: 0 | G32: Sonstiges Vermögen (mit Ertragsanteil) | H32: 0
A33: Private Rente mtl. (steuerpflichtig) | B33: =B16/12*Variablen!I2 -> 137.2166478 | D33: Basisrente mtl. (steuerpflichtig) | E33: =E16/12*Variablen!M3 -> 1000.000593 | G33: Riesterrente mtl. (steuerpflichtig) | H33: =H16/12 -> 1000.000593
A34: =Hilfe!A13 -> Gesamt Steuerpflichtig p.a. | B34: =SUM(B26:B33)*12 -> 25646.59977 | D34: =A34 -> Gesamt Steuerpflichtig p.a. | E34: =SUM(E26:E33)*12 -> 36000.00712 | G34: =D34 -> Gesamt Steuerpflichtig p.a. | H34: =SUM(H26:H33)*12 -> 36000.00712
A35: =Hilfe!A14 -> Steuer | B35: =steuer(Variablen!B3,'Schichtennavigator Berechnung'!B34) -> 1188.452044 | D35: =A35 -> Steuer | E35: =steuer(Variablen!B3,'Schichtennavigator Berechnung'!E34) -> 3502.569938 | G35: =D35 -> Steuer | H35: =steuer(Variablen!B3,'Schichtennavigator Berechnung'!H34) -> 3502.569938
A36: =Hilfe!A15 -> Nettoeinkommen mtl. | B36: =(B14+B16-B35)/12 -> 2708.119081 | D36: =A36 -> Nettoeinkommen mtl. | E36: =(E14+E16-E35)/12 -> 2708.119765 | G36: Nettoeinkommen mtl. | H36: =(H14+H16-H35)/12 -> 2708.119765

Sheet Ruhestandsplanung Ausgabe (hidden)
A12: ="Ruhestandsplanung für "&Eingabe!C8&" "&Eingabe!G8&"" -> Ruhestandsplanung für Max Mustermann
A14: ="Herzlichen Glückwunsch "&Eingabe!C8&" "&Eingabe!G8&", Sie haben es geschafft oder werden es bald erreicht haben. Ihre Rente oder besser gesagt Ihre ''365 Tage Urlaub'' beginnen demnächst!" -> Herzlichen Glückwunsch Max Mustermann, Sie haben es geschafft oder werden es bald erreicht haben. Ihre Rente oder besser gesagt Ihre ''365 Tage Urlaub'' beginnen demnächst!
A15: Früher war der Eintritt in den Ruhestand einfach und unkompliziert. Die gesetzliche Rente, die betriebliche Altersversorgung und die Verrentung von angespartem Kapital reichten meist für einen sorgenfreien Ruhestand aus. Dies hat sich nun grundlegend geändert. Zum Einen ist die prozentuale Höhe der gesetzlichen Rente deutlich gesunken, und zum anderen reichen die zusätzlichen Ersparnisse durch die Niedrigzinsphase oft nicht, um die Rentenlücke zu schließen.
A16: Dass die Rentenanpassung in der GRV in der neueren Zeit mit der Inflation nicht mehr mithalten kann, ist an folgenden Grafiken gut zu erkennen:
A26: Früher konnten Rentner mit einer steigenden Rente rechnen. Dies ist inzwischen nicht mehr der Fall. Die Rente schrumpft in der Regel nach Abzug der Inflation und Steuer.
A27: Dieser Punkt - die dynamische Rentenlücke - sollte bei der Ruhestandsplanung unbedingt berücksichtigt werden.
A38: Falls Sie Ihr liquides Vermögen verrenten, könnte Ihr Alterseinkommen ungefähr wie folgt aussehen:
C49: ='Ruhestandsplanung Berechnung'!A67 -> 67 | D49: ='Ruhestandsplanung Berechnung'!A68 -> 77 | E49: ='Ruhestandsplanung Berechnung'!A69 -> 87 | F49: ='Ruhestandsplanung Berechnung'!A70 -> 97 | G49: ='Ruhestandsplanung Berechnung'!A71 -> 107 | H49: ='Ruhestandsplanung Berechnung'!A72 -> 117
A50: Rentenwunsch | C50: ='Ruhestandsplanung Berechnung'!B67 -> 0 | D50: ='Ruhestandsplanung Berechnung'!B68 -> 0 | E50: ='Ruhestandsplanung Berechnung'!B69 -> 0 | F50: ='Ruhestandsplanung Berechnung'!B70 -> 0 | G50: ='Ruhestandsplanung Berechnung'!B71 -> 0 | H50: ='Ruhestandsplanung Berechnung'!B72 -> 0
A51: Gesamtrenten | C51: ='Ruhestandsplanung Berechnung'!AI5 -> 1928.376196 | D51: ='Ruhestandsplanung Berechnung'!AI15 -> 2010.435797 | E51: ='Ruhestandsplanung Berechnung'!AI25 -> 2095.344908 | F51: ='Ruhestandsplanung Berechnung'!AI35 -> 2183.108522 | G51: ='Ruhestandsplanung Berechnung'!AI45 -> 2273.716043 | H51: ='Ruhestandsplanung Berechnung'!AI55 -> 2382.017051
A52: Lücke | C52: =MAX(C50-C51,0) -> 0 | D52: =MAX(D50-D51,0) -> 0 | E52: 0 | F52: 0 | G52: 0 | H52: 0
A56: Eine Verrentung geschieht immer in Form einer sicheren Anlage. In der Niedrigzinsphase ist jedoch die Renditeerwartung moderat. Auch die Rentensteigerung kann deswegen nur gering ausfallen. Falls bei Ihnen eine Rentenlücke besteht oder Sie mit der zu erwartenden Rendite nicht zufrieden sind, könnten andere Gestaltungen interessant sein.
A57: Bis zu Ihrem weit entfernten Lebensende ist noch genügend Zeit, um auch etwas risikoorientierter mit einer höheren Renditeerwartung zu investieren. Somit fließt Ihr angespartes Geld nicht automatisch in eine klassische Rente, sondern in eine Fondspolice mit Auszahlplan. Innerhalb der Fondspolice werden Investmentfonds als Anlage genutzt.
A58: ="Hätten Sie in der Vergangenheit z.B. nur in den deutschen Aktienindex DAX® investiert, hätten Sie eine Rendite von "&FIXED(Variablen!Q54*100,2)&"% p.a. über die Laufzeit von "&Variablen!O54&" Jahren erzielt. Betrachtet wurden alle möglichen "&Variablen!O54&"-Jahres Perioden im Zeitraum 30.10.1959 bis 30.12.2015." -> Hätten Sie in der Vergangenheit z.B. nur in den deutschen Aktienindex DAX® investiert, hätten Sie eine Rendite von 6,67% p.a. über die Laufzeit von 57 Jahren erzielt. Betrachtet wurden alle möglichen 57-Jahres Perioden im Zeitraum 30.10.1959 bis 30.12.2015.
A59: Hier eine Übersicht über die Daten aus der Vergangenheit:
C62: Schlechteste | D62: Mittlere | E62: Beste | F62: Anzahl der
C63: Periode (Rendite p.a.) | F63: Perioden
A64: ="Laufzeit: "&Variablen!B15&" Jahre" -> Laufzeit: 57 Jahre | C64: =Variablen!P54 -> 0.06415946419 | D64: =Variablen!Q54 -> 0.06669976594 | E64: =Variablen!R54 -> 0.06776790989 | F64: =Variablen!S54 -> 62
A67: ="Falls Sie Ihr liquides Vermögen über einen Auszahlplan entnehmen, sieht ein möglicher Verlauf wie folgt aus (Renditeannahme: "&Ruhestandsplanung!E22*100&"% p.a.):" -> Falls Sie Ihr liquides Vermögen über einen Auszahlplan entnehmen, sieht ein möglicher Verlauf wie folgt aus (Renditeannahme: 5% p.a.):
A84: =IF(Ruhestandsplanung!E18=0,"ACHTUNG: Da Sie kein liquides Vermögen eingegeben haben, kann auch keine Alternative mit einem Auszahlplan angeboten werden!","") -> ACHTUNG: Da Sie kein liquides Vermögen eingegeben haben, kann auch keine Alternative mit einem Auszahlplan angeboten werden!
C85: =C49 -> 67 | D85: =D49 -> 77 | E85: 87 | F85: 97 | G85: 107 | H85: 117
A86: Rentenwunsch | C86: =C50 -> 0 | D86: =D50 -> 0 | E86: 0 | F86: 0 | G86: 0 | H86: 0
A87: Gesamtrenten | C87: ='Ruhestandsplanung Berechnung'!AQ5 -> 1928.376196 | D87: ='Ruhestandsplanung Berechnung'!AQ15 -> 2010.435797 | E87: ='Ruhestandsplanung Berechnung'!AQ25 -> 2095.344908 | F87: ='Ruhestandsplanung Berechnung'!AQ35 -> 2183.108522 | G87: ='Ruhestandsplanung Berechnung'!AQ45 -> 2273.716043 | H87: ='Ruhestandsplanung Berechnung'!AQ55 -> 2382.017051
A88: Lücke | C88: =MAX(C86-C87,0) -> 0 | D88: =MAX(D86-D87,0) -> 0 | E88: 0 | F88: 0 | G88: 0 | H88: 0
A90: Bei einem Auszahlplan gehen Sie immer das Risiko ein, dass das Kapital verbraucht wird. Aus diesem Grund können Sie vorhandene Kapital jederzeit verrenten, falls sich die Zinslandschaft wieder erholt hat. So kann der Auszahlplan zur Überbrückung der Niedrigzinsphase genutzt werden, um anschließend durch die Verrentung die potentielle Langlebigkeit abzusichern.
A101: Quelle: Eigene Berechnungen auf Basis Ihrer Angaben und der gesetzlichen Daten. | H101: ="1 / "&Variablen!B1&"" -> 1 / 2022
A102: Für die Richtigkeit der Angaben kann keine Gewähr übernommen werden, denn Programm- und Berechnungsfehler sind trotz sorgfältigstem Vorgehen nicht ausgeschlossen.
